{"text_format":"1","workbook":"xlsx","n_sheets":8,"sheets":["Original_V06","Fehlercodes_fuer_formel_DE","Codes d'erreur_FR","Fehlergruppe","Fehlercode_fuer_formel","Codes d'erreur","Codici di errore","Fehleraktivitäten"],"not_rendered":{"charts":0,"images":5,"macros":1,"external_links":1,"defined_names":17,"comments":1,"pivot_tables":0},"unopened":[],"bounds":{"document_bytes":16777216,"sheet_cells":100000,"rows_first":2000,"rows_last":500,"rows_between":2000,"halvings":0,"cell_chars":16384,"cell_head_chars":4096},"cells_cut":0,"cells_raw":0,"read":"whole","date_system":"1900"}

{"sheet":"Original_V06","index":0,"n_rows":64,"n_cols":12,"rows_kept":64,"cut":false,"hidden":false,"merged":[[7,1,7,2],[10,4,10,6],[12,3,12,8],[13,1,13,8],[25,2,25,3],[24,2,24,3],[25,0,25,1],[15,0,15,12],[21,0,21,12],[8,7,8,12],[12,1,12,2],[10,1,10,2],[8,1,8,2],[11,1,11,2],[41,7,41,9],[25,11,25,12],[25,9,25,10],[25,7,25,8],[25,5,25,6],[41,10,41,12],[35,10,35,12],[36,10,36,12],[37,10,37,12],[41,2,41,5],[28,3,28,4],[30,3,30,4],[39,7,39,9],[28,5,28,12],[30,5,30,12],[31,5,31,12],[54,7,54,12],[42,1,42,5],[46,0,48,4],[45,10,45,12],[46,10,46,12],[47,10,47,12],[47,7,47,9],[46,7,46,9],[45,7,45,9],[53,2,53,6],[53,7,53,8],[49,5,49,7],[42,7,42,9],[44,10,44,12],[42,10,42,12],[43,10,43,12],[5,8,5,12],[31,3,31,4],[38,10,38,12],[40,7,40,9],[40,10,40,12],[35,2,35,5],[36,2,36,5],[37,2,37,5],[38,2,38,5],[39,2,39,5],[40,2,40,5],[33,3,33,4],[39,10,39,12],[32,3,32,4],[6,1,6,2],[24,0,24,1],[32,5,32,12],[33,5,33,12],[38,7,38,9],[35,7,35,9],[36,7,36,9],[37,7,37,9],[3,1,3,2],[29,3,29,4],[29,5,29,12],[3,7,3,12],[3,5,3,6],[27,5,27,12],[18,0,18,12],[23,5,24,6],[23,7,24,8],[23,9,24,10],[23,11,24,12],[12,9,12,12],[13,9,13,12],[10,7,10,12],[27,3,27,4],[5,3,5,6]]}
[]
["Champs obligatoires          "]
[]
["N°",null,null,null,null," Date:"]
[]
["Station de service:",null,null,"Ordre ",null,null,null,"SA / "]
["Nom"]
["CP Lieu"]
["TVA",null,null,null,null,null,"Code:"]
[]
["Marque:",null,null,null,"Modèle:"]
["N° série:"]
["Lieu d'achat:",null,null,"Date d'achat:"]
[null,"Extension de garantie N°:"]
["Défectuosité:"]
[]
[]
["Emplacement (adresse précise)"]
[]
[]
["Propriétaire (adresse précise)"]
[]
[]
[null,null,null,null,null,"Groupe d'erreur",null,"Type d'erreur",null,"Lieu  d'erreur",null,"Action"]
["Demande de réparation du:"]
["Exécutée le"]
[]
["Date","Spécification des travaux","Heures","Tarif",null,"Compensation"]
[null,null,null,null,null,{"$f":"C29*D29","v":0}]
[null,null,null,null,null,{"$f":"C30*D30","v":0}]
[null,null,null,null,null,{"$f":"C31*D31","v":0}]
[null,null,null,null,null,{"$f":"C32*D32","v":0}]
[null,null,null,null,null,{"$f":"C33*D33","v":0}]
["Déplacement (uniquement)",null,null,null,null,{"$f":"D34","v":0}]
[]
["N° d'article","Description","Numero de facture",null,null,null,"Quant","Prix net par pièce",null,null,"Compensation"]
[null,null,null,null,null,null,null,null,null,null,{"$f":"H37*G37","v":0}]
[null,null,null,null,null,null,null,null,null,null,{"$f":"+H38*G38","v":0}]
[null,null,null,null,null,null,null,null,null,null,0]
[null,null,null,null,null,null,null,null,null,null,0]
[null,null,null,null,null,null,null,null,null,null,0]
[null,null,null,null,null,null,null,null,null,null,0]
[null,"Porti",null,null,null,null,null,null,null,null,0]
[null,null,null,null,null,null,null,null,null,null,{"$f":"SUM(K37:K43)","v":0}]
[]
[null,null,null,null,null,null,null,"Subtotal",null,null,{"$f":"F29+F30+F31+F32+F33+F34+K37+K38+K39+K40+K41+K42+Text8","v":0}]
["La demande doit être envoyée dans les 30 jours après la date d'intervention. 3 mois après la date d'exécution la demande devient caduque.",null,null,null,null,null,null,"TVA  8.1%",null,null,{"$f":"ROUND(20*(K46*8.1%),0)/20","v":0}]
[null,null,null,null,null,null,null,"Total",null,null,{"$f":"SUM(K46:K47)","v":0}]
[]
["FORS AG/SA, Service/Garantie, Schaftenholzweg 8, 2557 Studen BE"]
[]
[]
[]
["A remplir par FORS",null,null,null,null,null,null,"Interne Nr.:"]
[]
[]
["Datum:",null,"Raison:"]
["Konto 4300/1/2/3/4/",{"$f":"ROUND(20*((F29+F31)*108%),0)/20","v":0}]
["Konto 4305",{"$f":"ROUND(20*((SUM(K37:K42))*108%),0)/20","v":0}]
["Konto 4310",{"$f":"ROUND(20*(F32*108%),0)/20","v":0}]
["Konto 4311",{"$f":"ROUND(20*(F33*108%),0)/20","v":0}]
["Konto 4312",{"$f":"ROUND(20*(F34*108%),0)/20","v":0}]
["Konto 4313",{"$f":"ROUND(20*((G43*H43)*108%),0)/20","v":0}]
["Visum:"]

{"sheet":"Fehlercodes_fuer_formel_DE","index":1,"n_rows":377,"n_cols":14,"rows_kept":377,"cut":false,"hidden":true,"merged":[[389,1,389,6],[3,0,9,0],[75,0,83,0],[141,0,171,0],[298,0,299,0]]}
["Kältekreislauf","Loetverbindung undicht",{"$f":"'[1]005'!B10","v":"001"},{"$f":"'Codes d''erreur_FR'!D2=C1&\" \"&B1","v":false},"Kapillare",{"$f":"'[1]005'!F12","v":"002"},{"$f":"F1&\" \"&E1","v":"002 Kapillare"}]
[5,"Knick",{"$f":"'[1]005'!B9","v":"012"},{"$f":"C2&\" \"&B2","v":"012 Knick"},"Kompressor-Fuellstutzen (Verbindung)",{"$f":"'[1]005'!F15","v":"003"},{"$f":"F2&\" \"&E2","v":"003 Kompressor-Fuellstutzen (Verbindung)"}]
[null,"schwergaengig",{"$f":"'[1]005'!B14","v":"023"},"023 schwergaengig","Kompressor-Saugrohr (Verbindung)",{"$f":"'[1]005'!F17","v":"005"},{"$f":"F3&\" \"&E3","v":"005 Kompressor-Saugrohr (Verbindung)"}]
["(Leckage/ Verstopfung/ Füllmenge)","verstopft",{"$f":"'[1]005'!B15","v":"028"},"028 verstopft","Kompressor-Verfluessiger (Verbindung)",{"$f":"'[1]005'!F18","v":"007"},"007 Kompressor-Verfluessiger (Verbindung)"]
[null,"blockiert / klemmt",{"$f":"'[1]005'!B6","v":"058"},"058 blockiert / klemmt","Ventil Kaeltekreislauf",{"$f":"'[1]005'!F29","v":"009"},"009 Ventil Kaeltekreislauf"]
[null,"keine Leistung",{"$f":"'[1]005'!B8","v":"060"},"060 keine Leistung","Rahmenheizung",{"$f":"'[1]005'!F21","v":"011"},"011 Rahmenheizung"]
[null,"Lokringverbindung undicht",{"$f":"'[1]005'!B11","v":"291"},"291 Lokringverbindung undicht","Rahmenheizung-Verfluessiger (Verbindung)",{"$f":"'[1]005'!F22","v":"012"},"012 Rahmenheizung-Verfluessiger (Verbindung)"]
[null,"Material/Rohr undicht",{"$f":"'[1]005'!B13","v":"292"},"292 Material/Rohr undicht","Saugrohr-Kapillare Eingang (Verbindung)",{"$f":"'[1]005'!F24","v":"013"},"013 Saugrohr-Kapillare Eingang (Verbindung)"]
[null,"Lötstelle zugelötet",{"$f":"'[1]005'!B12","v":"293"},"293 Lötstelle zugelötet","Saugrohr-Verdampfer (Verbindung)",{"$f":"'[1]005'!F25","v":"014"},"014 Saugrohr-Verdampfer (Verbindung)"]
[null,"Bereifung der Saugleitung",{"$f":"'[1]005'!B5","v":"409"},"409 Bereifung der Saugleitung","Trockner",{"$f":"'[1]005'!F26","v":"015"},"015 Trockner"]
[null,"Fehlerart nicht zuordenbar",{"$f":"'[1]005'!B7","v":"999"},"999 Fehlerart nicht zuordenbar","Trockner-Kapillare (Verbindung)",{"$f":"'[1]005'!F27","v":"016"},"016 Trockner-Kapillare (Verbindung)"]
[null,null,null,null,"Verdampfer Gefrierteil",{"$f":"'[1]005'!F30","v":"017"},"017 Verdampfer Gefrierteil"]
[null,null,null,null,"Verdampfer Kuehlteil",{"$f":"'[1]005'!F31","v":"018"},"018 Verdampfer Kuehlteil"]
[null,null,null,null,"Verdampfer-Einspritzstelle (Verbindung)",{"$f":"'[1]005'!F33","v":"019"},"019 Verdampfer-Einspritzstelle (Verbindung)"]
[null,null,null,null,"Verfluessiger",{"$f":"'[1]005'!F35","v":"020"},"020 Verfluessiger"]
[null,null,null,null,"Verfluessiger-Trockner (Verbindung)",{"$f":"'[1]005'!F36","v":"021"},"021 Verfluessiger-Trockner (Verbindung)"]
[null,null,null,null,"Kompressor",{"$f":"'[1]005'!F14","v":"063"},"063 Kompressor"]
[null,null,null,null,"Wärmetauscher (Wasserführend)",{"$f":"'[1]005'!F37","v":"395"},"395 Wärmetauscher (Wasserführend)"]
[null,null,null,null,"Verdampfer Kuehlteil-Verdampfermodul Gefrierteil (Verbindung)",{"$f":"'[1]005'!F32","v":"412"},"412 Verdampfer Kuehlteil-Verdampfermodul Gefrierteil (Verbindung)"]
[null,null,null,null,"Verdampfermodul-Saugleitung (Verbindung)",{"$f":"'[1]005'!F34","v":"413"},"413 Verdampfermodul-Saugleitung (Verbindung)"]
[null,null,null,null,"Heizung Verdunstungsschale - Kompressor (Verbindung)",{"$f":"'[1]005'!F10","v":"414"},"414 Heizung Verdunstungsschale - Kompressor (Verbindung)"]
[null,null,null,null,"Heizung Verdunstungsschale - Verfluessiger (Verbindung)",{"$f":"'[1]005'!F11","v":"415"},"415 Heizung Verdunstungsschale - Verfluessiger (Verbindung)"]
[null,null,null,null,"Heizung Verdampferwanne",{"$f":"'[1]005'!F9","v":"416"},"416 Heizung Verdampferwanne"]
[null,null,null,null,"Abzweigung - Saug-/ Druckleitung (Verbindung)",{"$f":"'[1]005'!F5","v":"518"},"518 Abzweigung - Saug-/ Druckleitung (Verbindung)"]
[null,null,null,null,"Kuehlkassette",{"$f":"'[1]005'!F19","v":"525"},"525 Kuehlkassette"]
[null,null,null,null,"Sammler",{"$f":"'[1]005'!F23","v":"533"},"533 Sammler"]
[null,null,null,null,"Expansionsventil",{"$f":"'[1]005'!F7","v":"675"},"675 Expansionsventil"]
[null,null,null,null,"Ölabscheider",{"$f":"'[1]005'!F20","v":"676"},"676 Ölabscheider"]
[null,null,null,null,"Ventil für externe Kühlung (Water loop, Wasserkühlung, ..)",{"$f":"'[1]005'!F28","v":"677"},"677 Ventil für externe Kühlung (Water loop, Wasserkühlung, ..)"]
[null,null,null,null,"Druckschalter",{"$f":"'[1]005'!F6","v":"678"},"678 Druckschalter"]
[null,null,null,null,"Kaskade",{"$f":"'[1]005'!F13","v":"679"},"679 Kaskade"]
[null,null,null,null,"Fehlerort nicht zuordenbar",{"$f":"'[1]005'!F8","v":"999"},"999 Fehlerort nicht zuordenbar"]
["Elektrik","ausser Toleranz (Fuehler etc.)",{"$f":"'[1]040'!B5","v":"031"},{"$f":"C33&\" \"&B33","v":"031 ausser Toleranz (Fuehler etc.)"},"Ventil Kaeltekreislauf",{"$f":"'[1]040'!F41","v":"009"},"009 Ventil Kaeltekreislauf"]
[40,"elektrische Unterbrechung",{"$f":"'[1]040'!B6","v":"032"},"032 elektrische Unterbrechung","Beleuchtung",{"$f":"'[1]040'!F7","v":"059"},"059 Beleuchtung"]
[null,"falsche Anzeige",{"$f":"'[1]040'!B7","v":"033"},"033 falsche Anzeige","Heizung",{"$f":"'[1]040'!F15","v":"060"},"060 Heizung"]
[null,"Kurzschluss",{"$f":"'[1]040'!B9","v":"034"},"034 Kurzschluss","Isolationsplatte",{"$f":"'[1]040'!F18","v":"061"},"061 Isolationsplatte"]
[null,"Leitungen beschaedigt",{"$f":"'[1]040'!B10","v":"036"},"036 Leitungen beschaedigt","Kabelstrang/ Leitung",{"$f":"'[1]040'!F19","v":"062"},"062 Kabelstrang/ Leitung"]
[null,"regelt falsch",{"$f":"'[1]040'!B12","v":"039"},"039 regelt falsch","Kompressor",{"$f":"'[1]040'!F20","v":"063"},"063 Kompressor"]
[null,"verschmort",{"$f":"'[1]040'!B14","v":"040"},"040 verschmort","Kompressor-Anlassvorrichtung",{"$f":"'[1]040'!F21","v":"064"},"064 Kompressor-Anlassvorrichtung"]
[null,"Wackelkontakt",{"$f":"'[1]040'!B15","v":"041"},"041 Wackelkontakt","Kompressor-Motorschutzschalter",{"$f":"'[1]040'!F22","v":"065"},"065 Kompressor-Motorschutzschalter"]
[null,"schaltet nicht",{"$f":"'[1]040'!B13","v":"202"},"202 schaltet nicht","Kondensator",{"$f":"'[1]040'!F23","v":"066"},"066 Kondensator"]
[null,"Leitungen Verdrahtungsfehler",{"$f":"'[1]040'!B11","v":"297"},"297 Leitungen Verdrahtungsfehler","Kontrollleuchten",{"$f":"'[1]040'!F24","v":"067"},"067 Kontrollleuchten"]
[null,"Fehlerart nicht zuordenbar",{"$f":"'[1]040'!B8","v":"999"},"999 Fehlerart nicht zuordenbar","Reedkontakt (Tuererkennung, ...)",{"$f":"'[1]040'!F29","v":"068"},"068 Reedkontakt (Tuererkennung, ...)"]
[null,null,null,null,"Stecker/ Schraubverbindung",{"$f":"'[1]040'!F35","v":"071"},"071 Stecker/ Schraubverbindung"]
[null,null,null,null,"Taster/ Schalter",{"$f":"'[1]040'!F36","v":"072"},"072 Taster/ Schalter"]
[null,null,null,null,"Temperaturfuehler",{"$f":"'[1]040'!F37","v":"073"},"073 Temperaturfuehler"]
[null,null,null,null,"Regelthermostat",{"$f":"'[1]040'!F30","v":"074"},"074 Regelthermostat"]
[null,null,null,null,"Verteilerleiste",{"$f":"'[1]040'!F46","v":"075"},"075 Verteilerleiste"]
[null,null,null,null,"Thermometer",{"$f":"'[1]040'!F38","v":"085"},"085 Thermometer"]
[null,null,null,null,"Batterie/ Akku",{"$f":"'[1]040'!F5","v":"103"},"103 Batterie/ Akku"]
[null,null,null,null,"Ventil Wasserzulauf",{"$f":"'[1]040'!F42","v":"252"},"252 Ventil Wasserzulauf"]
[null,null,null,null,"Eiswuerfelbereiter",{"$f":"'[1]040'!F11","v":"265"},"265 Eiswuerfelbereiter"]
[null,null,null,null,"Druckausgleichsventil",{"$f":"'[1]040'!F9","v":"274"},"274 Druckausgleichsventil"]
[null,null,null,null,"Sicherheitstemperaturbegrenzer",{"$f":"'[1]040'!F32","v":"277"},"277 Sicherheitstemperaturbegrenzer"]
[null,null,null,null,"Luftklappe",{"$f":"'[1]040'!F26","v":"439"},"439 Luftklappe"]
[null,null,null,null,"Pumpe Wassertank",{"$f":"'[1]040'!F28","v":"440"},"440 Pumpe Wassertank"]
[null,null,null,null,"Tuerheizung",{"$f":"'[1]040'!F39","v":"467"},"467 Tuerheizung"]
[null,null,null,null,"Feuchtesensor",{"$f":"'[1]040'!F14","v":"468"},"468 Feuchtesensor"]
[null,null,null,null,"Potentialfreier Kontakt",{"$f":"'[1]040'!F27","v":"469"},"469 Potentialfreier Kontakt"]
[null,null,null,null,"Sicherheitsthermostat",{"$f":"'[1]040'!F33","v":"517"},"517 Sicherheitsthermostat"]
[null,null,null,null,"Ventilator - Verfluessiger",{"$f":"'[1]040'!F45","v":"522"},"522 Ventilator - Verfluessiger"]
[null,null,null,null,"Ventilator - GT",{"$f":"'[1]040'!F43","v":"523"},"523 Ventilator - GT"]
[null,null,null,null,"Ventilator - KT/ Biofresh",{"$f":"'[1]040'!F44","v":"524"},"524 Ventilator - KT/ Biofresh"]
[null,null,null,null,"Kuehlkassette",{"$f":"'[1]040'!F25","v":"525"},{"$f":"F64&\" \"&E64","v":"525 Kuehlkassette"}]
[null,null,null,null,"Fernschloss",{"$f":"'[1]040'!F13","v":"527"},"527 Fernschloss"]
[null,null,null,null,"Batterielademodul",{"$f":"'[1]040'!F6","v":"598"},"598 Batterielademodul"]
[null,null,null,null,"Crushmodul",{"$f":"'[1]040'!F8","v":"599"},"599 Crushmodul"]
[null,null,null,null,"Türöffnungsmodul",{"$f":"'[1]040'!F40","v":"609"},"609 Türöffnungsmodul"]
[null,null,null,null,"Druckschalter",{"$f":"'[1]040'!F10","v":"678"},"678 Druckschalter"]
[null,null,null,null,"Sicherung",{"$f":"'[1]040'!F34","v":"680"},"680 Sicherung"]
[null,null,null,null,"Helligkeitssensor",{"$f":"'[1]040'!F16","v":"682"},"682 Helligkeitssensor"]
[null,null,null,null,"Humidifier (Hydrobreeze)",{"$f":"'[1]040'!F17","v":"683"},"683 Humidifier (Hydrobreeze)"]
["Elektronik","Kurzschluss",{"$f":"'[1]045'!B12","v":"034"},{"$f":"C73&\" \"&B73","v":"034 Kurzschluss"},"Taster/ Schalter",{"$f":"'[1]045'!F19","v":"072"},"072 Taster/ Schalter"]
[45,"regelt falsch",{"$f":"'[1]045'!B16","v":"039"},"039 regelt falsch","Platinenstecker",{"$f":"'[1]045'!F16","v":"082"},"082 Platinenstecker"]
[null,"verschmort",{"$f":"'[1]045'!B24","v":"040"},"040 verschmort","Elektronikplatine",{"$f":"'[1]045'!F8","v":"172"},"172 Elektronikplatine"]
["(Fehler an elektronischen Baugruppen)","Wackelkontakt",{"$f":"'[1]045'!B25","v":"041"},"041 Wackelkontakt","Inverterelektronik (VCC)",{"$f":"'[1]045'!F11","v":"260"},"260 Inverterelektronik (VCC)"]
[null,"Beleuchtung wird nicht / teilweise / unzureichend angesteuert",{"$f":"'[1]045'!B5","v":"042"},"042 Beleuchtung wird nicht / teilweise / unzureichend angesteuert","Elektronik Eiswuerfelbereiter",{"$f":"'[1]045'!F7","v":"264"},"264 Elektronik Eiswuerfelbereiter"]
[null,"fehlerhafte Anzeige / Display",{"$f":"'[1]045'!B7","v":"043"},"043 fehlerhafte Anzeige / Display","Verbindungsmodul",{"$f":"'[1]045'!F21","v":"441"},"441 Verbindungsmodul"]
[null,"Fehlfunktion allgemein",{"$f":"'[1]045'!B8","v":"044"},"044 Fehlfunktion allgemein","Netzteil LED-Beleuchtung / Trafo",{"$f":"'[1]045'!F14","v":"442"},"442 Netzteil LED-Beleuchtung / Trafo"]
[null,"Heizung wird nicht angesteuert",{"$f":"'[1]045'!B9","v":"045"},"045 Heizung wird nicht angesteuert","Temperaturwaechter",{"$f":"'[1]045'!F20","v":"516"},"516 Temperaturwaechter"]
[null,"Kompressor wird nicht angesteuert",{"$f":"'[1]045'!B10","v":"046"},"046 Kompressor wird nicht angesteuert","Dimmer",{"$f":"'[1]045'!F6","v":"519"},"519 Dimmer"]
[null,"Kontrollleuchte defekt",{"$f":"'[1]045'!B11","v":"047"},"047 Kontrollleuchte defekt","Netzanschlussplatine",{"$f":"'[1]045'!F12","v":"606"},"606 Netzanschlussplatine"]
[null,"Magnetventil wird nicht angesteuert",{"$f":"'[1]045'!B14","v":"048"},"048 Magnetventil wird nicht angesteuert","Bedienteil, -oberflaeche (User Interface)",{"$f":"'[1]045'!F5","v":"612"},"612 Bedienteil, -oberflaeche (User Interface)"]
[null,"Taster oder Schalter defekt",{"$f":"'[1]045'!B18","v":"049"},"049 Taster oder Schalter defekt","RS485-Modul",{"$f":"'[1]045'!F17","v":"681"},"681 RS485-Modul"]
[null,"Temperaturschwankungen",{"$f":"'[1]045'!B19","v":"050"},"050 Temperaturschwankungen","Netzfilter",{"$f":"'[1]045'!F13","v":"684"},"684 Netzfilter"]
[null,"Tonwarner ohne Funktion",{"$f":"'[1]045'!B20","v":"051"},"051 Tonwarner ohne Funktion","NFC, RFID Chip",{"$f":"'[1]045'!F15","v":"685"},"685 NFC, RFID Chip"]
[null,"unberechtigter Temperaturalarm",{"$f":"'[1]045'!B21","v":"054"},"054 unberechtigter Temperaturalarm","Smartsensoren",{"$f":"'[1]045'!F18","v":"686"},"686 Smartsensoren"]
[null,"Unterbrechung (Haarriss, Loetstelle usw.)",{"$f":"'[1]045'!B22","v":"055"},"055 Unterbrechung (Haarriss, Loetstelle usw.)","Halbleiterrelais",{"$f":"'[1]045'!F10","v":"698"},"698 Halbleiterrelais"]
[null,"Ventilator wird nicht angesteuert",{"$f":"'[1]045'!B23","v":"056"},"056 Ventilator wird nicht angesteuert","Fehlerort nicht zuordenbar",{"$f":"'[1]045'!F9","v":"999"},"999 Fehlerort nicht zuordenbar"]
[null,"Pumpe Wassertank wird nicht angesteuert",{"$f":"'[1]045'!B15","v":"298"},"298 Pumpe Wassertank wird nicht angesteuert"]
[null,"Luftklappe wird nicht angesteuert",{"$f":"'[1]045'!B13","v":"299"},"299 Luftklappe wird nicht angesteuert"]
[null,"Softwarefehler (BUG)",{"$f":"'[1]045'!B17","v":"588"},"588 Softwarefehler (BUG)"]
[null,"Fehlerart nicht zuordenbar",{"$f":"'[1]045'!B6","v":"999"},"999 Fehlerart nicht zuordenbar"]
["Mechanik","Bruch",{"$f":"'[1]050'!B7","v":"010"},"010 Bruch","Fuss/ Rolle",{"$f":"'[1]050'!F11","v":"028"},{"$f":"F94&\" \"&E94","v":"028 Fuss/ Rolle"}]
[50,"schwergaengig",{"$f":"'[1]050'!B10","v":"023"},"023 schwergaengig","Griff",{"$f":"'[1]050'!F13","v":"030"},"030 Griff"]
[null,"Verbogen/Verzogen",{"$f":"'[1]050'!B11","v":"025"},"025 Verbogen/Verzogen","Taster/ Schalter",{"$f":"'[1]050'!F19","v":"072"},"072 Taster/ Schalter"]
[null,"verstellt/versetzt",{"$f":"'[1]050'!B12","v":"027"},"027 verstellt/versetzt","Schloss",{"$f":"'[1]050'!F18","v":"084"},"084 Schloss"]
[null,"falsche Anzeige",{"$f":"'[1]050'!B8","v":"033"},"033 falsche Anzeige","Thermometer",{"$f":"'[1]050'!F20","v":"085"},"085 Thermometer"]
[null,"abgenutzt",{"$f":"'[1]050'!B5","v":"057"},"057 abgenutzt","Auszug-/ Teleskopschiene",{"$f":"'[1]050'!F6","v":"259"},"259 Auszug-/ Teleskopschiene"]
[null,"blockiert / klemmt",{"$f":"'[1]050'!B6","v":"058"},"058 blockiert / klemmt","Eiswuerfelbereiter",{"$f":"'[1]050'!F8","v":"265"},"265 Eiswuerfelbereiter"]
[null,"Fehlerart nicht zuordenbar",{"$f":"'[1]050'!B9","v":"999"},"999 Fehlerart nicht zuordenbar","Schliessdaempfung",{"$f":"'[1]050'!F17","v":"408"},"408 Schliessdaempfung"]
[null,null,null,null,"Scharnier/ Tuerlagerung",{"$f":"'[1]050'!F16","v":"418"},"418 Scharnier/ Tuerlagerung"]
[null,null,null,null,"Ausgabeeinheit Eis/ Wasser",{"$f":"'[1]050'!F5","v":"432"},"432 Ausgabeeinheit Eis/ Wasser"]
[null,null,null,null,"Luftklappe",{"$f":"'[1]050'!F15","v":"439"},"439 Luftklappe"]
[null,null,null,null,"Ventilator - Verfluessiger",{"$f":"'[1]050'!F24","v":"522"},"522 Ventilator - Verfluessiger"]
[null,null,null,null,"Ventilator - GT",{"$f":"'[1]050'!F22","v":"523"},"523 Ventilator - GT"]
[null,null,null,null,"Ventilator - KT/ Biofresh",{"$f":"'[1]050'!F23","v":"524"},"524 Ventilator - KT/ Biofresh"]
[null,null,null,null,"Fernschloss",{"$f":"'[1]050'!F10","v":"527"},"527 Fernschloss"]
[null,null,null,null,"Crushmodul",{"$f":"'[1]050'!F7","v":"599"},"599 Crushmodul"]
[null,null,null,null,"Fusspedaloeffner",{"$f":"'[1]050'!F12","v":"600"},"600 Fusspedaloeffner"]
[null,null,null,null,"Humidifier (Hydrobreeze)",{"$f":"'[1]050'!F14","v":"683"},"683 Humidifier (Hydrobreeze)"]
[null,null,null,null,"Fehlerort nicht zuordenbar",{"$f":"'[1]050'!F9","v":"999"},"999 Fehlerort nicht zuordenbar"]
["Geräusch","Knackgeraeusch",{"$f":"'[1]060'!B8","v":"064"},{"$f":"C113&\" \"&B113","v":"064 Knackgeraeusch"},"Kapillare",{"$f":"'[1]060'!F12","v":"002"},"002 Kapillare"]
[60,"Knarr-/ Quietschgeräusch",{"$f":"'[1]060'!B9","v":"065"},"065 Knarr-/ Quietschgeräusch","Ventil Kaeltekreislauf",{"$f":"'[1]060'!F23","v":"009"},"009 Ventil Kaeltekreislauf"]
[null,"Laufgeraeusch",{"$f":"'[1]060'!B10","v":"066"},"066 Laufgeraeusch","Verdampfer Gefrierteil",{"$f":"'[1]060'!F28","v":"017"},"017 Verdampfer Gefrierteil"]
[null,"Vibrationsgeraeusch",{"$f":"'[1]060'!B13","v":"069"},"069 Vibrationsgeraeusch","Verdampfer Kuehlteil",{"$f":"'[1]060'!F29","v":"018"},"018 Verdampfer Kuehlteil"]
[null,"Klappergeräusch/Klopfgeräusch",{"$f":"'[1]060'!B7","v":"089"},"089 Klappergeräusch/Klopfgeräusch","Verfluessiger",{"$f":"'[1]060'!F30","v":"020"},"020 Verfluessiger"]
[null,"Schaltgeraeusch",{"$f":"'[1]060'!B11","v":"203"},"203 Schaltgeraeusch","Tauwasserschale",{"$f":"'[1]060'!F20","v":"052"},"052 Tauwasserschale"]
[null,"Strömungs-/Einspritzgeräusch",{"$f":"'[1]060'!B12","v":"300"},"300 Strömungs-/Einspritzgeräusch","Kompressor",{"$f":"'[1]060'!F13","v":"063"},"063 Kompressor"]
[null,"Gluckern",{"$f":"'[1]060'!B6","v":"687"},"687 Gluckern","Regelthermostat",{"$f":"'[1]060'!F15","v":"074"},"074 Regelthermostat"]
[null,"Fehlerart nicht zuordenbar",{"$f":"'[1]060'!B5","v":"999"},"999 Fehlerart nicht zuordenbar","Rohre",{"$f":"'[1]060'!F16","v":"087"},"087 Rohre"]
[null,null,null,null,"Ventil Wasserzulauf",{"$f":"'[1]060'!F24","v":"252"},"252 Ventil Wasserzulauf"]
[null,null,null,null,"Inverterelektronik (VCC)",{"$f":"'[1]060'!F11","v":"260"},"260 Inverterelektronik (VCC)"]
[null,null,null,null,"Eiswuerfelbereiter",{"$f":"'[1]060'!F9","v":"265"},"265 Eiswuerfelbereiter"]
[null,null,null,null,"Trennplatte vertikal",{"$f":"'[1]060'!F21","v":"266"},"266 Trennplatte vertikal"]
[null,null,null,null,"Druckausgleichsventil",{"$f":"'[1]060'!F8","v":"274"},"274 Druckausgleichsventil"]
[null,null,null,null,"Schliessdaempfung",{"$f":"'[1]060'!F18","v":"408"},"408 Schliessdaempfung"]
[null,null,null,null,"Scharnier/ Tuerlagerung",{"$f":"'[1]060'!F17","v":"418"},"418 Scharnier/ Tuerlagerung"]
[null,null,null,null,"Ventilator - Verfluessiger",{"$f":"'[1]060'!F27","v":"522"},"522 Ventilator - Verfluessiger"]
[null,null,null,null,"Ventilator - GT",{"$f":"'[1]060'!F25","v":"523"},"523 Ventilator - GT"]
[null,null,null,null,"Ventilator - KT/ Biofresh",{"$f":"'[1]060'!F26","v":"524"},"524 Ventilator - KT/ Biofresh"]
[null,null,null,null,"Kuehlkassette",{"$f":"'[1]060'!F14","v":"525"},"525 Kuehlkassette"]
[null,null,null,null,"Abdeckung Verdampfer",{"$f":"'[1]060'!F5","v":"528"},"528 Abdeckung Verdampfer"]
[null,null,null,null,"Absorber",{"$f":"'[1]060'!F6","v":"596"},"596 Absorber",null,null,null,null,null,"Syphon",{"$f":"'[1]060'!M65","v":{"$error":"#REF!"}}]
[null,null,null,null,"Crushmodul",{"$f":"'[1]060'!F7","v":"599"},"599 Crushmodul"]
[null,null,null,null,"Türöffnungsmodul",{"$f":"'[1]060'!F22","v":"609"},"609 Türöffnungsmodul"]
[null,null,null,null,"Syphon",688,"688 Syphon"]
[null,null,null,null,"Fehlerort nicht zuordenbar",{"$f":"'[1]060'!F10","v":"999"},{"$f":"F138&\" \"&E138","v":"999 Fehlerort nicht zuordenbar"}]
["Oberflächen","Kratzer",{"$f":"'[1]065'!B13","v":"013"},{"$f":"C139&\" \"&B139","v":"013 Kratzer"},"Verdampfer Kuehlteil",{"$f":"'[1]065'!F37","v":"018"},"018 Verdampfer Kuehlteil"]
[65,"Zu viel Lack",{"$f":"'[1]065'!B16","v":"030"},"030 Zu viel Lack","Deckel (Truhe) / Schiebedeckel",{"$f":"'[1]065'!F9","v":"026"},"026 Deckel (Truhe) / Schiebedeckel"]
[null,"Abdruck",{"$f":"'[1]065'!B5","v":"070"},"070 Abdruck","Griff",{"$f":"'[1]065'!F16","v":"030"},"030 Griff"]
["(Gerät oder Einzelteile/ Innen oder außen - \nkein Transport-schaden erkennbar!)","Korrosion",{"$f":"'[1]065'!B12","v":"071"},"071 Korrosion","Rueckseite",{"$f":"'[1]065'!F25","v":"034"},"034 Rueckseite"]
[null,"zu wenig Lack",{"$f":"'[1]065'!B17","v":"072"},"072 zu wenig Lack","Seitenwand allgemein",{"$f":"'[1]065'!F27","v":"036"},"036 Seitenwand allgemein"]
[null,"blaettert ab",{"$f":"'[1]065'!B7","v":"087"},"087 blaettert ab","Geraetedecke/ Tischplatte",{"$f":"'[1]065'!F15","v":"040"},"040 Geraetedecke/ Tischplatte"]
[null,"Wölbung/Beule",{"$f":"'[1]065'!B15","v":"088"},"088 Wölbung/Beule","Truhenabdeckrahmen",{"$f":"'[1]065'!F32","v":"041"},"041 Truhenabdeckrahmen"]
[null,"Farbabweichung",{"$f":"'[1]065'!B8","v":"165"},"165 Farbabweichung","Tuer Gefrierteil",{"$f":"'[1]065'!F33","v":"042"},"042 Tuer Gefrierteil"]
[null,"Schliffbild Edelstahl",{"$f":"'[1]065'!B14","v":"301"},"301 Schliffbild Edelstahl","Tuer Kuehlteil",{"$f":"'[1]065'!F34","v":"043"},"043 Tuer Kuehlteil"]
[null,"Flecken",{"$f":"'[1]065'!B10","v":"302"},"302 Flecken","Thermostat-/ Lichtschaltergehaeuse",{"$f":"'[1]065'!F29","v":"053"},"053 Thermostat-/ Lichtschaltergehaeuse"]
[null,"Folienrueckstaende",{"$f":"'[1]065'!B11","v":"303"},"303 Folienrueckstaende","Beleuchtung",{"$f":"'[1]065'!F7","v":"059"},"059 Beleuchtung"]
[null,"abgeloest",{"$f":"'[1]065'!B6","v":"405"},"405 abgeloest","Querverbindung",{"$f":"'[1]065'!F24","v":"099"},"099 Querverbindung"]
[null,"Fehlerart nicht zuordenbar",{"$f":"'[1]065'!B9","v":"999"},"999 Fehlerart nicht zuordenbar","Schublade",{"$f":"'[1]065'!F26","v":"102"},"102 Schublade"]
[null,null,null,null,"Dichtung Tuer Sterne-Fach",{"$f":"'[1]065'!F12","v":"159"},"159 Dichtung Tuer Sterne-Fach"]
[null,null,null,null,"Trennplatte vertikal",{"$f":"'[1]065'!F31","v":"266"},"266 Trennplatte vertikal"]
[null,null,null,null,"Kompressortraeger",{"$f":"'[1]065'!F23","v":"309"},"309 Kompressortraeger"]
[null,null,null,null,"Draht-/ Holzrost",{"$f":"'[1]065'!F13","v":"336"},"336 Draht-/ Holzrost"]
[null,null,null,null,"Innenbehälter Gefrierteil",{"$f":"'[1]065'!F17","v":"364"},"364 Innenbehälter Gefrierteil"]
[null,null,null,null,"Innentür Gefrierteil",{"$f":"'[1]065'!F20","v":"374"},"374 Innentür Gefrierteil"]
[null,null,null,null,"Bedienoberflaeche",{"$f":"'[1]065'!F6","v":"419"},"419 Bedienoberflaeche"]
[null,null,null,null,"Trennplatte Horizontal/ Zwischensteg",{"$f":"'[1]065'!F30","v":"438"},{"$f":"F159&\" \"&E159","v":"438 Trennplatte Horizontal/ Zwischensteg"}]
[null,null,null,null,"Abdeckung Verdampfer",{"$f":"'[1]065'!F5","v":"528"},"528 Abdeckung Verdampfer"]
[null,null,null,null,"Branding (Aufkleber, Logo, …)",{"$f":"'[1]065'!F8","v":"530"},"530 Branding (Aufkleber, Logo, …)"]
[null,null,null,null,"Dichtung Tuer Gefrierteil",{"$f":"'[1]065'!F10","v":"531"},"531 Dichtung Tuer Gefrierteil"]
[null,null,null,null,"Dichtung Tuer Kuehlteil",{"$f":"'[1]065'!F11","v":"532"},"532 Dichtung Tuer Kuehlteil"]
[null,null,null,null,"Wildgehaenge",{"$f":"'[1]065'!F38","v":"611"},"611 Wildgehaenge"]
[null,null,null,null,"Seitenwand allgemein Dekorstreifen",{"$f":"'[1]065'!F28","v":"689"},"689 Seitenwand allgemein Dekorstreifen"]
[null,null,null,null,"Tür Gefrierteil Dekorstreifen",{"$f":"'[1]065'!F35","v":"690"},"690 Tür Gefrierteil Dekorstreifen"]
[null,null,null,null,"Tür Kühlteil Dekorstreifen",{"$f":"'[1]065'!F36","v":"691"},"691 Tür Kühlteil Dekorstreifen"]
[null,null,null,null,"Innenbehälter Kühlteil Edelstahlverkleidung",{"$f":"'[1]065'!F19","v":"699"},"699 Innenbehälter Kühlteil Edelstahlverkleidung"]
[null,null,null,null,"Innentür Kühlteil Edelstahlverkleidung",{"$f":"'[1]065'!F22","v":"700"},"700 Innentür Kühlteil Edelstahlverkleidung"]
[null,null,null,null,"Innenbehälter Kühlteil",{"$f":"'[1]065'!F18","v":"701"},"701 Innenbehälter Kühlteil"]
[null,null,null,null,"Innentür Kühlteil",{"$f":"'[1]065'!F21","v":"702"},"702 Innentür Kühlteil"]
[null,null,null,null,"Fehlerort nicht zuordenbar",{"$f":"'[1]065'!F14","v":"999"},"999 Fehlerort nicht zuordenbar"]
["Transport-","Bruch",{"$f":"'[1]025'!B5","v":"010"},{"$f":"C173&\" \"&B173","v":"010 Bruch"},"Verfluessiger",{"$f":"'[1]025'!F43","v":"020"},"020 Verfluessiger"]
["schaden","Delle",{"$f":"'[1]025'!B6","v":"011"},"011 Delle","Fuss/ Rolle",{"$f":"'[1]025'!F18","v":"028"},"028 Fuss/ Rolle"]
["Verpackung","Knick",{"$f":"'[1]025'!B7","v":"012"},"012 Knick","Glasplatten, Absteller usw.",{"$f":"'[1]025'!F20","v":"029"},"029 Glasplatten, Absteller usw."]
["beschädigt","Kratzer",{"$f":"'[1]025'!B8","v":"013"},"013 Kratzer","Griff",{"$f":"'[1]025'!F21","v":"030"},"030 Griff"]
[25,"lose",{"$f":"'[1]025'!B9","v":"014"},"014 lose","Kompressorlagerung",{"$f":"'[1]025'!F27","v":"033"},"033 Kompressorlagerung"]
[null,"Riss",{"$f":"'[1]025'!B10","v":"015"},"015 Riss","Rueckseite",{"$f":"'[1]025'!F30","v":"034"},"034 Rueckseite"]
["Transport-","Scheuerstelle",{"$f":"'[1]025'!B11","v":"016"},"016 Scheuerstelle","Sockelblende",{"$f":"'[1]025'!F38","v":"038"},"038 Sockelblende"]
["schaden","Stauchung",{"$f":"'[1]025'!B12","v":"017"},"017 Stauchung","Teile der Innenausstattung",{"$f":"'[1]025'!F39","v":"039"},"039 Teile der Innenausstattung"]
["Verpackung",null,null,null,"Geraetedecke/ Tischplatte",{"$f":"'[1]025'!F19","v":"040"},"040 Geraetedecke/ Tischplatte"]
["nicht mehr",null,null,null,"Truhenabdeckrahmen",{"$f":"'[1]025'!F40","v":"041"},"041 Truhenabdeckrahmen"]
["vorhanden",null,null,null,"Beleuchtung",{"$f":"'[1]025'!F9","v":"059"},"059 Beleuchtung"]
[26,null,null,null,"Querverbindung",{"$f":"'[1]025'!F29","v":"099"},"099 Querverbindung"]
[null,null,null,null,"Kompressortraeger",{"$f":"'[1]025'!F28","v":"309"},"309 Kompressortraeger"]
["Schadensur-",null,null,null,"Innenbehälter Gefrierteil",{"$f":"'[1]025'!F22","v":"364"},"364 Innenbehälter Gefrierteil"]
["sache unklar",null,null,null,"Innentür Gefrierteil",{"$f":"'[1]025'!F24","v":"374"},"374 Innentür Gefrierteil"]
["Verpackung",null,null,null,"Seitenwand rechts, Oben",{"$f":"'[1]025'!F36","v":"378"},"378 Seitenwand rechts, Oben"]
["nicht",null,null,null,"Seitenwand rechts, Mitte",{"$f":"'[1]025'!F35","v":"379"},"379 Seitenwand rechts, Mitte"]
[null,null,null,null,"Seitenwand rechts, Unten",{"$f":"'[1]025'!F37","v":"380"},"380 Seitenwand rechts, Unten"]
["beschädigt",null,null,null,"Seitenwand links, Oben",{"$f":"'[1]025'!F33","v":"381"},"381 Seitenwand links, Oben"]
[null,null,null,null,"Seitenwand links, Mitte",{"$f":"'[1]025'!F32","v":"382"},"382 Seitenwand links, Mitte"]
[null,null,null,null,"Seitenwand links, Unten",{"$f":"'[1]025'!F34","v":"383"},"383 Seitenwand links, Unten"]
[null,null,null,null,"Scharnier/ Tuerlagerung",{"$f":"'[1]025'!F31","v":"418"},"418 Scharnier/ Tuerlagerung"]
[null,null,null,null,"Bedienoberflaeche",{"$f":"'[1]025'!F8","v":"419"},"419 Bedienoberflaeche"]
[null,null,null,null,"Aussentuer, Oben",{"$f":"'[1]025'!F6","v":"420"},"420 Aussentuer, Oben"]
[null,null,null,null,"Aussentuer, Mitte",{"$f":"'[1]025'!F5","v":"421"},"421 Aussentuer, Mitte"]
[null,null,null,null,"Aussentuer, Unten",{"$f":"'[1]025'!F7","v":"422"},"422 Aussentuer, Unten"]
[null,null,null,null,"untere Aussentuer, Oben",{"$f":"'[1]025'!F41","v":"423"},"423 untere Aussentuer, Oben"]
[null,null,null,null,"untere Aussentuer, Unten",{"$f":"'[1]025'!F42","v":"424"},"424 untere Aussentuer, Unten"]
[null,null,null,null,"Front Links (Truhe)",{"$f":"'[1]025'!F15","v":"425"},"425 Front Links (Truhe)"]
[null,null,null,null,"Front Mitte (Truhe)",{"$f":"'[1]025'!F16","v":"426"},"426 Front Mitte (Truhe)"]
[null,null,null,null,"Front Rechts (Truhe)",{"$f":"'[1]025'!F17","v":"427"},"427 Front Rechts (Truhe)"]
[null,null,null,null,"Deckel (Truhe) Links ",{"$f":"'[1]025'!F11","v":"428"},"428 Deckel (Truhe) Links "]
[null,null,null,null,"Deckel (Truhe) Mitte",{"$f":"'[1]025'!F12","v":"429"},"429 Deckel (Truhe) Mitte"]
[null,null,null,null,"Deckel (Truhe) Rechts",{"$f":"'[1]025'!F13","v":"430"},"430 Deckel (Truhe) Rechts"]
[null,null,null,null,"Branding (Aufkleber, Logo, …)",{"$f":"'[1]025'!F10","v":"530"},"530 Branding (Aufkleber, Logo, …)"]
[null,null,null,null,"Kompartimenttür",{"$f":"'[1]025'!F26","v":"692"},"692 Kompartimenttür"]
[null,null,null,null,"Innenbehälter Kühlteil",{"$f":"'[1]025'!F23","v":"701"},"701 Innenbehälter Kühlteil"]
[null,null,null,null,"Innentür Kühlteil",{"$f":"'[1]025'!F25","v":"702"},"702 Innentür Kühlteil"]
[null,null,null,null,"Fehlerort nicht zuordenbar",{"$f":"'[1]025'!F14","v":"999"},"999 Fehlerort nicht zuordenbar"]
["Produkt-","undicht",{"$f":"'[1]030'!B21","v":"002"},{"$f":"C212&\" \"&B212","v":"002 undicht"},"Verdampfer Gefrierteil",{"$f":"'[1]030'!F80","v":"017"},"017 Verdampfer Gefrierteil"]
["mangel","Bruch",{"$f":"'[1]030'!B6","v":"010"},"010 Bruch","Verdampfer Kuehlteil",{"$f":"'[1]030'!F81","v":"018"},"018 Verdampfer Kuehlteil"]
[30,"Knick",{"$f":"'[1]030'!B12","v":"012"},"012 Knick","Verfluessiger",{"$f":"'[1]030'!F83","v":"020"},"020 Verfluessiger"]
[null,"lose",{"$f":"'[1]030'!B15","v":"014"},"014 lose","Deckel (Truhe) / Schiebedeckel",{"$f":"'[1]030'!F17","v":"026"},"026 Deckel (Truhe) / Schiebedeckel"]
[null,"Riss",{"$f":"'[1]030'!B16","v":"015"},"015 Riss","Griff",{"$f":"'[1]030'!F31","v":"030"},"030 Griff"]
["(kein ","fehlt",{"$f":"'[1]030'!B9","v":"018"},"018 fehlt","Rueckseite",{"$f":"'[1]030'!F53","v":"034"},"034 Rueckseite"]
["Transport-","Kondenswasser",{"$f":"'[1]030'!B13","v":"019"},"019 Kondenswasser","Seitenwand allgemein",{"$f":"'[1]030'!F59","v":"036"},"036 Seitenwand allgemein"]
["schaden","laeuft ueber",{"$f":"'[1]030'!B14","v":"020"},"020 laeuft ueber","Teile der Innenausstattung",{"$f":"'[1]030'!F64","v":"039"},"039 Teile der Innenausstattung"]
["erkennbar)","schief",{"$f":"'[1]030'!B18","v":"022"},"022 schief","Geraetedecke/ Tischplatte",{"$f":"'[1]030'!F30","v":"040"},"040 Geraetedecke/ Tischplatte"]
[null,"schwergaengig",{"$f":"'[1]030'!B19","v":"023"},"023 schwergaengig","Truhenabdeckrahmen",{"$f":"'[1]030'!F69","v":"041"},"041 Truhenabdeckrahmen"]
[null,"Vereisung",{"$f":"'[1]030'!B23","v":"024"},"024 Vereisung","Tuer Gefrierteil",{"$f":"'[1]030'!F70","v":"042"},"042 Tuer Gefrierteil"]
[null,"Verbogen/Verzogen",{"$f":"'[1]030'!B22","v":"025"},"025 Verbogen/Verzogen","Tuer Kuehlteil",{"$f":"'[1]030'!F71","v":"043"},{"$f":"F223&\" \"&E223","v":"043 Tuer Kuehlteil"}]
[null,"verstellt/versetzt",{"$f":"'[1]030'!B25","v":"027"},"027 verstellt/versetzt","Gehaeusedurchfuehrung",{"$f":"'[1]030'!F29","v":"047"},"047 Gehaeusedurchfuehrung"]
[null,"verstopft",{"$f":"'[1]030'!B26","v":"028"},"028 verstopft","Lichtschalter",{"$f":"'[1]030'!F46","v":"049"},"049 Lichtschalter"]
[null,"zu stark angezogen",{"$f":"'[1]030'!B28","v":"029"},"029 zu stark angezogen","Regelknopf",{"$f":"'[1]030'!F51","v":"050"},"050 Regelknopf"]
[null,"blockiert / klemmt",{"$f":"'[1]030'!B5","v":"058"},"058 blockiert / klemmt","Tauwasserablauf",{"$f":"'[1]030'!F60","v":"051"},"051 Tauwasserablauf"]
[null,"Teil falsch",{"$f":"'[1]030'!B20","v":"079"},"079 Teil falsch","Tauwasserschale",{"$f":"'[1]030'!F62","v":"052"},"052 Tauwasserschale"]
[null,"Geruch",{"$f":"'[1]030'!B10","v":"083"},"083 Geruch","Thermostat-/ Lichtschaltergehaeuse",{"$f":"'[1]030'!F66","v":"053"},"053 Thermostat-/ Lichtschaltergehaeuse"]
[null,"falsch montiert",{"$f":"'[1]030'!B7","v":"091"},"091 falsch montiert","Tuer Sterne-Fach",{"$f":"'[1]030'!F72","v":"056"},"056 Tuer Sterne-Fach"]
[null,"Schaumaustritt",{"$f":"'[1]030'!B17","v":"103"},"103 Schaumaustritt","Heizung",{"$f":"'[1]030'!F34","v":"060"},"060 Heizung"]
[null,"Verschmutzt",{"$f":"'[1]030'!B24","v":"148"},"148 Verschmutzt","Temperaturfuehler",{"$f":"'[1]030'!F65","v":"073"},"073 Temperaturfuehler"]
[null,"walkt",{"$f":"'[1]030'!B27","v":"204"},"204 walkt","Dekorrahmen",{"$f":"'[1]030'!F19","v":"094"},"094 Dekorrahmen"]
[null,"Isolationsfehler",{"$f":"'[1]030'!B11","v":"296"},"296 Isolationsfehler","Tauwasserverschluss-Stopfen GT",{"$f":"'[1]030'!F63","v":"096"},"096 Tauwasserverschluss-Stopfen GT"]
[null,"Fehlerart nicht zuordenbar",{"$f":"'[1]030'!B8","v":"999"},"999 Fehlerart nicht zuordenbar","Tuerkoppelungssatz",{"$f":"'[1]030'!F73","v":"097"},"097 Tuerkoppelungssatz"]
[null,null,null,null,"Querverbindung",{"$f":"'[1]030'!F50","v":"099"},"099 Querverbindung"]
[null,null,null,null,"Schublade",{"$f":"'[1]030'!F58","v":"102"},"102 Schublade"]
[null,null,null,null,"Schaltnocken/ Tuermagnet",{"$f":"'[1]030'!F54","v":"104"},"104 Schaltnocken/ Tuermagnet"]
[null,null,null,null,"Abdeckung",{"$f":"'[1]030'!F5","v":"105"},"105 Abdeckung"]
[null,null,null,null,"Dichtung Tuer Sterne-Fach",{"$f":"'[1]030'!F22","v":"159"},"159 Dichtung Tuer Sterne-Fach"]
[null,null,null,null,"Beipack",{"$f":"'[1]030'!F11","v":"232"},"232 Beipack"]
[null,null,null,null,"Ventil Wasserzulauf",{"$f":"'[1]030'!F75","v":"252"},"252 Ventil Wasserzulauf"]
[null,null,null,null,"Verdampferwanne",{"$f":"'[1]030'!F82","v":"257"},"257 Verdampferwanne"]
[null,null,null,null,"Auszug-/ Teleskopschiene",{"$f":"'[1]030'!F9","v":"259"},"259 Auszug-/ Teleskopschiene"]
[null,null,null,null,"Eiswuerfelbereiter",{"$f":"'[1]030'!F25","v":"265"},"265 Eiswuerfelbereiter"]
[null,null,null,null,"Trennplatte vertikal",{"$f":"'[1]030'!F68","v":"266"},"266 Trennplatte vertikal"]
[null,null,null,null,"Kaelteakku",{"$f":"'[1]030'!F42","v":"272"},"272 Kaelteakku"]
[null,null,null,null,"Verbindungsbausatz SBS",{"$f":"'[1]030'!F79","v":"273"},"273 Verbindungsbausatz SBS"]
[null,null,null,null,"Druckausgleichsventil",{"$f":"'[1]030'!F24","v":"274"},"274 Druckausgleichsventil"]
[null,null,null,null,"Wasserschlauch",{"$f":"'[1]030'!F86","v":"275"},"275 Wasserschlauch"]
[null,null,null,null,"Tauwasserablaufventil",{"$f":"'[1]030'!F61","v":"276"},"276 Tauwasserablaufventil"]
[null,null,null,null,"Eiswuerfelschale",{"$f":"'[1]030'!F26","v":"295"},"295 Eiswuerfelschale"]
[null,null,null,null,"Kompressortraeger",{"$f":"'[1]030'!F44","v":"309"},"309 Kompressortraeger"]
[null,null,null,null,"Draht-/ Holzrost",{"$f":"'[1]030'!F23","v":"336"},"336 Draht-/ Holzrost"]
[null,null,null,null,"Innenbehälter Gefrierteil",{"$f":"'[1]030'!F36","v":"364"},"364 Innenbehälter Gefrierteil"]
[null,null,null,null,"Innentür Gefrierteil",{"$f":"'[1]030'!F39","v":"374"},"374 Innentür Gefrierteil"]
[null,null,null,null,"Schliessdaempfung",{"$f":"'[1]030'!F56","v":"408"},"408 Schliessdaempfung"]
[null,null,null,null,"Scharnier/ Tuerlagerung",{"$f":"'[1]030'!F55","v":"418"},"418 Scharnier/ Tuerlagerung"]
[null,null,null,null,"Bedienoberflaeche",{"$f":"'[1]030'!F10","v":"419"},"419 Bedienoberflaeche"]
[null,null,null,null,"Halter fuer Auszug-/ Teleskopschiene",{"$f":"'[1]030'!F33","v":"431"},"431 Halter fuer Auszug-/ Teleskopschiene"]
[null,null,null,null,"Ausgabeeinheit Eis/ Wasser",{"$f":"'[1]030'!F8","v":"432"},"432 Ausgabeeinheit Eis/ Wasser"]
[null,null,null,null,"Deckel Elektronikeinschub",{"$f":"'[1]030'!F18","v":"434"},"434 Deckel Elektronikeinschub"]
[null,null,null,null,"Wassertank",{"$f":"'[1]030'!F87","v":"436"},"436 Wassertank"]
[null,null,null,null,"Rollenplatte",{"$f":"'[1]030'!F52","v":"437"},"437 Rollenplatte"]
[null,null,null,null,"Trennplatte Horizontal/ Zwischensteg",{"$f":"'[1]030'!F67","v":"438"},"438 Trennplatte Horizontal/ Zwischensteg"]
[null,null,null,null,"Wasserfilter",{"$f":"'[1]030'!F85","v":"471"},"471 Wasserfilter"]
[null,null,null,null,"Schliessmechanismus",{"$f":"'[1]030'!F57","v":"472"},"472 Schliessmechanismus"]
[null,null,null,null,"Luftfuehrung",{"$f":"'[1]030'!F48","v":"520"},"520 Luftfuehrung"]
[null,null,null,null,"Wasserzulauf (Eiswuerfelbereiter)",{"$f":"'[1]030'!F88","v":"521"},"521 Wasserzulauf (Eiswuerfelbereiter)"]
[null,null,null,null,"Ventilator - Verfluessiger",{"$f":"'[1]030'!F78","v":"522"},"522 Ventilator - Verfluessiger"]
[null,null,null,null,"Ventilator - GT",{"$f":"'[1]030'!F76","v":"523"},"523 Ventilator - GT"]
[null,null,null,null,"Ventilator - KT/ Biofresh",{"$f":"'[1]030'!F77","v":"524"},"524 Ventilator - KT/ Biofresh"]
[null,null,null,null,"Kuehlkassette",{"$f":"'[1]030'!F45","v":"525"},"525 Kuehlkassette"]
[null,null,null,null,"Griffbefestigung (Nietmutter, …)",{"$f":"'[1]030'!F32","v":"526"},"526 Griffbefestigung (Nietmutter, …)"]
[null,null,null,null,"Abdeckung Verdampfer",{"$f":"'[1]030'!F6","v":"528"},"528 Abdeckung Verdampfer"]
[null,null,null,null,"Wandabstandhalter",{"$f":"'[1]030'!F84","v":"529"},"529 Wandabstandhalter"]
[null,null,null,null,"Branding (Aufkleber, Logo, …)",{"$f":"'[1]030'!F13","v":"530"},"530 Branding (Aufkleber, Logo, …)"]
[null,null,null,null,"Dichtung Tuer Gefrierteil",{"$f":"'[1]030'!F20","v":"531"},"531 Dichtung Tuer Gefrierteil"]
[null,null,null,null,"Dichtung Tuer Kuehlteil",{"$f":"'[1]030'!F21","v":"532"},"532 Dichtung Tuer Kuehlteil"]
[null,null,null,null,"Absorber",{"$f":"'[1]030'!F7","v":"596"},"596 Absorber"]
[null,null,null,null,"Crushmodul",{"$f":"'[1]030'!F15","v":"599"},"599 Crushmodul"]
[null,null,null,null,"Fusspedaloeffner",{"$f":"'[1]030'!F28","v":"600"},"600 Fusspedaloeffner"]
[null,null,null,null,"Luftfilter",{"$f":"'[1]030'!F47","v":"604"},"604 Luftfilter"]
[null,null,null,null,"Profilleiste (Price-tag, Scannerschiene,..)",{"$f":"'[1]030'!F49","v":"607"},"607 Profilleiste (Price-tag, Scannerschiene,..)"]
[null,null,null,null,"Türöffnungsmodul",{"$f":"'[1]030'!F74","v":"609"},"609 Türöffnungsmodul"]
[null,null,null,null,"Wildgehaenge",{"$f":"'[1]030'!F89","v":"611"},"611 Wildgehaenge"]
[null,null,null,null,"Blende Bedienteil, -oberflaeche (User Interface) ",{"$f":"'[1]030'!F12","v":"613"},{"$f":"F287&\" \"&E287","v":"613 Blende Bedienteil, -oberflaeche (User Interface) "}]
[null,null,null,null,"Humidifier (Hydrobreeze)",{"$f":"'[1]030'!F35","v":"683"},"683 Humidifier (Hydrobreeze)"]
[null,null,null,null,"Kompartimenttür",{"$f":"'[1]030'!F43","v":"692"},"692 Kompartimenttür"]
[null,null,null,null,"CO2-Notkühlung",{"$f":"'[1]030'!F14","v":"693"},"693 CO2-Notkühlung"]
[null,null,null,null,"Cryo-Racks",{"$f":"'[1]030'!F16","v":"694"},"694 Cryo-Racks"]
[null,null,null,null,"Innenbehälter Kühlteil Edelstahlverkleidung",{"$f":"'[1]030'!F38","v":"699"},"699 Innenbehälter Kühlteil Edelstahlverkleidung"]
[null,null,null,null,"Innentür Kühlteil Edelstahlverkleidung",{"$f":"'[1]030'!F41","v":"700"},"700 Innentür Kühlteil Edelstahlverkleidung"]
[null,null,null,null,"Innenbehälter Kühlteil",{"$f":"'[1]030'!F37","v":"701"},"701 Innenbehälter Kühlteil"]
[null,null,null,null,"Innentür Kühlteil",{"$f":"'[1]030'!F40","v":"702"},"702 Innentür Kühlteil"]
[null,null,null,null,"Fehlerort nicht zuordenbar",{"$f":"'[1]030'!F27","v":"999"},"999 Fehlerort nicht zuordenbar"]
["kein Fehler","Einbau-/Aufstellfehler",{"$f":"'[1]080'!B7","v":"081"},{"$f":"C297&\" \"&B297","v":"081 Einbau-/Aufstellfehler"},"Ventil Kaeltekreislauf",{"$f":"'[1]080'!F31","v":"009"},"009 Ventil Kaeltekreislauf"]
[80,"Fehler tritt z. Zt. nicht auf",{"$f":"'[1]080'!B9","v":"082"},{"$f":"C298&\" \"&B298","v":"082 Fehler tritt z. Zt. nicht auf"},"Griff",{"$f":"'[1]080'!F11","v":"030"},{"$f":"F298&\" \"&E298","v":"030 Griff"}]
[null,"Geruch",{"$f":"'[1]080'!B11","v":"083"},"083 Geruch","Rueckseite",{"$f":"'[1]080'!F22","v":"034"},"034 Rueckseite"]
[null,"Umgebungstemperatur zu kalt",{"$f":"'[1]080'!B24","v":"085"},"085 Umgebungstemperatur zu kalt","Tuer Gefrierteil",{"$f":"'[1]080'!F28","v":"042"},"042 Tuer Gefrierteil"]
[null,"Umgebungstemperatur zu warm",{"$f":"'[1]080'!B25","v":"086"},"086 Umgebungstemperatur zu warm","Tuer Kuehlteil",{"$f":"'[1]080'!F29","v":"043"},"043 Tuer Kuehlteil"]
[null,"Verschmutzt",{"$f":"'[1]080'!B26","v":"148"},"148 Verschmutzt","Tauwasserablauf",{"$f":"'[1]080'!F25","v":"051"},"051 Tauwasserablauf"]
[null,"normale Betriebsgeraeusche",{"$f":"'[1]080'!B13","v":"304"},"304 normale Betriebsgeraeusche","Tauwasserschale",{"$f":"'[1]080'!F26","v":"052"},"052 Tauwasserschale"]
[null,"Teil nicht mehr vorhanden",{"$f":"'[1]080'!B22","v":"305"},"305 Teil nicht mehr vorhanden","Beleuchtung",{"$f":"'[1]080'!F5","v":"059"},"059 Beleuchtung"]
[null,"Demomode bei Inbetriebnahme",{"$f":"'[1]080'!B6","v":"339"},"339 Demomode bei Inbetriebnahme","Kompressor",{"$f":"'[1]080'!F18","v":"063"},"063 Kompressor"]
[null,"Spannungsversorgung fehlt",{"$f":"'[1]080'!B21","v":"340"},"340 Spannungsversorgung fehlt","Elektronikplatine",{"$f":"'[1]080'!F6","v":"172"},"172 Elektronikplatine"]
[null,"Tueranschlag wechsel",{"$f":"'[1]080'!B23","v":"341"},"341 Tueranschlag wechsel","Winterheizung",{"$f":"'[1]080'!F38","v":"199"},"199 Winterheizung"]
[null,"Prospektangaben nicht eindeutig",{"$f":"'[1]080'!B19","v":"342"},"342 Prospektangaben nicht eindeutig","Geraetemerkmale",{"$f":"'[1]080'!F10","v":"206"},"206 Geraetemerkmale"]
[null,"Bedienungsfehler/nicht Beachtung BDA",{"$f":"'[1]080'!B5","v":"343"},"343 Bedienungsfehler/nicht Beachtung BDA","Prospektangaben",{"$f":"'[1]080'!F21","v":"207"},"207 Prospektangaben"]
[null,"Oxidation",{"$f":"'[1]080'!B18","v":"344"},"344 Oxidation","Technische Klaerung (Funktionsbeschreibung)",{"$f":"'[1]080'!F27","v":"208"},"208 Technische Klaerung (Funktionsbeschreibung)"]
[null,"Normale Temperaturdifferenzen/ -schwankungen",{"$f":"'[1]080'!B15","v":"345"},"345 Normale Temperaturdifferenzen/ -schwankungen","Gehaeuse",{"$f":"'[1]080'!F8","v":"223"},"223 Gehaeuse"]
[null,"falsches Geraet",{"$f":"'[1]080'!B8","v":"346"},"346 falsches Geraet","Kaeltekreislauf",{"$f":"'[1]080'!F17","v":"245"},"245 Kaeltekreislauf"]
[null,"normaler Energieverbrauch",{"$f":"'[1]080'!B17","v":"406"},"406 normaler Energieverbrauch","Ventil Wasserzulauf",{"$f":"'[1]080'!F32","v":"252"},"252 Ventil Wasserzulauf"]
[null,"normale Laufzeit",{"$f":"'[1]080'!B14","v":"407"},"407 normale Laufzeit","Innenbehälter Gefrierteil",{"$f":"'[1]080'!F14","v":"364"},"364 Innenbehälter Gefrierteil"]
[null,"normale Vereisung, Bereifung",{"$f":"'[1]080'!B16","v":"408"},"408 normale Vereisung, Bereifung","Schliessdaempfung",{"$f":"'[1]080'!F23","v":"408"},"408 Schliessdaempfung"]
[null,"Inkompatibel (z.B. Tablet, Smartphone)",{"$f":"'[1]080'!B12","v":"410"},"410 Inkompatibel (z.B. Tablet, Smartphone)","Hausinstallation",{"$f":"'[1]080'!F12","v":"473"},"473 Hausinstallation"]
[null,"Signalstaerke",{"$f":"'[1]080'!B20","v":"412"},"412 Signalstaerke","Geraetebelueftung",{"$f":"'[1]080'!F9","v":"474"},"474 Geraetebelueftung"]
[null,"Fehlerart nicht zuordenbar",999,{"$f":"C318&\" \"&B318","v":"999 Fehlerart nicht zuordenbar"},"Loetstellen",{"$f":"'[1]080'!F19","v":"475"},"475 Loetstellen"]
[null,null,null,null,"Luft-, Kerntemperatur",{"$f":"'[1]080'!F20","v":"476"},"476 Luft-, Kerntemperatur"]
[null,null,null,null,"Ist/ Sollwertanzeige",{"$f":"'[1]080'!F16","v":"479"},"479 Ist/ Sollwertanzeige"]
[null,null,null,null,"Ventilator - Verfluessiger",{"$f":"'[1]080'!F35","v":"522"},"522 Ventilator - Verfluessiger"]
[null,null,null,null,"Ventilator - GT",{"$f":"'[1]080'!F33","v":"523"},"523 Ventilator - GT"]
[null,null,null,null,"Ventilator - KT/ Biofresh",{"$f":"'[1]080'!F34","v":"524"},"524 Ventilator - KT/ Biofresh"]
[null,null,null,null,"Wandabstandhalter",{"$f":"'[1]080'!F37","v":"529"},"529 Wandabstandhalter"]
[null,null,null,null,"Smart Device Box",{"$f":"'[1]080'!F24","v":"608"},"608 Smart Device Box"]
[null,null,null,null,"Türöffnungsmodul",{"$f":"'[1]080'!F30","v":"609"},"609 Türöffnungsmodul"]
[null,null,null,null,"Verbrauchsartikel (Filter, ..)",{"$f":"'[1]080'!F36","v":"610"},"610 Verbrauchsartikel (Filter, ..)"]
[null,null,null,null,"Humidifier (Hydrobreeze)",{"$f":"'[1]080'!F13","v":"683"},"683 Humidifier (Hydrobreeze)"]
[null,null,null,null,"Innenbehälter Kühlteil",{"$f":"'[1]080'!F15","v":"701"},"701 Innenbehälter Kühlteil"]
[null,null,null,null,"Fehlerort nicht zuordenbar",{"$f":"'[1]080'!F7","v":"999"},{"$f":"F330&\" \"&E330","v":"999 Fehlerort nicht zuordenbar"}]
["Fehler tritt zur","Zeitweises Geräusch",{"$f":"'[1]101'!B14","v":"483"},"483 Zeitweises Geräusch","Verdampfer Gefrierteil","017","017 Verdampfer Gefrierteil"]
["Zeit nicht auf","Zeitweise Temperaturabweichung",{"$f":"'[1]101'!B9","v":"484"},"484 Zeitweise Temperaturabweichung","Verdampfer Kuehlteil",{"$f":"'[1]101'!F30","v":"018"},"018 Verdampfer Kuehlteil"]
[101,"Zeitweise Alarmmeldung ",{"$f":"'[1]101'!B6","v":"485"},"485 Zeitweise Alarmmeldung ","Deckel (Truhe) / Schiebedeckel",{"$f":"'[1]101'!F7","v":"026"},"026 Deckel (Truhe) / Schiebedeckel"]
[null,"Zeitweises Auslösen der Sicherheitseinrichtung",{"$f":"'[1]101'!B13","v":"486"},"486 Zeitweises Auslösen der Sicherheitseinrichtung","Glasplatten, Absteller usw.",{"$f":"'[1]101'!F16","v":"029"},"029 Glasplatten, Absteller usw."]
[null,"Zeitweise zu niedrige / hohe  Luftfeuchtigkeit",{"$f":"'[1]101'!B10","v":"487"},"487 Zeitweise zu niedrige / hohe  Luftfeuchtigkeit","Seitenwand allgemein",{"$f":"'[1]101'!F23","v":"036"},"036 Seitenwand allgemein"]
[null,"Keine Verbindung",{"$f":"'[1]101'!B5","v":"488"},"488 Keine Verbindung","Geraetedecke/ Tischplatte",{"$f":"'[1]101'!F15","v":"040"},"040 Geraetedecke/ Tischplatte"]
[null,"Zeitweise Kondensat / Betauung",{"$f":"'[1]101'!B8","v":"489"},"489 Zeitweise Kondensat / Betauung","Tuer Gefrierteil",{"$f":"'[1]101'!F26","v":"042"},"042 Tuer Gefrierteil"]
[null,"Zeitweiser Totalausfall",{"$f":"'[1]101'!B12","v":"490"},"490 Zeitweiser Totalausfall","Tuer Kuehlteil",{"$f":"'[1]101'!F27","v":"043"},"043 Tuer Kuehlteil"]
[null,"Zeitweiser Fehler der Beleuchtung",{"$f":"'[1]101'!B11","v":"491"},"491 Zeitweiser Fehler der Beleuchtung","Tauwasserablauf",{"$f":"'[1]101'!F24","v":"051"},"051 Tauwasserablauf"]
[null,"Zeitweise Blockiert / Schwergängig",{"$f":"'[1]101'!B7","v":"492"},"492 Zeitweise Blockiert / Schwergängig","Beleuchtung",{"$f":"'[1]101'!F6","v":"059"},"059 Beleuchtung"]
[null,null,null,null,"Schublade",{"$f":"'[1]101'!F22","v":"102"},"102 Schublade"]
[null,null,null,null,"Dichtung Tuer Sterne-Fach",{"$f":"'[1]101'!F10","v":"159"},"159 Dichtung Tuer Sterne-Fach"]
[null,null,null,null,"Elektronikplatine",{"$f":"'[1]101'!F12","v":"172"},"172 Elektronikplatine"]
[null,null,null,null,"Eiswuerfelbereiter",{"$f":"'[1]101'!F11","v":"265"},"265 Eiswuerfelbereiter"]
[null,null,null,null,"Tauwasserablaufventil",{"$f":"'[1]101'!F25","v":"276"},"276 Tauwasserablaufventil"]
[null,null,null,null,"Innenbehälter Gefrierteil",{"$f":"'[1]101'!F17","v":"364"},"364 Innenbehälter Gefrierteil"]
[null,null,null,null,"Schliessdaempfung",{"$f":"'[1]101'!F20","v":"408"},"408 Schliessdaempfung"]
[null,null,null,null,"Scharnier/ Tuerlagerung",{"$f":"'[1]101'!F19","v":"418"},"418 Scharnier/ Tuerlagerung"]
[null,null,null,null,"Ausgabeeinheit Eis/ Wasser",{"$f":"'[1]101'!F5","v":"432"},"432 Ausgabeeinheit Eis/ Wasser"]
[null,null,null,null,"Wassertank",{"$f":"'[1]101'!F31","v":"436"},"436 Wassertank"]
[null,null,null,null,"Schliessmechanismus",{"$f":"'[1]101'!F21","v":"472"},"472 Schliessmechanismus"]
[null,null,null,null,"Dichtung Tuer Gefrierteil",{"$f":"'[1]101'!F8","v":"531"},"531 Dichtung Tuer Gefrierteil"]
[null,null,null,null,"Dichtung Tuer Kuehlteil",{"$f":"'[1]101'!F9","v":"532"},"532 Dichtung Tuer Kuehlteil"]
[null,null,null,null,"Fusspedaloeffner",{"$f":"'[1]101'!F14","v":"600"},"600 Fusspedaloeffner"]
[null,null,null,null,"Türöffnungsmodul",{"$f":"'[1]101'!F28","v":"609"},"609 Türöffnungsmodul"]
[null,null,null,null,"Innenbehälter Kühlteil",{"$f":"'[1]101'!F18","v":"701"},"701 Innenbehälter Kühlteil"]
[null,null,null,null,"Fehlerort nicht zuordenbar",{"$f":"'[1]101'!F13","v":"999"},"999 Fehlerort nicht zuordenbar"]
["Vernetzung/","Leitungen Verdrahtungsfehler",{"$f":"'[1]046'!B9","v":"297"},{"$f":"C358&\" \"&B358","v":"297 Leitungen Verdrahtungsfehler"},"Schnittstelle (RS 485, RS 232, CAN BUS, MOD BUS, Ethernet, IR-Schluessel, WLAN, BT, USB …)",{"$f":"'[1]046'!F13","v":"470"},{"$f":"F358&\" \"&E358","v":"470 Schnittstelle (RS 485, RS 232, CAN BUS, MOD BUS, Ethernet, IR-Schluessel, WLAN, BT, USB …)"}]
["Kommunikation","Inkompatibel (z.B. Tablet, Smartphone)",{"$f":"'[1]046'!B6","v":"410"},"410 Inkompatibel (z.B. Tablet, Smartphone)","Abschlusswiderstand",{"$f":"'[1]046'!F5","v":"595"},"595 Abschlusswiderstand"]
[46,"Konfigurationsfehler",{"$f":"'[1]046'!B8","v":"411"},"411 Konfigurationsfehler","APP / Software",{"$f":"'[1]046'!F6","v":"597"},"597 APP / Software"]
[null,"Signalstaerke",{"$f":"'[1]046'!B10","v":"412"},"412 Signalstaerke","Infrarot-Schluessel",{"$f":"'[1]046'!F7","v":"601"},"601 Infrarot-Schluessel"]
[null,"Keine Verbindung",{"$f":"'[1]046'!B7","v":"488"},"488 Keine Verbindung","Konverter für seriellen Anschluss (EVCO, Carel)",{"$f":"'[1]046'!F8","v":"602"},"602 Konverter für seriellen Anschluss (EVCO, Carel)"]
[null,"Softwarefehler (BUG)",{"$f":"'[1]046'!B11","v":"588"},"588 Softwarefehler (BUG)","LAN-Kabel",{"$f":"'[1]046'!F9","v":"603"},"603 LAN-Kabel"]
[null,null,null,{"$f":"C377&\" \"&B377","v":"999 Fehlerart nicht zuordenbar"},"Master / Slave Modul (Homedialog)",{"$f":"'[1]046'!F11","v":"605"},"605 Master / Slave Modul (Homedialog)"]
[null,null,null,null,"Smart Device Box",{"$f":"'[1]046'!F14","v":"608"},"608 Smart Device Box"]
[null,null,null,null,"NFC, RFID Chip",{"$f":"'[1]046'!F12","v":"685"},"685 NFC, RFID Chip"]
[null,null,null,null,"Smartsensoren",{"$f":"'[1]046'!F17","v":"686"},"686 Smartsensoren"]
[null,null,null,null,"Lizenzshop",{"$f":"'[1]046'!F10","v":"695"},"695 Lizenzshop"]
[null,null,null,null,"SmartMonitoring",{"$f":"'[1]046'!F16","v":"696"},"696 SmartMonitoring"]
[null,null,null,null,"SmartCoolingHub",{"$f":"'[1]046'!F15","v":"697"},"697 SmartCoolingHub"]
["Wasserverlust","Bruch",201,"201 Bruch","Wasserschlauch",210,"210 Wasserschlauch"]
[200,"Riss",207,"207 Riss","Wasserventil",211,"211 Wasserventil"]
[null,"Montagefehler",208,"208 Montagefehler","Dichtung",212,"212 Dichtung"]
[null,"Undicht",209,"209 Undicht","Ablaufpumpe",213,"213 Ablaufpumpe"]
[null,"Überfüllung",205,"205 Überfüllung","Niveausensor",214,"214 Niveausensor"]
[null,"Beschädigung",206,"206 Beschädigung",null,null," "]
[null,"Fehlerart nicht zuordenbar","999","999 Fehlerart nicht zuordenbar"]

{"sheet":"Codes d'erreur_FR","index":2,"n_rows":383,"n_cols":7,"rows_kept":383,"cut":false,"hidden":true,"merged":[[146,0,159,0],[303,0,304,0],[398,1,398,6],[1,0,3,0],[79,0,87,0]]}
[]
["Circuit de refroidissement","Soudure non étanche",1,{"$f":"C2&\" \"&B2","v":"1 Soudure non étanche"},"Capillaires",2,{"$f":"F2&\" \"&E2","v":"2 Capillaires"}]
[null,"Pli",12,{"$f":"C3&\" \"&B3","v":"12 Pli"},"Raccord de remplissage du compresseur (liaison)",3,{"$f":"F3&\" \"&E3","v":"3 Raccord de remplissage du compresseur (liaison)"}]
[null,"Grippé",23,"23 Grippé","Compresseur–cadre chauffant (liaison)",4,"4 Compresseur–cadre chauffant (liaison)"]
[5,"Bouché",28,"28 Bouché","Compresseur–conduite d’aspiration (liaison)",5,"5 Compresseur–conduite d’aspiration (liaison)"]
[null,"Se bloque / coince",58,"58 Se bloque / coince","Compresseur–condenseur (liaison)",7,"7 Compresseur–condenseur (liaison)"]
[null,"Pas de puissance",60,"60 Pas de puissance","Vanne circuit réfrigérant",9,"9 Vanne circuit réfrigérant"]
[null,"Raccord Lokring non étanche",291,"291 Raccord Lokring non étanche","Cadre chauffant",11,"11 Cadre chauffant"]
[null,"Matériau / tuyau non étanche",292,"292 Matériau / tuyau non étanche","Cadre chauffant–condenseur (liaison)",12,"12 Cadre chauffant–condenseur (liaison)"]
[null,"Soudure bouchée",293,"293 Soudure bouchée","Entrée conduite d’aspiration–capillaires (liaison)",13,"13 Entrée conduite d’aspiration–capillaires (liaison)"]
[null,"Givrage de la conduite d’aspiration",409,"409 Givrage de la conduite d’aspiration","Conduite d’aspiration–évaporateur (liaison)",14,"14 Conduite d’aspiration–évaporateur (liaison)"]
[null,"Type d’erreur non imputable",999,"999 Type d’erreur non imputable","Sécheur",15,"15 Sécheur"]
[null,0,0,null,"Sécheur–capillaires (liaison)",16,"16 Sécheur–capillaires (liaison)"]
[null,null,null,null,"Évaporateur compartiment congélateur",17,"17 Évaporateur compartiment congélateur"]
[null,null,null,null,"Évaporateur compartiment réfrigérateur",18,"18 Évaporateur compartiment réfrigérateur"]
[null,null,null,null,"Point d’injection évaporateur (liaison)",19,"19 Point d’injection évaporateur (liaison)"]
[null,null,null,null,"Condenseur",20,"20 Condenseur"]
[null,null,null,null,"Condenseur–sécheur (liaison)",21,"21 Condenseur–sécheur (liaison)"]
[null,null,null,null,"Compresseur",63,"63 Compresseur"]
[null,null,null,null,"Echangeur de chaleur ( à eau)",395,"395 Echangeur de chaleur ( à eau)"]
[null,null,null,null,"Évaporateur compartiment réfrigérateur–Module d’évaporateur  compartiment congélateur (liaison)",412,{"$f":"F21&\" \"&E21","v":"412 Évaporateur compartiment réfrigérateur–Module d’évaporateur  compartiment congélateur (liaison)"}]
[null,null,null,null,"Module d’évaporateur–conduite d’aspiration (liaison)",413,"413 Module d’évaporateur–conduite d’aspiration (liaison)"]
[null,null,null,null,"Chauffage bac d’évaporation – compresseur (liaison)",414,"414 Chauffage bac d’évaporation – compresseur (liaison)"]
[null,null,null,null,"Chauffage bac d’évaporation – condenseur (liaison)",415,"415 Chauffage bac d’évaporation – condenseur (liaison)"]
[null,null,null,null,"Chauffage bac d’évaporateur",416,"416 Chauffage bac d’évaporateur"]
[null,null,null,null,"Raccord de dérivation – conduite d’aspiration et de refoulement (liaison)",518,"518 Raccord de dérivation – conduite d’aspiration et de refoulement (liaison)"]
[null,null,null,null,"Cassette de refroidissement",525,"525 Cassette de refroidissement"]
[null,null,null,null,"Collecteur",533,"533 Collecteur"]
[null,null,null,null,"Vanne d'expansion",675,"675 Vanne d'expansion"]
[null,null,null,null,"Séparateur d’huile",676,"676 Séparateur d’huile"]
[null,null,null,null,"Soupape pour refroidissement externe (circuit fermé, refroidissement à l’eau, ..)",677,"677 Soupape pour refroidissement externe (circuit fermé, refroidissement à l’eau, ..)"]
[null,null,null,null,"Pressostat",678,"678 Pressostat"]
[null,null,null,null,"Cascade",679,"679 Cascade"]
[null,null,null,null,"Lieu d’erreur non imputable",999,"999 Lieu d’erreur non imputable"]
["Electricité","Hors tolérance (capteur etc.)",31,{"$f":"C35&\" \"&B35","v":"31 Hors tolérance (capteur etc.)"},"Vanne circuit réfrigérant",9,"9 Vanne circuit réfrigérant"]
[40,"Coupure électrique",32,{"$f":"C36&\" \"&B36","v":"32 Coupure électrique"},"Éclairage",59,"59 Éclairage"]
[null,"Affichage incorrect",33,"33 Affichage incorrect","Chauffage",60,"60 Chauffage"]
[null,"Court-circuit",34,"34 Court-circuit","Panneau isolant",61,"61 Panneau isolant"]
[null,"Câbles endommagés",36,"36 Câbles endommagés","Faisceau de câbles / cordon",62,"62 Faisceau de câbles / cordon"]
[null,"Règle mal",39,"39 Règle mal","Compresseur",63,"63 Compresseur"]
[null,"Grillé",40,"40 Grillé","Compresseur–dispositif de démarrage",64,"64 Compresseur–dispositif de démarrage"]
[null,"Faux-contact",41,"41 Faux-contact","Compresseur–disjoncteur-protecteur",65,"65 Compresseur–disjoncteur-protecteur"]
[null,"Ne commute pas",202,"202 Ne commute pas","Condenseur",66,"66 Condenseur"]
[null,"Câbles erreur de câblage",297,"297 Câbles erreur de câblage","Lampes témoin",67,"67 Lampes témoin"]
[null,"Type d’erreur non imputable",999,"999 Type d’erreur non imputable","Contact Reed (reconnaissance de porte, ...)",68,"68 Contact Reed (reconnaissance de porte, ...)"]
[null,null,null,null,"Prise/ raccord à vis",71,"71 Prise/ raccord à vis"]
[null,null,null,null,"Touche/interrupteur",72,"72 Touche/interrupteur"]
[null,null,null,null,"Capteur de température",73,"73 Capteur de température"]
[null,null,null,null,"Thermostat de réglage",74,"74 Thermostat de réglage"]
[null,null,null,null,"Bande de distribution",75,"75 Bande de distribution"]
[null,null,null,null,"Thermomètre",85,"85 Thermomètre"]
[null,null,null,null,"Batterie/ accu",103,"103 Batterie/ accu"]
[null,null,null,null,"Vanne arrivée d’eau",252,"252 Vanne arrivée d’eau"]
[null,null,null,null,"Distributeur de glaçons",265,"265 Distributeur de glaçons"]
[null,null,null,null,"Valve de compensation de pression",274,"274 Valve de compensation de pression"]
[null,null,null,null,"Limiteur de température de sécurité",277,"277 Limiteur de température de sécurité"]
[null,null,null,null,"Volet d’aération",439,"439 Volet d’aération"]
[null,null,null,null,"Pompe réservoir d’eau",440,"440 Pompe réservoir d’eau"]
[null,null,null,null,"Chauffage de porte",467,"467 Chauffage de porte"]
[null,null,null,null,"Capteur d’humidité",468,"468 Capteur d’humidité"]
[null,null,null,null,"Contact sans potentiel",469,"469 Contact sans potentiel"]
[null,null,null,null,"Thermostat de sécurité",517,"517 Thermostat de sécurité"]
[null,null,null,null,"Ventilateur – condenseur",522,"522 Ventilateur – condenseur"]
[null,null,null,null,"Ventilateur – compartiment congélateur",523,"523 Ventilateur – compartiment congélateur"]
[null,null,null,null,"Ventilateur – compartiment réfrigérateur/ BioFresh",524,"524 Ventilateur – compartiment réfrigérateur/ BioFresh"]
[null,null,null,null,"Cassette de refroidissement",525,"525 Cassette de refroidissement"]
[null,null,null,null,"Fermeture à distance",527,{"$f":"F67&\" \"&E67","v":"527 Fermeture à distance"}]
[null,null,null,null,"Module de charge de la batterie",598,"598 Module de charge de la batterie"]
[null,null,null,null,"Module crush",599,"599 Module crush"]
[null,null,null,null,"Module d'ouverture de porte",609,"609 Module d'ouverture de porte"]
[null,null,null,null,"Pressostat",678,"678 Pressostat"]
[null,null,null,null,"Fusible",680,"680 Fusible"]
[null,null,null,null,"Module RS485",681,"681 Module RS485"]
[null,null,null,null,"Capteur de luminosité",682,"682 Capteur de luminosité"]
[null,null,null,null,"Humidificateur (Hydrobreeze)",683,"683 Humidificateur (Hydrobreeze)"]
[null,null,null,null,"Lieu d’erreur non imputable",999,"999 Lieu d’erreur non imputable"]
["Electronique","Court-circuit",34,{"$f":"C77&\" \"&B77","v":"34 Court-circuit"},"Touche/interrupteur",72,"72 Touche/interrupteur"]
[45,"Règle mal",39,{"$f":"C78&\" \"&B78","v":"39 Règle mal"},"Bornier de platine",82,"82 Bornier de platine"]
[null,"Grillé",40,"40 Grillé","Platine électronique",172,"172 Platine électronique"]
[null,"Faux-contact",41,"41 Faux-contact","Inverter",260,"260 Inverter"]
[null,"Éclairage ne démarre pas / partiellement / insuffisamment",42,"42 Éclairage ne démarre pas / partiellement / insuffisamment","Système électronique distributeur de glaçons",264,"264 Système électronique distributeur de glaçons"]
[null,"Affichage / écran défectueux",43,"43 Affichage / écran défectueux","Module de liaison",441,"441 Module de liaison"]
[null,"Défaillance générale",44,"44 Défaillance générale","Alimentation éclairage LED / transformateur",442,"442 Alimentation éclairage LED / transformateur"]
[null,"Chauffage ne démarre pas",45,"45 Chauffage ne démarre pas","Limiteur de température",516,"516 Limiteur de température"]
[null,"Compresseur ne démarre pas",46,"46 Compresseur ne démarre pas","Variateur d’intensité",519,"519 Variateur d’intensité"]
[null,"Lampe témoin défectueuse",47,"47 Lampe témoin défectueuse","Platine de connexion réseau",606,"606 Platine de connexion réseau"]
[null,"Électrovanne n’est pas activée",48,"48 Électrovanne n’est pas activée","Unité de commande, interface utilisateur (User Interface)",612,"612 Unité de commande, interface utilisateur (User Interface)"]
[null,"Touche ou interrupteur défectueux",49,"49 Touche ou interrupteur défectueux","Module RS485",681,"681 Module RS485"]
[null,"Variations de température",50,"50 Variations de température","Filtre réseau",684,"684 Filtre réseau"]
[null,"Avertisseur sonore sans fonction",51,"51 Avertisseur sonore sans fonction","NFC, puce RFID",685,"685 NFC, puce RFID"]
[null,"Alarme de température injustifiée",54,"54 Alarme de température injustifiée","Capteurs intelligents",686,"686 Capteurs intelligents"]
[null,"Interruption (fissure capillaire, joint soudé, etc.)",55,"55 Interruption (fissure capillaire, joint soudé, etc.)","Relais semi-conducteur",698,"698 Relais semi-conducteur"]
[null,"Ventilateur ne démarre pas",56,"56 Ventilateur ne démarre pas","Lieu d’erreur non imputable",999,"999 Lieu d’erreur non imputable"]
[null,"Pompe réservoir à eau ne démarre pas",298,"298 Pompe réservoir à eau ne démarre pas"]
[null,"Volet d’aération n’est pas activé",299,"299 Volet d’aération n’est pas activé"]
[null,"Erreur de logiciel (bug)",588,"588 Erreur de logiciel (bug)"]
[null,"Type d’erreur non imputable",999,"999 Type d’erreur non imputable"]
["Mécanique","Casse",10,"10 Casse","Pied/ roulette",28,{"$f":"F98&\" \"&E98","v":"28 Pied/ roulette"}]
[50,"Affichage incorrect",33,"33 Affichage incorrect","Poignée",30,"30 Poignée"]
[null,"Grippé",23,"23 Grippé","Touche/interrupteur",72,"72 Touche/interrupteur"]
[null,"Tordu / gondolé",25,"25 Tordu / gondolé","Serrure",84,"84 Serrure"]
[null,"Décalé / déplacé",27,"27 Décalé / déplacé","Thermomètre",85,"85 Thermomètre"]
[null,"Usé",57,"57 Usé","Rail coulissant / télescopique",259,"259 Rail coulissant / télescopique"]
[null,"Se bloque / coince",58,"58 Se bloque / coince","Distributeur de glaçons",265,"265 Distributeur de glaçons"]
[null,"Type d’erreur non imputable",999,"999 Type d’erreur non imputable","Amortisseur de fermeture",408,"408 Amortisseur de fermeture"]
[null,null,null,null,"Charnière/ gond de porte",418,"418 Charnière/ gond de porte"]
[null,null,null,null,"Unité de sortie glace/ eau",432,"432 Unité de sortie glace/ eau"]
[null,null,null,null,"Volet d’aération",439,"439 Volet d’aération"]
[null,null,null,null,"Ventilateur – condenseur",522,"522 Ventilateur – condenseur"]
[null,null,null,null,"Ventilateur – compartiment congélateur",523,"523 Ventilateur – compartiment congélateur"]
[null,null,null,null,"Ventilateur – compartiment réfrigérateur/ BioFresh",524,"524 Ventilateur – compartiment réfrigérateur/ BioFresh"]
[null,null,null,null,"Fermeture à distance",527,"527 Fermeture à distance"]
[null,null,null,null,"Module crush",599,"599 Module crush"]
[null,null,null,null,"Ouverture à pédale",600,"600 Ouverture à pédale"]
[null,null,null,null,"Module d'ouverture de porte",609,"609 Module d'ouverture de porte"]
[null,null,null,null,"Humidificateur (Hydrobreeze)",683,"683 Humidificateur (Hydrobreeze)"]
[null,null,null,null,"Lieu d’erreur non imputable",999,"999 Lieu d’erreur non imputable"]
["Bruit","Bruit de craquement",64,{"$f":"C118&\" \"&B118","v":"64 Bruit de craquement"},"Capillaires",2,"2 Capillaires"]
[60,"Bruit de couinement/ grincement",65,"65 Bruit de couinement/ grincement","Vanne circuit réfrigérant",9,"9 Vanne circuit réfrigérant"]
[null,"Bruit de fonctionnement",66,"66 Bruit de fonctionnement","Évaporateur compartiment congélateur",17,"17 Évaporateur compartiment congélateur"]
[null,"Bruit de vibration",69,"69 Bruit de vibration","Évaporateur compartiment réfrigérateur",18,"18 Évaporateur compartiment réfrigérateur"]
[null,"Bruit de cliquetis / tapotement",89,"89 Bruit de cliquetis / tapotement","Condenseur",20,"20 Condenseur"]
[null,"Bruit de commutation",203,"203 Bruit de commutation","Récipient d’eau de dégivrage",52,"52 Récipient d’eau de dégivrage"]
[null,"Bruit d’injection / de circulation",300,"300 Bruit d’injection / de circulation","Compresseur",63,"63 Compresseur"]
[null,"Glouglou",687,"687 Glouglou","Thermostat de réglage",74,"74 Thermostat de réglage"]
[null,"Type d’erreur non imputable",999,"999 Type d’erreur non imputable","Tuyaux",87,"87 Tuyaux"]
[null,null,null,null,"Vanne arrivée d’eau",252,"252 Vanne arrivée d’eau"]
[null,null,null,null,"Inverter",260,"260 Inverter"]
[null,null,null,null,"Distributeur de glaçons",265,"265 Distributeur de glaçons"]
[null,null,null,null,"Tablette de séparation verticale",266,"266 Tablette de séparation verticale"]
[null,null,null,null,"Valve de compensation de pression",274,"274 Valve de compensation de pression"]
[null,null,null,null,"Amortisseur de fermeture",408,"408 Amortisseur de fermeture"]
[null,null,null,null,"Charnière/ gond de porte",418,"418 Charnière/ gond de porte"]
[null,null,null,null,"Ventilateur – condenseur",522,"522 Ventilateur – condenseur"]
[null,null,null,null,"Ventilateur – compartiment congélateur",523,"523 Ventilateur – compartiment congélateur"]
[null,null,null,null,"Ventilateur – compartiment réfrigérateur/ BioFresh",524,"524 Ventilateur – compartiment réfrigérateur/ BioFresh"]
[null,null,null,null,"Cassette de refroidissement",525,"525 Cassette de refroidissement"]
[null,null,null,null,"Cache évaporateur",528,"528 Cache évaporateur"]
[null,null,null,null,"Absorbeur",596,"596 Absorbeur"]
[null,null,null,null,"Module crush",599,"599 Module crush"]
[null,null,null,null,"Module d'ouverture de porte",609,"609 Module d'ouverture de porte"]
[null,null,null,null,"Siphon",688,"688 Siphon"]
[null,null,null,null,"Lieu d’erreur non imputable",999,"999 Lieu d’erreur non imputable"]
["Surfaces","Éraflure",13,{"$f":"C144&\" \"&B144","v":"13 Éraflure"},"Évaporateur compartiment réfrigérateur",18,"18 Évaporateur compartiment réfrigérateur"]
[65,"Trop de vernis",30,"30 Trop de vernis","Couvercle (coffre) / couvercle coulissant",26,"26 Couvercle (coffre) / couvercle coulissant"]
[null,"Empreinte",70,"70 Empreinte","Poignée",30,{"$f":"F146&\" \"&E146","v":"30 Poignée"}]
[null,"Corrosion",71,"71 Corrosion","Face arrière",34,"34 Face arrière"]
[null,"Pas assez de vernis",72,"72 Pas assez de vernis","Paroi latérale général",36,"36 Paroi latérale général"]
[null,"S’écaille",87,"87 S’écaille","Dessus",40,"40 Dessus"]
[null,"Bombement / bosse",88,"88 Bombement / bosse","Cadre de protection du coffre",41,"41 Cadre de protection du coffre"]
[null,"Variation de couleur",165,"165 Variation de couleur","Porte compartiment congélateur",42,"42 Porte compartiment congélateur"]
[null,"Microsection acier inox",301,"301 Microsection acier inox","Porte compartiment réfrigérateur",43,"43 Porte compartiment réfrigérateur"]
[null,"Taches",302,"302 Taches","Boîtier de thermostat / interrupteur d’éclairage",53,"53 Boîtier de thermostat / interrupteur d’éclairage"]
[null,"Résidus de film",303,"303 Résidus de film","Éclairage",59,"59 Éclairage"]
[null,"Décollé",405,"405 Décollé","Liaison transversale",99,"99 Liaison transversale"]
[null,"Type d’erreur non imputable",999,"999 Type d’erreur non imputable","Tiroir",102,"102 Tiroir"]
[null,null,null,null,"\u0090Joint de porte compartiment étoiles",159,"159 \u0090Joint de porte compartiment étoiles"]
[null,null,null,null,"Tablette de séparation verticale",266,"266 Tablette de séparation verticale"]
[null,null,null,null,"Support de compresseur",309,"309 Support de compresseur"]
[null,null,null,null,"Clayette fil/en bois",336,"336 Clayette fil/en bois"]
[null,null,null,null,"Cuve intérieure compartiment congélateur",364,"364 Cuve intérieure compartiment congélateur"]
[null,null,null,null,"Contre-porte compartiment congélateur",374,"374 Contre-porte compartiment congélateur"]
[null,null,null,null,"Interface utilisateur",419,"419 Interface utilisateur"]
[null,null,null,null,"Tablette de séparation horizontale/ séparateur",438,"438 Tablette de séparation horizontale/ séparateur"]
[null,null,null,null,"Cache évaporateur",528,"528 Cache évaporateur"]
[null,null,null,null,"Branding (autocollant, logo, …)",530,"530 Branding (autocollant, logo, …)"]
[null,null,null,null,"\u0090Joint de porte compartiment congélateur",531,"531 \u0090Joint de porte compartiment congélateur"]
[null,null,null,null,"\u0090Joint de porte compartiment réfrigérateur",532,"532 \u0090Joint de porte compartiment réfrigérateur"]
[null,null,null,null,"Esse",611,"611 Esse"]
[null,null,null,null,"Paroi latérale général bandes décoratives",689,"689 Paroi latérale général bandes décoratives"]
[null,null,null,null,"Porte du compartiment congélateur bandes décoratives",690,"690 Porte du compartiment congélateur bandes décoratives"]
[null,null,null,null,"Porte du compartiment réfrigérateur bandes décoratives",691,"691 Porte du compartiment réfrigérateur bandes décoratives"]
[null,null,null,null,"Cuve intérieure compartiment réfrigérateur revêtement inox",699,"699 Cuve intérieure compartiment réfrigérateur revêtement inox"]
[null,null,null,null,"Contre-porte compartiment réfrigérateur revêtement inox",700,"700 Contre-porte compartiment réfrigérateur revêtement inox"]
[null,null,null,null,"Cuve intérieure compartiment réfrigérateur",701,"701 Cuve intérieure compartiment réfrigérateur"]
[null,null,null,null,"Contre-porte compartiment réfrigérateur",702,"702 Contre-porte compartiment réfrigérateur"]
[null,null,null,null,"Lieu d’erreur non imputable",999,"999 Lieu d’erreur non imputable"]
["Avarie de ","Casse",10,{"$f":"C178&\" \"&B178","v":"10 Casse"},"Condenseur",20,"20 Condenseur"]
["transport","Creux",11,"11 Creux","Pied/ roulette",28,"28 Pied/ roulette"]
["Emballage","Pli",12,"12 Pli","Tablettes en verre, balconnets, etc.",29,"29 Tablettes en verre, balconnets, etc."]
["endommagé","Éraflure",13,"13 Éraflure","Poignée",30,"30 Poignée"]
[25,"Lâche",14,"14 Lâche","Logement du compresseur",33,"33 Logement du compresseur"]
[null,"Fissure",15,"15 Fissure","Face arrière",34,"34 Face arrière"]
["Avarie de ","Trace de frottement",16,"16 Trace de frottement","Cache socle",38,"38 Cache socle"]
["transport","Écrasement",17,"17 Écrasement","Pièces de l’équipement intérieur",39,"39 Pièces de l’équipement intérieur"]
["Plus d'",null,null,null,"Dessus",40,"40 Dessus"]
["emballage",null,null,null,"Cadre de protection du coffre",41,"41 Cadre de protection du coffre"]
[null,null,null,null,"Éclairage",59,"59 Éclairage"]
[26,null,null,null,"Liaison transversale",99,"99 Liaison transversale"]
[null,null,null,null,"Support de compresseur",309,"309 Support de compresseur"]
["Cause de dommage indéterminée",null,null,null,"Cuve intérieure compartiment congélateur",364,"364 Cuve intérieure compartiment congélateur"]
[null,null,null,null,"Contre-porte compartiment congélateur",374,"374 Contre-porte compartiment congélateur"]
["Emballage",null,null,null,"Paroi latérale à droite, en haut",378,"378 Paroi latérale à droite, en haut"]
["pas",null,null,null,"Paroi latérale à droite, au milieu",379,"379 Paroi latérale à droite, au milieu"]
[" endommagé",null,null,null,"Paroi latérale à droite, en bas",380,"380 Paroi latérale à droite, en bas"]
[27,null,null,null,"Paroi latérale à gauche, en haut",381,"381 Paroi latérale à gauche, en haut"]
[null,null,null,null,"Paroi latérale à gauche, au milieu",382,"382 Paroi latérale à gauche, au milieu"]
[null,null,null,null,"Paroi latérale à gauche, en bas",383,"383 Paroi latérale à gauche, en bas"]
[null,null,null,null,"Charnière/ gond de porte",418,"418 Charnière/ gond de porte"]
[null,null,null,null,"Interface utilisateur",419,"419 Interface utilisateur"]
[null,null,null,null,"Porte extérieure, en haut",420,"420 Porte extérieure, en haut"]
[null,null,null,null,"Porte extérieure, au milieu",421,"421 Porte extérieure, au milieu"]
[null,null,null,null,"Porte extérieure, en bas",422,"422 Porte extérieure, en bas"]
[null,null,null,null,"Porte extérieure inférieure, en haut",423,"423 Porte extérieure inférieure, en haut"]
[null,null,null,null,"Porte extérieure inférieure, en bas",424,"424 Porte extérieure inférieure, en bas"]
[null,null,null,null,"Avant gauche (coffre)",425,"425 Avant gauche (coffre)"]
[null,null,null,null,"Avant milieu (coffre)",426,"426 Avant milieu (coffre)"]
[null,null,null,null,"Avant droit (coffre)",427,"427 Avant droit (coffre)"]
[null,null,null,null,"Couvercle (coffre) à gauche ",428,"428 Couvercle (coffre) à gauche "]
[null,null,null,null,"Couvercle (coffre) au milieu",429,{"$f":"F210&\" \"&E210","v":"429 Couvercle (coffre) au milieu"}]
[null,null,null,null,"Couvercle (coffre) à droite",430,"430 Couvercle (coffre) à droite"]
[null,null,null,null,"Branding (autocollant, logo, …)",530,"530 Branding (autocollant, logo, …)"]
[null,null,null,null,"Porte du compartiment",692,"692 Porte du compartiment"]
[null,null,null,null,"Cuve intérieure compartiment réfrigérateur",701,"701 Cuve intérieure compartiment réfrigérateur"]
[null,null,null,null,"Contre-porte compartiment réfrigérateur",702,"702 Contre-porte compartiment réfrigérateur"]
[null,null,null,null,"Lieu d’erreur non imputable",999,"999 Lieu d’erreur non imputable"]
["Défaut","Non étanche",2,{"$f":"C217&\" \"&B217","v":"2 Non étanche"},"Évaporateur compartiment congélateur",17,"17 Évaporateur compartiment congélateur"]
["produit","Casse",10,"10 Casse","Évaporateur compartiment réfrigérateur",18,"18 Évaporateur compartiment réfrigérateur"]
[30,"Pli",12,"12 Pli","Condenseur",20,"20 Condenseur"]
[null,"Lâche",14,"14 Lâche","Couvercle (coffre) / couvercle coulissant",26,"26 Couvercle (coffre) / couvercle coulissant"]
[null,"Fissure",15,"15 Fissure","Poignée",30,"30 Poignée"]
[null,"Manquant",18,"18 Manquant","Face arrière",34,"34 Face arrière"]
[null,"Eau de condensation",19,"19 Eau de condensation","Paroi latérale général",36,"36 Paroi latérale général"]
[null,"Déborde",20,"20 Déborde","Pièces de l’équipement intérieur",39,"39 Pièces de l’équipement intérieur"]
[null,"De travers",22,"22 De travers","Dessus",40,"40 Dessus"]
[null,"Grippé",23,"23 Grippé","Cadre de protection du coffre",41,"41 Cadre de protection du coffre"]
[null,"Givrage",24,"24 Givrage","Porte compartiment congélateur",42,"42 Porte compartiment congélateur"]
[null,"Tordu / gondolé",25,"25 Tordu / gondolé","Porte compartiment réfrigérateur",43,"43 Porte compartiment réfrigérateur"]
[null,"Décalé / déplacé",27,"27 Décalé / déplacé","Passage de boîtier",47,"47 Passage de boîtier"]
[null,"Bouché",28,"28 Bouché","Commutateur d’éclairage",49,"49 Commutateur d’éclairage"]
[null,"Serré trop fort",29,"29 Serré trop fort","Bouton de réglage",50,"50 Bouton de réglage"]
[null,"Se bloque / coince",58,"58 Se bloque / coince","Écoulement de l’eau de dégivrage",51,"51 Écoulement de l’eau de dégivrage"]
[null,"Mauvaise pièce",79,"79 Mauvaise pièce","Récipient d’eau de dégivrage",52,"52 Récipient d’eau de dégivrage"]
[null,"Odeur",83,"83 Odeur","Boîtier de thermostat / interrupteur d’éclairage",53,"53 Boîtier de thermostat / interrupteur d’éclairage"]
[null,"Montage incorrect",91,"91 Montage incorrect","Porte compartiment congélation",56,"56 Porte compartiment congélation"]
[null,"Sortie de mousse",103,"103 Sortie de mousse","Chauffage",60,"60 Chauffage"]
[null,"Encrassé",148,"148 Encrassé","Capteur de température",73,"73 Capteur de température"]
[null,"Chute",204,"204 Chute","Cadre décoratif",94,"94 Cadre décoratif"]
[null,"Erreur d’isolation",296,"296 Erreur d’isolation","Bouchon de fermeture de l’eau de dégivrage du compartiment congélateur",96,"96 Bouchon de fermeture de l’eau de dégivrage du compartiment congélateur"]
[null,"Type d’erreur non imputable",999,"999 Type d’erreur non imputable","Set d’accouplement pour porte",97,"97 Set d’accouplement pour porte"]
[null,null,null,null,"Liaison transversale",99,"99 Liaison transversale"]
[null,null,null,null,"Tiroir",102,"102 Tiroir"]
[null,null,null,null,"Commutateur à cames/ aimant de porte",104,"104 Commutateur à cames/ aimant de porte"]
[null,null,null,null,"Cache",105,"105 Cache"]
[null,null,null,null,"\u0090Joint de porte compartiment étoiles",159,"159 \u0090Joint de porte compartiment étoiles"]
[null,null,null,null,"Kit d’accessoires",232,"232 Kit d’accessoires"]
[null,null,null,null,"Vanne arrivée d’eau",252,"252 Vanne arrivée d’eau"]
[null,null,null,null,"Bac d’évaporateur",257,"257 Bac d’évaporateur"]
[null,null,null,null,"Rail coulissant / télescopique",259,"259 Rail coulissant / télescopique"]
[null,null,null,null,"Distributeur de glaçons",265,"265 Distributeur de glaçons"]
[null,null,null,null,"Tablette de séparation verticale",266,"266 Tablette de séparation verticale"]
[null,null,null,null,"Accu de froid",272,"272 Accu de froid"]
[null,null,null,null,"Kit de liaison SBS",273,"273 Kit de liaison SBS"]
[null,null,null,null,"Valve de compensation de pression",274,"274 Valve de compensation de pression"]
[null,null,null,null,"Tuyau d’eau",275,"275 Tuyau d’eau"]
[null,null,null,null,"Vanne de sortie de l’eau de dégivrage",276,"276 Vanne de sortie de l’eau de dégivrage"]
[null,null,null,null,"Bac à glaçons",295,"295 Bac à glaçons"]
[null,null,null,null,"Support de compresseur",309,"309 Support de compresseur"]
[null,null,null,null,"Clayette fil/en bois",336,"336 Clayette fil/en bois"]
[null,null,null,null,"Cuve intérieure compartiment congélateur",364,"364 Cuve intérieure compartiment congélateur"]
[null,null,null,null,"Contre-porte compartiment congélateur",374,"374 Contre-porte compartiment congélateur"]
[null,null,null,null,"Amortisseur de fermeture",408,"408 Amortisseur de fermeture"]
[null,null,null,null,"Charnière/ gond de porte",418,"418 Charnière/ gond de porte"]
[null,null,null,null,"Interface utilisateur",419,"419 Interface utilisateur"]
[null,null,null,null,"Support pour rail coulissant / télescopique",431,"431 Support pour rail coulissant / télescopique"]
[null,null,null,null,"Unité de sortie glace/ eau",432,"432 Unité de sortie glace/ eau"]
[null,null,null,null,"Couvercle tiroir électronique",434,"434 Couvercle tiroir électronique"]
[null,null,null,null,"Réservoir d’eau",436,"436 Réservoir d’eau"]
[null,null,null,null,"Plateau de roulettes",437,"437 Plateau de roulettes"]
[null,null,null,null,"Tablette de séparation horizontale/ séparateur",438,"438 Tablette de séparation horizontale/ séparateur"]
[null,null,null,null,"Filtre à eau",471,"471 Filtre à eau"]
[null,null,null,null,"Mécanisme de fermeture",472,"472 Mécanisme de fermeture"]
[null,null,null,null,"Conduit d’air",520,"520 Conduit d’air"]
[null,null,null,null,"Arrivée d’eau (distributeur de glaçons)",521,{"$f":"F274&\" \"&E274","v":"521 Arrivée d’eau (distributeur de glaçons)"}]
[null,null,null,null,"Ventilateur – condenseur",522,"522 Ventilateur – condenseur"]
[null,null,null,null,"Ventilateur – compartiment congélateur",523,"523 Ventilateur – compartiment congélateur"]
[null,null,null,null,"Ventilateur – compartiment réfrigérateur/ BioFresh",524,"524 Ventilateur – compartiment réfrigérateur/ BioFresh"]
[null,null,null,null,"Cassette de refroidissement",525,"525 Cassette de refroidissement"]
[null,null,null,null,"Fixation de la poignée (écrou à sertir, ...)",526,"526 Fixation de la poignée (écrou à sertir, ...)"]
[null,null,null,null,"Cache évaporateur",528,"528 Cache évaporateur"]
[null,null,null,null,"Entretoise murale",529,"529 Entretoise murale"]
[null,null,null,null,"Branding (autocollant, logo, …)",530,"530 Branding (autocollant, logo, …)"]
[null,null,null,null,"\u0090Joint de porte compartiment congélateur",531,"531 \u0090Joint de porte compartiment congélateur"]
[null,null,null,null,"\u0090Joint de porte compartiment réfrigérateur",532,"532 \u0090Joint de porte compartiment réfrigérateur"]
[null,null,null,null,"Absorbeur",596,"596 Absorbeur"]
[null,null,null,null,"Module crush",599,"599 Module crush"]
[null,null,null,null,"Ouverture à pédale",600,"600 Ouverture à pédale"]
[null,null,null,null,"Filtre à air",604,"604 Filtre à air"]
[null,null,null,null,"Barre profilée (étiquette de prix, rail porte-étiquette,..)",607,"607 Barre profilée (étiquette de prix, rail porte-étiquette,..)"]
[null,null,null,null,"Module d'ouverture de porte",609,"609 Module d'ouverture de porte"]
[null,null,null,null,"Esse",611,"611 Esse"]
[null,null,null,null,"Cache unité de commande, interface utilisateur (User Interface) ",613,"613 Cache unité de commande, interface utilisateur (User Interface) "]
[null,null,null,null,"Humidificateur (Hydrobreeze)",683,"683 Humidificateur (Hydrobreeze)"]
[null,null,null,null,"Porte du compartiment",692,"692 Porte du compartiment"]
[null,null,null,null,"Refroidissement d’urgence CO2",693,"693 Refroidissement d’urgence CO2"]
[null,null,null,null,"Racks de stockage cryogénique",694,"694 Racks de stockage cryogénique"]
[null,null,null,null,"Cuve intérieure compartiment réfrigérateur revêtement inox",699,"699 Cuve intérieure compartiment réfrigérateur revêtement inox"]
[null,null,null,null,"Contre-porte compartiment réfrigérateur revêtement inox",700,"700 Contre-porte compartiment réfrigérateur revêtement inox"]
[null,null,null,null,"Cuve intérieure compartiment réfrigérateur",701,"701 Cuve intérieure compartiment réfrigérateur"]
[null,null,null,null,"Contre-porte compartiment réfrigérateur",702,"702 Contre-porte compartiment réfrigérateur"]
[null,null,null,null,"Lieu d’erreur non imputable",999,"999 Lieu d’erreur non imputable"]
["pas d'erreur","Erreur de montage/ de mise en place",81,{"$f":"C302&\" \"&B302","v":"81 Erreur de montage/ de mise en place"},"Vanne circuit réfrigérant",9,"9 Vanne circuit réfrigérant"]
[80,"Erreur ne se produit actuellement pas",82,"82 Erreur ne se produit actuellement pas","Poignée",30,"30 Poignée"]
[null,"Odeur",83,"83 Odeur","Face arrière",34,"34 Face arrière"]
[null,"Température ambiante trop froide",85,"85 Température ambiante trop froide","Porte compartiment congélateur",42,"42 Porte compartiment congélateur"]
[null,"Température ambiante trop chaude",86,"86 Température ambiante trop chaude","Porte compartiment réfrigérateur",43,"43 Porte compartiment réfrigérateur"]
[null,"Encrassé",148,"148 Encrassé","Écoulement de l’eau de dégivrage",51,"51 Écoulement de l’eau de dégivrage"]
[null,"Bruits de fonctionnement normaux",304,"304 Bruits de fonctionnement normaux","Récipient d’eau de dégivrage",52,"52 Récipient d’eau de dégivrage"]
[null,"Pièce plus disponible",305,"305 Pièce plus disponible","Éclairage",59,"59 Éclairage"]
[null,"Mode démo lors de mise en service",339,"339 Mode démo lors de mise en service","Compresseur",63,"63 Compresseur"]
[null,"Tension d’alimentation manquante",340,"340 Tension d’alimentation manquante","Platine électronique",172,"172 Platine électronique"]
[null,"Inversion du sens d’ouverture de la porte",341,"341 Inversion du sens d’ouverture de la porte","Chauffage d’hiver",199,"199 Chauffage d’hiver"]
[null,"Informations non précises",342,"342 Informations non précises","Caractéristiques de l’appareil",206,"206 Caractéristiques de l’appareil"]
[null,"Erreur d’utilisation / non respect manuel d’utilisation",343,"343 Erreur d’utilisation / non respect manuel d’utilisation","Informations",207,"207 Informations"]
[null,"Oxydation",344,"344 Oxydation","Précision technique (description du fonctionnement)",208,"208 Précision technique (description du fonctionnement)"]
[null,"Différences / variations de températures normales",345,"345 Différences / variations de températures normales","Boîtier",223,"223 Boîtier"]
[null,"Mauvais appareil",346,"346 Mauvais appareil","Circuit réfrigérant",245,"245 Circuit réfrigérant"]
[null,"Consommation électrique normale",406,"406 Consommation électrique normale","Vanne arrivée d’eau",252,"252 Vanne arrivée d’eau"]
[null,"Durée de fonctionnement normale",407,"407 Durée de fonctionnement normale","Cuve intérieure compartiment congélateur",364,"364 Cuve intérieure compartiment congélateur"]
[null,"Congélation, givrage normal",408,"408 Congélation, givrage normal","Amortisseur de fermeture",408,"408 Amortisseur de fermeture"]
[null,"Incompatible (p. ex. tablette, smartphone)",410,"410 Incompatible (p. ex. tablette, smartphone)","Installation domestique",473,"473 Installation domestique"]
[null,"Puissance du signal",412,"412 Puissance du signal","Aération de l’appareil",474,"474 Aération de l’appareil"]
[null,"Type d’erreur non imputable",999,"999 Type d’erreur non imputable","Points de soudure",475,"475 Points de soudure"]
[null,null,null,null,"Température de l’air, du noyau",476,"476 Température de l’air, du noyau"]
[null,null,null,null,"Affichage de la valeur réelle/ valeur de consigne",479,"479 Affichage de la valeur réelle/ valeur de consigne"]
[null,null,null,null,"Ventilateur – condenseur",522,"522 Ventilateur – condenseur"]
[null,null,null,null,"Ventilateur – compartiment congélateur",523,"523 Ventilateur – compartiment congélateur"]
[null,null,null,null,"Ventilateur – compartiment réfrigérateur/ BioFresh",524,"524 Ventilateur – compartiment réfrigérateur/ BioFresh"]
[null,null,null,null,"Entretoise murale",529,"529 Entretoise murale"]
[null,null,null,null,"Smart Device Box",608,"608 Smart Device Box"]
[null,null,null,null,"Module d'ouverture de porte",609,"609 Module d'ouverture de porte"]
[null,null,null,null,"Consommable (filtre, ..)",610,"610 Consommable (filtre, ..)"]
[null,null,null,null,"Humidificateur (Hydrobreeze)",683,"683 Humidificateur (Hydrobreeze)"]
[null,null,null,null,"Cuve intérieure compartiment réfrigérateur",701,"701 Cuve intérieure compartiment réfrigérateur"]
[null,null,null,null,"Lieu d’erreur non imputable",999,"999 Lieu d’erreur non imputable"]
["Erreur ne","Bruit occasionnel",483,{"$f":"C336&\" \"&B336","v":"483 Bruit occasionnel"},"Évaporateur compartiment congélateur",17,"17 Évaporateur compartiment congélateur"]
["se produit","Variation occasionnelle de la température",484,{"$f":"C337&\" \"&B337","v":"484 Variation occasionnelle de la température"},"Évaporateur compartiment réfrigérateur",18,"18 Évaporateur compartiment réfrigérateur"]
["actuellement","Message d'alarme occasionnel ",485,"485 Message d'alarme occasionnel ","Couvercle (coffre) / couvercle coulissant",26,{"$f":"F338&\" \"&E338","v":"26 Couvercle (coffre) / couvercle coulissant"}]
[" pas","Déclenchement temporaire du dispositif de sécurité",486,"486 Déclenchement temporaire du dispositif de sécurité","Tablettes en verre, balconnets, etc.",29,"29 Tablettes en verre, balconnets, etc."]
[101,"Taux d'humidité parfois trop élevé / trop faible",487,"487 Taux d'humidité parfois trop élevé / trop faible","Paroi latérale général",36,"36 Paroi latérale général"]
[null,"Aucune connexion",488,"488 Aucune connexion","Dessus",40,"40 Dessus"]
[null,"Condensation temporaire / rosée",489,"489 Condensation temporaire / rosée","Porte compartiment congélateur",42,"42 Porte compartiment congélateur"]
[null,"Défaillance totale occasionnelle",490,"490 Défaillance totale occasionnelle","Porte compartiment réfrigérateur",43,"43 Porte compartiment réfrigérateur"]
[null,"Erreur d'éclairage occasionnelle",491,"491 Erreur d'éclairage occasionnelle","Écoulement de l’eau de dégivrage",51,"51 Écoulement de l’eau de dégivrage"]
[null,"Occasionnellement bloqué/grippé",492,"492 Occasionnellement bloqué/grippé","Éclairage",59,"59 Éclairage"]
[null,null,null,null,"Tiroir",102,"102 Tiroir"]
[null,null,null,null,"\u0090Joint de porte compartiment étoiles",159,"159 \u0090Joint de porte compartiment étoiles"]
[null,null,null,null,"Platine électronique",172,"172 Platine électronique"]
[null,null,null,null,"Distributeur de glaçons",265,"265 Distributeur de glaçons"]
[null,null,null,null,"Vanne de sortie de l’eau de dégivrage",276,"276 Vanne de sortie de l’eau de dégivrage"]
[null,null,null,null,"Cuve intérieure compartiment congélateur",364,"364 Cuve intérieure compartiment congélateur"]
[null,null,null,null,"Amortisseur de fermeture",408,"408 Amortisseur de fermeture"]
[null,null,null,null,"Charnière/ gond de porte",418,"418 Charnière/ gond de porte"]
[null,null,null,null,"Unité de sortie glace/ eau",432,"432 Unité de sortie glace/ eau"]
[null,null,null,null,"Réservoir d’eau",436,"436 Réservoir d’eau"]
[null,null,null,null,"Mécanisme de fermeture",472,"472 Mécanisme de fermeture"]
[null,null,null,null,"\u0090Joint de porte compartiment congélateur",531,"531 \u0090Joint de porte compartiment congélateur"]
[null,null,null,null,"\u0090Joint de porte compartiment réfrigérateur",532,"532 \u0090Joint de porte compartiment réfrigérateur"]
[null,null,null,null,"Ouverture à pédale",600,"600 Ouverture à pédale"]
[null,null,null,null,"Module d'ouverture de porte",609,"609 Module d'ouverture de porte"]
[null,null,null,null,"Cuve intérieure compartiment réfrigérateur",701,"701 Cuve intérieure compartiment réfrigérateur"]
[null,null,null,null,"Lieu d’erreur non imputable",999,"999 Lieu d’erreur non imputable"]
["Système ","Câbles erreur de câblage",297,{"$f":"C363&\" \"&B363","v":"297 Câbles erreur de câblage"},"Interface (RS 485, RS 232, CAN BUS, MOD BUS, Ethernet, clé IR, Wi-Fi, BT, USB, …)",470,"470 Interface (RS 485, RS 232, CAN BUS, MOD BUS, Ethernet, clé IR, Wi-Fi, BT, USB, …)"]
["électronique","Incompatible (p. ex. tablette, smartphone)",410,"410 Incompatible (p. ex. tablette, smartphone)","Résistance de terminaison",595,"595 Résistance de terminaison"]
[46,"Erreur de configuration",411,"411 Erreur de configuration","APP / logiciel",597,"597 APP / logiciel"]
[null,"Puissance du signal",412,"412 Puissance du signal","Clé infrarouge",601,"601 Clé infrarouge"]
[null,"Aucune connexion",488,"488 Aucune connexion","Convertisseur pour port série (EVCO, Carel)",602,"602 Convertisseur pour port série (EVCO, Carel)"]
[null,"Erreur de logiciel (bug)",588,"588 Erreur de logiciel (bug)","Câble LAN",603,"603 Câble LAN"]
[null,"Type d’erreur non imputable",999,"999 Type d’erreur non imputable","Module maître / esclave (HomeDialog)",605,"605 Module maître / esclave (HomeDialog)"]
[null,null,null,null,"Smart Device Box",608,"608 Smart Device Box"]
[null,null,null,null,"NFC, puce RFID",685,"685 NFC, puce RFID"]
[null,null,null,null,"Capteurs intelligents",686,"686 Capteurs intelligents"]
[null,null,null,null,"Boutique de licences",695,"695 Boutique de licences"]
[null,null,null,null,"SmartMonitoring",696,"696 SmartMonitoring"]
[null,null,null,null,"SmartCoolingHub",697,"697 SmartCoolingHub"]
[null,null,null,null,null,null," "]
["Fuite d'eau","Cassé",201,{"$f":"C377&\" \"&B377","v":"201 Cassé"},"Tuyau d'eau",210,{"$f":"F377&\" \"&E377","v":"210 Tuyau d'eau"}]
[200,"Déborde",205,"205 Déborde","Vanne d'entrée d'eau",211,"211 Vanne d'entrée d'eau"]
[null,"Dégât",206,"206 Dégât","Joint",212,"212 Joint"]
[null,"Fendu",207,"207 Fendu","Pompe de vidange",213,"213 Pompe de vidange"]
[null,"Erreur de Montage",208,"208 Erreur de Montage","Sonde de niveau",214,"214 Sonde de niveau"]
[null,"Pas étanche",209,"209 Pas étanche",null,null," "]
[null,"Type d’erreur non imputable",999,"999 Type d’erreur non imputable"]

{"sheet":"Fehlergruppe","index":3,"n_rows":32,"n_cols":4,"rows_kept":32,"cut":false,"hidden":false,"merged":[]}
["Fehlergruppe Nr","Fehlergruppe DE","Groupe d'erreur","gruppo di errore"]
[5,"Kältekreislauf (Leckage/ Verstopfung/ Füllmenge)","Circuit de refroidissement","Ciclo frigorigeno (Perdita/ Occlusione/ Capacità)"]
[40,"Elektrik","Electricité","Impianto elettrico"]
[45,"Elektronik (Fehler an elektronischen Baugruppen)","Electronique","Elettronica (Errore dei componenti elettronici)"]
[50,"Mechanik","Mécanique","Meccanica"]
[60,"Geräusch","Bruit","Rumore"]
[65,"Oberflächen (Gerät oder Einzelteile/ Innen oder außen / kein Transport-schaden erkennbar!)","Surfaces","Superfici Nessun danno di trasporto identificabile sull'apparecchio o sue parti / né all'interno né all'esterno!"]
[25,"Transportschaden - Verpackung beschädigt","Avarie de transport Emballage endommagé","Danni di trasporto Imballaggio danneggiato"]
[26,"Transportschaden - Verpackung nicht mehr vorhanden","Avarie de transport Plus d'emballage","Danni di trasporto Imballaggio non più presente"]
[27,"Schadensursache unklar - Verpackung nicht beschädigt","Cause de dommage indéterminée Emballage pas endommagé","Causa del danno non chiara Imballaggio non Danneggiato"]
[30,"Produktmangel (kein Transportschaden erkennbar)","Défaut produit","Difetto del prodotto (nessun danno di trasporto riconoscibile)"]
[46,"Vernetzung/Kommunikation","Système électronique / communication","Rete / comunicazione"]
[80,"kein Fehler","pas d'erreur","Nessun errore"]
[101,"Fehler tritt zur Zeit nicht auf","Erreur ne se produit actuellement pas","Guasto al momento non verificato"]
[200,"Wasserverlust","Fuite d'eau","Perdita d'acqua"]
[]
[]
[]
[null,{"$f":"A2&\" \"&B2","v":"5 Kältekreislauf (Leckage/ Verstopfung/ Füllmenge)"},{"$f":"A2&\" \"&C2","v":"5 Circuit de refroidissement"}]
[null,{"$f":"A3&\" \"&B3","v":"40 Elektrik"},{"$f":"A3&\" \"&C3","v":"40 Electricité"}]
[null,"45 Elektronik (Fehler an elektronischen Baugruppen)","45 Electronique"]
[null,"50 Mechanik","50 Mécanique"]
[null,"60 Geräusch","60 Bruit"]
[null,"65 Oberflächen (Gerät oder Einzelteile/ Innen oder außen / kein Transport-schaden erkennbar!)","65 Surfaces"]
[null,"25 Transportschaden - Verpackung beschädigt","25 Avarie de transport Emballage endommagé"]
[null,"26 Transportschaden - Verpackung nicht mehr vorhanden","26 Avarie de transport Plus d'emballage"]
[null,"27 Schadensursache unklar - Verpackung nicht beschädigt","27 Cause de dommage indéterminée Emballage pas endommagé"]
[null,"30 Produktmangel (kein Transportschaden erkennbar)","30 Défaut produit"]
[null,"46 Vernetzung/Kommunikation","46 Système électronique / communication"]
[null,"80 kein Fehler","80 pas d'erreur"]
[null,"101 Fehler tritt zur Zeit nicht auf","101 Erreur ne se produit actuellement pas"]
[null,"200 Wasserverlust","200 Fuite d'eau"]

{"sheet":"Fehlercode_fuer_formel","index":4,"n_rows":116,"n_cols":14,"rows_kept":116,"cut":false,"hidden":true,"merged":[[0,0,0,13]]}
["Fehlergruppe"]
[{"$f":"Fehlergruppe!C19","v":"5 Circuit de refroidissement"},{"$f":"Fehlergruppe!C20","v":"40 Electricité"},{"$f":"Fehlergruppe!C21","v":"45 Electronique"},{"$f":"Fehlergruppe!C22","v":"50 Mécanique"},{"$f":"Fehlergruppe!C23","v":"60 Bruit"},{"$f":"Fehlergruppe!C24","v":"65 Surfaces"},{"$f":"Fehlergruppe!C25","v":"25 Avarie de transport Emballage endommagé"},{"$f":"Fehlergruppe!C26","v":"26 Avarie de transport Plus d'emballage"},{"$f":"Fehlergruppe!C27","v":"27 Cause de dommage indéterminée Emballage pas endommagé"},{"$f":"Fehlergruppe!C28","v":"30 Défaut produit"},{"$f":"Fehlergruppe!C29","v":"46 Système électronique / communication"},{"$f":"Fehlergruppe!C30","v":"80 pas d'erreur"},{"$f":"Fehlergruppe!C31","v":"101 Erreur ne se produit actuellement pas"},{"$f":"Fehlergruppe!C32","v":"200 Fuite d'eau"}]
[null,null,null,null,null,null,null,null,null,null,null,null,null,{"$f":"'Codes d''erreur_FR'!D377","v":"201 Cassé"}]
[{"$f":"'Codes d''erreur_FR'!D2","v":"1 Soudure non étanche"},{"$f":"'Codes d''erreur_FR'!D35","v":"31 Hors tolérance (capteur etc.)"},{"$f":"'Codes d''erreur_FR'!D77","v":"34 Court-circuit"},{"$f":"'Codes d''erreur_FR'!D98","v":"10 Casse"},{"$f":"'Codes d''erreur_FR'!D118","v":"64 Bruit de craquement"},{"$f":"'Codes d''erreur_FR'!D144","v":"13 Éraflure"},{"$f":"'Codes d''erreur_FR'!D178","v":"10 Casse"},{"$f":"'Codes d''erreur_FR'!D178","v":"10 Casse"},{"$f":"'Codes d''erreur_FR'!D178","v":"10 Casse"},{"$f":"'Codes d''erreur_FR'!D217","v":"2 Non étanche"},{"$f":"'Codes d''erreur_FR'!D363","v":"297 Câbles erreur de câblage"},{"$f":"'Codes d''erreur_FR'!D302","v":"81 Erreur de montage/ de mise en place"},{"$f":"'Codes d''erreur_FR'!D336","v":"483 Bruit occasionnel"},{"$f":"'Codes d''erreur_FR'!D378","v":"205 Déborde"}]
[{"$f":"'Codes d''erreur_FR'!D3","v":"12 Pli"},{"$f":"'Codes d''erreur_FR'!D36","v":"32 Coupure électrique"},{"$f":"'Codes d''erreur_FR'!D78","v":"39 Règle mal"},{"$f":"'Codes d''erreur_FR'!D99","v":"33 Affichage incorrect"},{"$f":"'Codes d''erreur_FR'!D119","v":"65 Bruit de couinement/ grincement"},{"$f":"'Codes d''erreur_FR'!D145","v":"30 Trop de vernis"},{"$f":"'Codes d''erreur_FR'!D179","v":"11 Creux"},{"$f":"'Codes d''erreur_FR'!D179","v":"11 Creux"},{"$f":"'Codes d''erreur_FR'!D179","v":"11 Creux"},{"$f":"'Codes d''erreur_FR'!D218","v":"10 Casse"},{"$f":"'Codes d''erreur_FR'!D364","v":"410 Incompatible (p. ex. tablette, smartphone)"},{"$f":"'Codes d''erreur_FR'!D303","v":"82 Erreur ne se produit actuellement pas"},{"$f":"'Codes d''erreur_FR'!D337","v":"484 Variation occasionnelle de la température"},{"$f":"'Codes d''erreur_FR'!D379","v":"206 Dégât"}]
[{"$f":"'Codes d''erreur_FR'!D4","v":"23 Grippé"},{"$f":"'Codes d''erreur_FR'!D37","v":"33 Affichage incorrect"},{"$f":"'Codes d''erreur_FR'!D79","v":"40 Grillé"},{"$f":"'Codes d''erreur_FR'!D100","v":"23 Grippé"},{"$f":"'Codes d''erreur_FR'!D120","v":"66 Bruit de fonctionnement"},{"$f":"'Codes d''erreur_FR'!D146","v":"70 Empreinte"},{"$f":"'Codes d''erreur_FR'!D180","v":"12 Pli"},{"$f":"'Codes d''erreur_FR'!D180","v":"12 Pli"},{"$f":"'Codes d''erreur_FR'!D180","v":"12 Pli"},{"$f":"'Codes d''erreur_FR'!D219","v":"12 Pli"},{"$f":"'Codes d''erreur_FR'!D365","v":"411 Erreur de configuration"},{"$f":"'Codes d''erreur_FR'!D304","v":"83 Odeur"},{"$f":"'Codes d''erreur_FR'!D338","v":"485 Message d'alarme occasionnel "},{"$f":"'Codes d''erreur_FR'!D380","v":"207 Fendu"}]
[{"$f":"'Codes d''erreur_FR'!D5","v":"28 Bouché"},{"$f":"'Codes d''erreur_FR'!D38","v":"34 Court-circuit"},{"$f":"'Codes d''erreur_FR'!D80","v":"41 Faux-contact"},{"$f":"'Codes d''erreur_FR'!D101","v":"25 Tordu / gondolé"},{"$f":"'Codes d''erreur_FR'!D121","v":"69 Bruit de vibration"},{"$f":"'Codes d''erreur_FR'!D147","v":"71 Corrosion"},{"$f":"'Codes d''erreur_FR'!D181","v":"13 Éraflure"},{"$f":"'Codes d''erreur_FR'!D181","v":"13 Éraflure"},{"$f":"'Codes d''erreur_FR'!D181","v":"13 Éraflure"},{"$f":"'Codes d''erreur_FR'!D220","v":"14 Lâche"},{"$f":"'Codes d''erreur_FR'!D366","v":"412 Puissance du signal"},{"$f":"'Codes d''erreur_FR'!D305","v":"85 Température ambiante trop froide"},{"$f":"'Codes d''erreur_FR'!D339","v":"486 Déclenchement temporaire du dispositif de sécurité"},{"$f":"'Codes d''erreur_FR'!D381","v":"208 Erreur de Montage"}]
[{"$f":"'Codes d''erreur_FR'!D6","v":"58 Se bloque / coince"},{"$f":"'Codes d''erreur_FR'!D39","v":"36 Câbles endommagés"},{"$f":"'Codes d''erreur_FR'!D81","v":"42 Éclairage ne démarre pas / partiellement / insuffisamment"},{"$f":"'Codes d''erreur_FR'!D102","v":"27 Décalé / déplacé"},{"$f":"'Codes d''erreur_FR'!D122","v":"89 Bruit de cliquetis / tapotement"},{"$f":"'Codes d''erreur_FR'!D148","v":"72 Pas assez de vernis"},{"$f":"'Codes d''erreur_FR'!D182","v":"14 Lâche"},{"$f":"'Codes d''erreur_FR'!D182","v":"14 Lâche"},{"$f":"'Codes d''erreur_FR'!D182","v":"14 Lâche"},{"$f":"'Codes d''erreur_FR'!D221","v":"15 Fissure"},{"$f":"'Codes d''erreur_FR'!D367","v":"488 Aucune connexion"},{"$f":"'Codes d''erreur_FR'!D306","v":"86 Température ambiante trop chaude"},{"$f":"'Codes d''erreur_FR'!D340","v":"487 Taux d'humidité parfois trop élevé / trop faible"},{"$f":"'Codes d''erreur_FR'!D382","v":"209 Pas étanche"}]
[{"$f":"'Codes d''erreur_FR'!D7","v":"60 Pas de puissance"},{"$f":"'Codes d''erreur_FR'!D40","v":"39 Règle mal"},{"$f":"'Codes d''erreur_FR'!D82","v":"43 Affichage / écran défectueux"},{"$f":"'Codes d''erreur_FR'!D103","v":"57 Usé"},{"$f":"'Codes d''erreur_FR'!D123","v":"203 Bruit de commutation"},{"$f":"'Codes d''erreur_FR'!D149","v":"87 S’écaille"},{"$f":"'Codes d''erreur_FR'!D183","v":"15 Fissure"},{"$f":"'Codes d''erreur_FR'!D183","v":"15 Fissure"},{"$f":"'Codes d''erreur_FR'!D183","v":"15 Fissure"},{"$f":"'Codes d''erreur_FR'!D222","v":"18 Manquant"},{"$f":"'Codes d''erreur_FR'!D368","v":"588 Erreur de logiciel (bug)"},{"$f":"'Codes d''erreur_FR'!D307","v":"148 Encrassé"},{"$f":"'Codes d''erreur_FR'!D341","v":"488 Aucune connexion"},{"$f":"'Codes d''erreur_FR'!D383","v":"999 Type d’erreur non imputable"}]
[{"$f":"'Codes d''erreur_FR'!D8","v":"291 Raccord Lokring non étanche"},{"$f":"'Codes d''erreur_FR'!D41","v":"40 Grillé"},{"$f":"'Codes d''erreur_FR'!D83","v":"44 Défaillance générale"},{"$f":"'Codes d''erreur_FR'!D104","v":"58 Se bloque / coince"},{"$f":"'Codes d''erreur_FR'!D124","v":"300 Bruit d’injection / de circulation"},{"$f":"'Codes d''erreur_FR'!D150","v":"88 Bombement / bosse"},{"$f":"'Codes d''erreur_FR'!D184","v":"16 Trace de frottement"},{"$f":"'Codes d''erreur_FR'!D184","v":"16 Trace de frottement"},{"$f":"'Codes d''erreur_FR'!D184","v":"16 Trace de frottement"},{"$f":"'Codes d''erreur_FR'!D223","v":"19 Eau de condensation"},{"$f":"'Codes d''erreur_FR'!D369","v":"999 Type d’erreur non imputable"},{"$f":"'Codes d''erreur_FR'!D308","v":"304 Bruits de fonctionnement normaux"},{"$f":"'Codes d''erreur_FR'!D342","v":"489 Condensation temporaire / rosée"}]
[{"$f":"'Codes d''erreur_FR'!D9","v":"292 Matériau / tuyau non étanche"},{"$f":"'Codes d''erreur_FR'!D42","v":"41 Faux-contact"},{"$f":"'Codes d''erreur_FR'!D84","v":"45 Chauffage ne démarre pas"},{"$f":"'Codes d''erreur_FR'!D105","v":"999 Type d’erreur non imputable"},{"$f":"'Codes d''erreur_FR'!D125","v":"687 Glouglou"},{"$f":"'Codes d''erreur_FR'!D151","v":"165 Variation de couleur"},{"$f":"'Codes d''erreur_FR'!D185","v":"17 Écrasement"},{"$f":"'Codes d''erreur_FR'!D185","v":"17 Écrasement"},{"$f":"'Codes d''erreur_FR'!D185","v":"17 Écrasement"},{"$f":"'Codes d''erreur_FR'!D224","v":"20 Déborde"},null,{"$f":"'Codes d''erreur_FR'!D309","v":"305 Pièce plus disponible"},{"$f":"'Codes d''erreur_FR'!D343","v":"490 Défaillance totale occasionnelle"}]
[{"$f":"'Codes d''erreur_FR'!D10","v":"293 Soudure bouchée"},{"$f":"'Codes d''erreur_FR'!D43","v":"202 Ne commute pas"},{"$f":"'Codes d''erreur_FR'!D85","v":"46 Compresseur ne démarre pas"},null,{"$f":"'Codes d''erreur_FR'!D126","v":"999 Type d’erreur non imputable"},{"$f":"'Codes d''erreur_FR'!D152","v":"301 Microsection acier inox"},null,null,null,{"$f":"'Codes d''erreur_FR'!D225","v":"22 De travers"},null,{"$f":"'Codes d''erreur_FR'!D310","v":"339 Mode démo lors de mise en service"},{"$f":"'Codes d''erreur_FR'!D344","v":"491 Erreur d'éclairage occasionnelle"}]
[{"$f":"'Codes d''erreur_FR'!D11","v":"409 Givrage de la conduite d’aspiration"},{"$f":"'Codes d''erreur_FR'!D44","v":"297 Câbles erreur de câblage"},{"$f":"'Codes d''erreur_FR'!D86","v":"47 Lampe témoin défectueuse"},null,null,{"$f":"'Codes d''erreur_FR'!D153","v":"302 Taches"},null,null,null,{"$f":"'Codes d''erreur_FR'!D226","v":"23 Grippé"},null,{"$f":"'Codes d''erreur_FR'!D311","v":"340 Tension d’alimentation manquante"},{"$f":"'Codes d''erreur_FR'!D345","v":"492 Occasionnellement bloqué/grippé"}]
[{"$f":"'Codes d''erreur_FR'!D12","v":"999 Type d’erreur non imputable"},{"$f":"'Codes d''erreur_FR'!D45","v":"999 Type d’erreur non imputable"},{"$f":"'Codes d''erreur_FR'!D87","v":"48 Électrovanne n’est pas activée"},null,null,{"$f":"'Codes d''erreur_FR'!D154","v":"303 Résidus de film"},null,null,null,{"$f":"'Codes d''erreur_FR'!D227","v":"24 Givrage"},null,{"$f":"'Codes d''erreur_FR'!D312","v":"341 Inversion du sens d’ouverture de la porte"}]
[null,null,{"$f":"'Codes d''erreur_FR'!D88","v":"49 Touche ou interrupteur défectueux"},null,null,{"$f":"'Codes d''erreur_FR'!D155","v":"405 Décollé"},null,null,null,{"$f":"'Codes d''erreur_FR'!D228","v":"25 Tordu / gondolé"},null,{"$f":"'Codes d''erreur_FR'!D313","v":"342 Informations non précises"}]
[null,null,{"$f":"'Codes d''erreur_FR'!D89","v":"50 Variations de température"},null,null,{"$f":"'Codes d''erreur_FR'!D156","v":"999 Type d’erreur non imputable"},null,null,null,{"$f":"'Codes d''erreur_FR'!D229","v":"27 Décalé / déplacé"},null,{"$f":"'Codes d''erreur_FR'!D314","v":"343 Erreur d’utilisation / non respect manuel d’utilisation"}]
[null,null,{"$f":"'Codes d''erreur_FR'!D90","v":"51 Avertisseur sonore sans fonction"},null,null,null,null,null,null,{"$f":"'Codes d''erreur_FR'!D230","v":"28 Bouché"},null,{"$f":"'Codes d''erreur_FR'!D315","v":"344 Oxydation"}]
[null,null,{"$f":"'Codes d''erreur_FR'!D91","v":"54 Alarme de température injustifiée"},null,null,null,null,null,null,{"$f":"'Codes d''erreur_FR'!D231","v":"29 Serré trop fort"},null,{"$f":"'Codes d''erreur_FR'!D316","v":"345 Différences / variations de températures normales"}]
[null,null,{"$f":"'Codes d''erreur_FR'!D92","v":"55 Interruption (fissure capillaire, joint soudé, etc.)"},null,null,null,null,null,null,{"$f":"'Codes d''erreur_FR'!D232","v":"58 Se bloque / coince"},null,{"$f":"'Codes d''erreur_FR'!D317","v":"346 Mauvais appareil"}]
[null,null,{"$f":"'Codes d''erreur_FR'!D93","v":"56 Ventilateur ne démarre pas"},null,null,null,null,null,null,{"$f":"'Codes d''erreur_FR'!D233","v":"79 Mauvaise pièce"},null,{"$f":"'Codes d''erreur_FR'!D318","v":"406 Consommation électrique normale"}]
[null,null,{"$f":"'Codes d''erreur_FR'!D94","v":"298 Pompe réservoir à eau ne démarre pas"},null,null,null,null,null,null,{"$f":"'Codes d''erreur_FR'!D234","v":"83 Odeur"},null,{"$f":"'Codes d''erreur_FR'!D319","v":"407 Durée de fonctionnement normale"}]
[null,null,{"$f":"'Codes d''erreur_FR'!D95","v":"299 Volet d’aération n’est pas activé"},null,null,null,null,null,null,{"$f":"'Codes d''erreur_FR'!D235","v":"91 Montage incorrect"},null,{"$f":"'Codes d''erreur_FR'!D320","v":"408 Congélation, givrage normal"}]
[null,null,{"$f":"'Codes d''erreur_FR'!D96","v":"588 Erreur de logiciel (bug)"},null,null,null,null,null,null,{"$f":"'Codes d''erreur_FR'!D236","v":"103 Sortie de mousse"},null,{"$f":"'Codes d''erreur_FR'!D321","v":"410 Incompatible (p. ex. tablette, smartphone)"}]
[null,null,{"$f":"'Codes d''erreur_FR'!D97","v":"999 Type d’erreur non imputable"},null,null,null,null,null,null,{"$f":"'Codes d''erreur_FR'!D237","v":"148 Encrassé"},null,{"$f":"'Codes d''erreur_FR'!D322","v":"412 Puissance du signal"}]
[null,null,null,null,null,null,null,null,null,{"$f":"'Codes d''erreur_FR'!D238","v":"204 Chute"},null,{"$f":"'Codes d''erreur_FR'!D323","v":"999 Type d’erreur non imputable"}]
[null,null,null,null,null,null,null,null,null,{"$f":"'Codes d''erreur_FR'!D239","v":"296 Erreur d’isolation"}]
[null,null,null,null,null,null,null,null,null,{"$f":"'Codes d''erreur_FR'!D240","v":"999 Type d’erreur non imputable"}]
[]
[]
[{"$f":"A2","v":"5 Circuit de refroidissement"},{"$f":"B2","v":"40 Electricité"},{"$f":"C2","v":"45 Electronique"},"50 Mécanique","60 Bruit","65 Surfaces",{"$f":"G2","v":"25 Avarie de transport Emballage endommagé"},{"$f":"H2","v":"26 Avarie de transport Plus d'emballage"},{"$f":"I2","v":"27 Cause de dommage indéterminée Emballage pas endommagé"},{"$f":"J2","v":"30 Défaut produit"},{"$f":"K2","v":"46 Système électronique / communication"},{"$f":"L2","v":"80 pas d'erreur"},"101 Erreur ne se produit actuellement pas","200 Fuite d'eau"]
[]
[{"$f":"'Codes d''erreur_FR'!G2","v":"2 Capillaires"},{"$f":"'Codes d''erreur_FR'!G35","v":"9 Vanne circuit réfrigérant"},{"$f":"'Codes d''erreur_FR'!G77","v":"72 Touche/interrupteur"},{"$f":"'Codes d''erreur_FR'!G98","v":"28 Pied/ roulette"},{"$f":"'Codes d''erreur_FR'!G118","v":"2 Capillaires"},{"$f":"'Codes d''erreur_FR'!G144","v":"18 Évaporateur compartiment réfrigérateur"},{"$f":"'Codes d''erreur_FR'!G178","v":"20 Condenseur"},{"$f":"'Codes d''erreur_FR'!G178","v":"20 Condenseur"},{"$f":"'Codes d''erreur_FR'!G178","v":"20 Condenseur"},{"$f":"'Codes d''erreur_FR'!G217","v":"17 Évaporateur compartiment congélateur"},{"$f":"'Codes d''erreur_FR'!G363","v":"470 Interface (RS 485, RS 232, CAN BUS, MOD BUS, Ethernet, clé IR, Wi-Fi, BT, USB, …)"},{"$f":"'Codes d''erreur_FR'!G302","v":"9 Vanne circuit réfrigérant"},{"$f":"'Codes d''erreur_FR'!G336","v":"17 Évaporateur compartiment congélateur"},{"$f":"'Codes d''erreur_FR'!G377","v":"210 Tuyau d'eau"}]
[{"$f":"'Codes d''erreur_FR'!G3","v":"3 Raccord de remplissage du compresseur (liaison)"},{"$f":"'Codes d''erreur_FR'!G36","v":"59 Éclairage"},{"$f":"'Codes d''erreur_FR'!G78","v":"82 Bornier de platine"},{"$f":"'Codes d''erreur_FR'!G99","v":"30 Poignée"},{"$f":"'Codes d''erreur_FR'!G119","v":"9 Vanne circuit réfrigérant"},{"$f":"'Codes d''erreur_FR'!G145","v":"26 Couvercle (coffre) / couvercle coulissant"},{"$f":"'Codes d''erreur_FR'!G179","v":"28 Pied/ roulette"},{"$f":"'Codes d''erreur_FR'!G179","v":"28 Pied/ roulette"},{"$f":"'Codes d''erreur_FR'!G179","v":"28 Pied/ roulette"},{"$f":"'Codes d''erreur_FR'!G218","v":"18 Évaporateur compartiment réfrigérateur"},{"$f":"'Codes d''erreur_FR'!G364","v":"595 Résistance de terminaison"},{"$f":"'Codes d''erreur_FR'!G303","v":"30 Poignée"},{"$f":"'Codes d''erreur_FR'!G337","v":"18 Évaporateur compartiment réfrigérateur"},{"$f":"'Codes d''erreur_FR'!G378","v":"211 Vanne d'entrée d'eau"}]
[{"$f":"'Codes d''erreur_FR'!G4","v":"4 Compresseur–cadre chauffant (liaison)"},{"$f":"'Codes d''erreur_FR'!G37","v":"60 Chauffage"},{"$f":"'Codes d''erreur_FR'!G79","v":"172 Platine électronique"},{"$f":"'Codes d''erreur_FR'!G100","v":"72 Touche/interrupteur"},{"$f":"'Codes d''erreur_FR'!G120","v":"17 Évaporateur compartiment congélateur"},{"$f":"'Codes d''erreur_FR'!G146","v":"30 Poignée"},{"$f":"'Codes d''erreur_FR'!G180","v":"29 Tablettes en verre, balconnets, etc."},{"$f":"'Codes d''erreur_FR'!G180","v":"29 Tablettes en verre, balconnets, etc."},{"$f":"'Codes d''erreur_FR'!G180","v":"29 Tablettes en verre, balconnets, etc."},{"$f":"'Codes d''erreur_FR'!G219","v":"20 Condenseur"},{"$f":"'Codes d''erreur_FR'!G365","v":"597 APP / logiciel"},{"$f":"'Codes d''erreur_FR'!G304","v":"34 Face arrière"},{"$f":"'Codes d''erreur_FR'!G338","v":"26 Couvercle (coffre) / couvercle coulissant"},{"$f":"'Codes d''erreur_FR'!G379","v":"212 Joint"}]
[{"$f":"'Codes d''erreur_FR'!G5","v":"5 Compresseur–conduite d’aspiration (liaison)"},{"$f":"'Codes d''erreur_FR'!G38","v":"61 Panneau isolant"},{"$f":"'Codes d''erreur_FR'!G80","v":"260 Inverter"},{"$f":"'Codes d''erreur_FR'!G101","v":"84 Serrure"},{"$f":"'Codes d''erreur_FR'!G121","v":"18 Évaporateur compartiment réfrigérateur"},{"$f":"'Codes d''erreur_FR'!G147","v":"34 Face arrière"},{"$f":"'Codes d''erreur_FR'!G181","v":"30 Poignée"},{"$f":"'Codes d''erreur_FR'!G181","v":"30 Poignée"},{"$f":"'Codes d''erreur_FR'!G181","v":"30 Poignée"},{"$f":"'Codes d''erreur_FR'!G220","v":"26 Couvercle (coffre) / couvercle coulissant"},{"$f":"'Codes d''erreur_FR'!G366","v":"601 Clé infrarouge"},{"$f":"'Codes d''erreur_FR'!G305","v":"42 Porte compartiment congélateur"},{"$f":"'Codes d''erreur_FR'!G339","v":"29 Tablettes en verre, balconnets, etc."},{"$f":"'Codes d''erreur_FR'!G380","v":"213 Pompe de vidange"}]
[{"$f":"'Codes d''erreur_FR'!G6","v":"7 Compresseur–condenseur (liaison)"},{"$f":"'Codes d''erreur_FR'!G39","v":"62 Faisceau de câbles / cordon"},{"$f":"'Codes d''erreur_FR'!G81","v":"264 Système électronique distributeur de glaçons"},{"$f":"'Codes d''erreur_FR'!G102","v":"85 Thermomètre"},{"$f":"'Codes d''erreur_FR'!G122","v":"20 Condenseur"},{"$f":"'Codes d''erreur_FR'!G148","v":"36 Paroi latérale général"},{"$f":"'Codes d''erreur_FR'!G182","v":"33 Logement du compresseur"},{"$f":"'Codes d''erreur_FR'!G182","v":"33 Logement du compresseur"},{"$f":"'Codes d''erreur_FR'!G182","v":"33 Logement du compresseur"},{"$f":"'Codes d''erreur_FR'!G221","v":"30 Poignée"},{"$f":"'Codes d''erreur_FR'!G367","v":"602 Convertisseur pour port série (EVCO, Carel)"},{"$f":"'Codes d''erreur_FR'!G306","v":"43 Porte compartiment réfrigérateur"},{"$f":"'Codes d''erreur_FR'!G340","v":"36 Paroi latérale général"},{"$f":"'Codes d''erreur_FR'!G381","v":"214 Sonde de niveau"}]
[{"$f":"'Codes d''erreur_FR'!G7","v":"9 Vanne circuit réfrigérant"},{"$f":"'Codes d''erreur_FR'!G40","v":"63 Compresseur"},{"$f":"'Codes d''erreur_FR'!G82","v":"441 Module de liaison"},{"$f":"'Codes d''erreur_FR'!G103","v":"259 Rail coulissant / télescopique"},{"$f":"'Codes d''erreur_FR'!G123","v":"52 Récipient d’eau de dégivrage"},{"$f":"'Codes d''erreur_FR'!G149","v":"40 Dessus"},{"$f":"'Codes d''erreur_FR'!G183","v":"34 Face arrière"},{"$f":"'Codes d''erreur_FR'!G183","v":"34 Face arrière"},{"$f":"'Codes d''erreur_FR'!G183","v":"34 Face arrière"},{"$f":"'Codes d''erreur_FR'!G222","v":"34 Face arrière"},{"$f":"'Codes d''erreur_FR'!G368","v":"603 Câble LAN"},{"$f":"'Codes d''erreur_FR'!G307","v":"51 Écoulement de l’eau de dégivrage"},{"$f":"'Codes d''erreur_FR'!G341","v":"40 Dessus"},{"$f":"'Codes d''erreur_FR'!G382","v":" "}]
[{"$f":"'Codes d''erreur_FR'!G8","v":"11 Cadre chauffant"},{"$f":"'Codes d''erreur_FR'!G41","v":"64 Compresseur–dispositif de démarrage"},{"$f":"'Codes d''erreur_FR'!G83","v":"442 Alimentation éclairage LED / transformateur"},{"$f":"'Codes d''erreur_FR'!G104","v":"265 Distributeur de glaçons"},{"$f":"'Codes d''erreur_FR'!G124","v":"63 Compresseur"},{"$f":"'Codes d''erreur_FR'!G150","v":"41 Cadre de protection du coffre"},{"$f":"'Codes d''erreur_FR'!G184","v":"38 Cache socle"},{"$f":"'Codes d''erreur_FR'!G184","v":"38 Cache socle"},{"$f":"'Codes d''erreur_FR'!G184","v":"38 Cache socle"},{"$f":"'Codes d''erreur_FR'!G223","v":"36 Paroi latérale général"},{"$f":"'Codes d''erreur_FR'!G369","v":"605 Module maître / esclave (HomeDialog)"},{"$f":"'Codes d''erreur_FR'!G308","v":"52 Récipient d’eau de dégivrage"},{"$f":"'Codes d''erreur_FR'!G342","v":"42 Porte compartiment congélateur"}]
[{"$f":"'Codes d''erreur_FR'!G9","v":"12 Cadre chauffant–condenseur (liaison)"},{"$f":"'Codes d''erreur_FR'!G42","v":"65 Compresseur–disjoncteur-protecteur"},{"$f":"'Codes d''erreur_FR'!G84","v":"516 Limiteur de température"},{"$f":"'Codes d''erreur_FR'!G105","v":"408 Amortisseur de fermeture"},{"$f":"'Codes d''erreur_FR'!G125","v":"74 Thermostat de réglage"},{"$f":"'Codes d''erreur_FR'!G151","v":"42 Porte compartiment congélateur"},{"$f":"'Codes d''erreur_FR'!G185","v":"39 Pièces de l’équipement intérieur"},{"$f":"'Codes d''erreur_FR'!G185","v":"39 Pièces de l’équipement intérieur"},{"$f":"'Codes d''erreur_FR'!G185","v":"39 Pièces de l’équipement intérieur"},{"$f":"'Codes d''erreur_FR'!G224","v":"39 Pièces de l’équipement intérieur"},{"$f":"'Codes d''erreur_FR'!G370","v":"608 Smart Device Box"},{"$f":"'Codes d''erreur_FR'!G309","v":"59 Éclairage"},{"$f":"'Codes d''erreur_FR'!G343","v":"43 Porte compartiment réfrigérateur"}]
[{"$f":"'Codes d''erreur_FR'!G10","v":"13 Entrée conduite d’aspiration–capillaires (liaison)"},{"$f":"'Codes d''erreur_FR'!G43","v":"66 Condenseur"},{"$f":"'Codes d''erreur_FR'!G85","v":"519 Variateur d’intensité"},{"$f":"'Codes d''erreur_FR'!G106","v":"418 Charnière/ gond de porte"},{"$f":"'Codes d''erreur_FR'!G126","v":"87 Tuyaux"},{"$f":"'Codes d''erreur_FR'!G152","v":"43 Porte compartiment réfrigérateur"},{"$f":"'Codes d''erreur_FR'!G186","v":"40 Dessus"},{"$f":"'Codes d''erreur_FR'!G186","v":"40 Dessus"},{"$f":"'Codes d''erreur_FR'!G186","v":"40 Dessus"},{"$f":"'Codes d''erreur_FR'!G225","v":"40 Dessus"},{"$f":"'Codes d''erreur_FR'!G371","v":"685 NFC, puce RFID"},{"$f":"'Codes d''erreur_FR'!G310","v":"63 Compresseur"},{"$f":"'Codes d''erreur_FR'!G344","v":"51 Écoulement de l’eau de dégivrage"}]
[{"$f":"'Codes d''erreur_FR'!G11","v":"14 Conduite d’aspiration–évaporateur (liaison)"},{"$f":"'Codes d''erreur_FR'!G44","v":"67 Lampes témoin"},{"$f":"'Codes d''erreur_FR'!G86","v":"606 Platine de connexion réseau"},{"$f":"'Codes d''erreur_FR'!G107","v":"432 Unité de sortie glace/ eau"},{"$f":"'Codes d''erreur_FR'!G127","v":"252 Vanne arrivée d’eau"},{"$f":"'Codes d''erreur_FR'!G153","v":"53 Boîtier de thermostat / interrupteur d’éclairage"},{"$f":"'Codes d''erreur_FR'!G187","v":"41 Cadre de protection du coffre"},{"$f":"'Codes d''erreur_FR'!G187","v":"41 Cadre de protection du coffre"},{"$f":"'Codes d''erreur_FR'!G187","v":"41 Cadre de protection du coffre"},{"$f":"'Codes d''erreur_FR'!G226","v":"41 Cadre de protection du coffre"},{"$f":"'Codes d''erreur_FR'!G372","v":"686 Capteurs intelligents"},{"$f":"'Codes d''erreur_FR'!G311","v":"172 Platine électronique"},{"$f":"'Codes d''erreur_FR'!G345","v":"59 Éclairage"}]
[{"$f":"'Codes d''erreur_FR'!G12","v":"15 Sécheur"},{"$f":"'Codes d''erreur_FR'!G45","v":"68 Contact Reed (reconnaissance de porte, ...)"},{"$f":"'Codes d''erreur_FR'!G87","v":"612 Unité de commande, interface utilisateur (User Interface)"},{"$f":"'Codes d''erreur_FR'!G108","v":"439 Volet d’aération"},{"$f":"'Codes d''erreur_FR'!G128","v":"260 Inverter"},{"$f":"'Codes d''erreur_FR'!G154","v":"59 Éclairage"},{"$f":"'Codes d''erreur_FR'!G188","v":"59 Éclairage"},{"$f":"'Codes d''erreur_FR'!G188","v":"59 Éclairage"},{"$f":"'Codes d''erreur_FR'!G188","v":"59 Éclairage"},{"$f":"'Codes d''erreur_FR'!G227","v":"42 Porte compartiment congélateur"},{"$f":"'Codes d''erreur_FR'!G373","v":"695 Boutique de licences"},{"$f":"'Codes d''erreur_FR'!G312","v":"199 Chauffage d’hiver"},{"$f":"'Codes d''erreur_FR'!G346","v":"102 Tiroir"}]
[{"$f":"'Codes d''erreur_FR'!G13","v":"16 Sécheur–capillaires (liaison)"},{"$f":"'Codes d''erreur_FR'!G46","v":"71 Prise/ raccord à vis"},{"$f":"'Codes d''erreur_FR'!G88","v":"681 Module RS485"},{"$f":"'Codes d''erreur_FR'!G109","v":"522 Ventilateur – condenseur"},{"$f":"'Codes d''erreur_FR'!G129","v":"265 Distributeur de glaçons"},{"$f":"'Codes d''erreur_FR'!G155","v":"99 Liaison transversale"},{"$f":"'Codes d''erreur_FR'!G189","v":"99 Liaison transversale"},{"$f":"'Codes d''erreur_FR'!G189","v":"99 Liaison transversale"},{"$f":"'Codes d''erreur_FR'!G189","v":"99 Liaison transversale"},{"$f":"'Codes d''erreur_FR'!G228","v":"43 Porte compartiment réfrigérateur"},{"$f":"'Codes d''erreur_FR'!G374","v":"696 SmartMonitoring"},{"$f":"'Codes d''erreur_FR'!G313","v":"206 Caractéristiques de l’appareil"},{"$f":"'Codes d''erreur_FR'!G347","v":"159 \u0090Joint de porte compartiment étoiles"}]
[{"$f":"'Codes d''erreur_FR'!G14","v":"17 Évaporateur compartiment congélateur"},{"$f":"'Codes d''erreur_FR'!G47","v":"72 Touche/interrupteur"},{"$f":"'Codes d''erreur_FR'!G89","v":"684 Filtre réseau"},{"$f":"'Codes d''erreur_FR'!G110","v":"523 Ventilateur – compartiment congélateur"},{"$f":"'Codes d''erreur_FR'!G130","v":"266 Tablette de séparation verticale"},{"$f":"'Codes d''erreur_FR'!G156","v":"102 Tiroir"},{"$f":"'Codes d''erreur_FR'!G190","v":"309 Support de compresseur"},{"$f":"'Codes d''erreur_FR'!G190","v":"309 Support de compresseur"},{"$f":"'Codes d''erreur_FR'!G190","v":"309 Support de compresseur"},{"$f":"'Codes d''erreur_FR'!G229","v":"47 Passage de boîtier"},{"$f":"'Codes d''erreur_FR'!G375","v":"697 SmartCoolingHub"},{"$f":"'Codes d''erreur_FR'!G314","v":"207 Informations"},{"$f":"'Codes d''erreur_FR'!G348","v":"172 Platine électronique"}]
[{"$f":"'Codes d''erreur_FR'!G15","v":"18 Évaporateur compartiment réfrigérateur"},{"$f":"'Codes d''erreur_FR'!G48","v":"73 Capteur de température"},{"$f":"'Codes d''erreur_FR'!G90","v":"685 NFC, puce RFID"},{"$f":"'Codes d''erreur_FR'!G111","v":"524 Ventilateur – compartiment réfrigérateur/ BioFresh"},{"$f":"'Codes d''erreur_FR'!G131","v":"274 Valve de compensation de pression"},{"$f":"'Codes d''erreur_FR'!G157","v":"159 \u0090Joint de porte compartiment étoiles"},{"$f":"'Codes d''erreur_FR'!G191","v":"364 Cuve intérieure compartiment congélateur"},{"$f":"'Codes d''erreur_FR'!G191","v":"364 Cuve intérieure compartiment congélateur"},{"$f":"'Codes d''erreur_FR'!G191","v":"364 Cuve intérieure compartiment congélateur"},{"$f":"'Codes d''erreur_FR'!G230","v":"49 Commutateur d’éclairage"},{"$f":"'Codes d''erreur_FR'!G376","v":" "},{"$f":"'Codes d''erreur_FR'!G315","v":"208 Précision technique (description du fonctionnement)"},{"$f":"'Codes d''erreur_FR'!G349","v":"265 Distributeur de glaçons"}]
[{"$f":"'Codes d''erreur_FR'!G16","v":"19 Point d’injection évaporateur (liaison)"},{"$f":"'Codes d''erreur_FR'!G49","v":"74 Thermostat de réglage"},{"$f":"'Codes d''erreur_FR'!G91","v":"686 Capteurs intelligents"},{"$f":"'Codes d''erreur_FR'!G112","v":"527 Fermeture à distance"},{"$f":"'Codes d''erreur_FR'!G132","v":"408 Amortisseur de fermeture"},{"$f":"'Codes d''erreur_FR'!G158","v":"266 Tablette de séparation verticale"},{"$f":"'Codes d''erreur_FR'!G192","v":"374 Contre-porte compartiment congélateur"},{"$f":"'Codes d''erreur_FR'!G192","v":"374 Contre-porte compartiment congélateur"},{"$f":"'Codes d''erreur_FR'!G192","v":"374 Contre-porte compartiment congélateur"},{"$f":"'Codes d''erreur_FR'!G231","v":"50 Bouton de réglage"},null,{"$f":"'Codes d''erreur_FR'!G316","v":"223 Boîtier"},{"$f":"'Codes d''erreur_FR'!G350","v":"276 Vanne de sortie de l’eau de dégivrage"}]
[{"$f":"'Codes d''erreur_FR'!G17","v":"20 Condenseur"},{"$f":"'Codes d''erreur_FR'!G50","v":"75 Bande de distribution"},{"$f":"'Codes d''erreur_FR'!G92","v":"698 Relais semi-conducteur"},{"$f":"'Codes d''erreur_FR'!G113","v":"599 Module crush"},{"$f":"'Codes d''erreur_FR'!G133","v":"418 Charnière/ gond de porte"},{"$f":"'Codes d''erreur_FR'!G159","v":"309 Support de compresseur"},{"$f":"'Codes d''erreur_FR'!G193","v":"378 Paroi latérale à droite, en haut"},{"$f":"'Codes d''erreur_FR'!G193","v":"378 Paroi latérale à droite, en haut"},{"$f":"'Codes d''erreur_FR'!G193","v":"378 Paroi latérale à droite, en haut"},{"$f":"'Codes d''erreur_FR'!G232","v":"51 Écoulement de l’eau de dégivrage"},null,{"$f":"'Codes d''erreur_FR'!G317","v":"245 Circuit réfrigérant"},{"$f":"'Codes d''erreur_FR'!G351","v":"364 Cuve intérieure compartiment congélateur"}]
[{"$f":"'Codes d''erreur_FR'!G18","v":"21 Condenseur–sécheur (liaison)"},{"$f":"'Codes d''erreur_FR'!G51","v":"85 Thermomètre"},{"$f":"'Codes d''erreur_FR'!G93","v":"999 Lieu d’erreur non imputable"},{"$f":"'Codes d''erreur_FR'!G114","v":"600 Ouverture à pédale"},{"$f":"'Codes d''erreur_FR'!G134","v":"522 Ventilateur – condenseur"},{"$f":"'Codes d''erreur_FR'!G160","v":"336 Clayette fil/en bois"},{"$f":"'Codes d''erreur_FR'!G194","v":"379 Paroi latérale à droite, au milieu"},{"$f":"'Codes d''erreur_FR'!G194","v":"379 Paroi latérale à droite, au milieu"},{"$f":"'Codes d''erreur_FR'!G194","v":"379 Paroi latérale à droite, au milieu"},{"$f":"'Codes d''erreur_FR'!G233","v":"52 Récipient d’eau de dégivrage"},null,{"$f":"'Codes d''erreur_FR'!G318","v":"252 Vanne arrivée d’eau"},{"$f":"'Codes d''erreur_FR'!G352","v":"408 Amortisseur de fermeture"}]
[{"$f":"'Codes d''erreur_FR'!G19","v":"63 Compresseur"},{"$f":"'Codes d''erreur_FR'!G52","v":"103 Batterie/ accu"},null,{"$f":"'Codes d''erreur_FR'!G115","v":"609 Module d'ouverture de porte"},{"$f":"'Codes d''erreur_FR'!G135","v":"523 Ventilateur – compartiment congélateur"},{"$f":"'Codes d''erreur_FR'!G161","v":"364 Cuve intérieure compartiment congélateur"},{"$f":"'Codes d''erreur_FR'!G195","v":"380 Paroi latérale à droite, en bas"},{"$f":"'Codes d''erreur_FR'!G195","v":"380 Paroi latérale à droite, en bas"},{"$f":"'Codes d''erreur_FR'!G195","v":"380 Paroi latérale à droite, en bas"},{"$f":"'Codes d''erreur_FR'!G234","v":"53 Boîtier de thermostat / interrupteur d’éclairage"},null,{"$f":"'Codes d''erreur_FR'!G319","v":"364 Cuve intérieure compartiment congélateur"},{"$f":"'Codes d''erreur_FR'!G353","v":"418 Charnière/ gond de porte"}]
[{"$f":"'Codes d''erreur_FR'!G20","v":"395 Echangeur de chaleur ( à eau)"},{"$f":"'Codes d''erreur_FR'!G53","v":"252 Vanne arrivée d’eau"},null,{"$f":"'Codes d''erreur_FR'!G116","v":"683 Humidificateur (Hydrobreeze)"},{"$f":"'Codes d''erreur_FR'!G136","v":"524 Ventilateur – compartiment réfrigérateur/ BioFresh"},{"$f":"'Codes d''erreur_FR'!G162","v":"374 Contre-porte compartiment congélateur"},{"$f":"'Codes d''erreur_FR'!G196","v":"381 Paroi latérale à gauche, en haut"},{"$f":"'Codes d''erreur_FR'!G196","v":"381 Paroi latérale à gauche, en haut"},{"$f":"'Codes d''erreur_FR'!G196","v":"381 Paroi latérale à gauche, en haut"},{"$f":"'Codes d''erreur_FR'!G235","v":"56 Porte compartiment congélation"},null,{"$f":"'Codes d''erreur_FR'!G320","v":"408 Amortisseur de fermeture"},{"$f":"'Codes d''erreur_FR'!G354","v":"432 Unité de sortie glace/ eau"}]
[{"$f":"'Codes d''erreur_FR'!G21","v":"412 Évaporateur compartiment réfrigérateur–Module d’évaporateur  compartiment congélateur (liaison)"},{"$f":"'Codes d''erreur_FR'!G54","v":"265 Distributeur de glaçons"},null,{"$f":"'Codes d''erreur_FR'!G117","v":"999 Lieu d’erreur non imputable"},{"$f":"'Codes d''erreur_FR'!G137","v":"525 Cassette de refroidissement"},{"$f":"'Codes d''erreur_FR'!G163","v":"419 Interface utilisateur"},{"$f":"'Codes d''erreur_FR'!G197","v":"382 Paroi latérale à gauche, au milieu"},{"$f":"'Codes d''erreur_FR'!G197","v":"382 Paroi latérale à gauche, au milieu"},{"$f":"'Codes d''erreur_FR'!G197","v":"382 Paroi latérale à gauche, au milieu"},{"$f":"'Codes d''erreur_FR'!G236","v":"60 Chauffage"},null,{"$f":"'Codes d''erreur_FR'!G321","v":"473 Installation domestique"},{"$f":"'Codes d''erreur_FR'!G355","v":"436 Réservoir d’eau"}]
[{"$f":"'Codes d''erreur_FR'!G22","v":"413 Module d’évaporateur–conduite d’aspiration (liaison)"},{"$f":"'Codes d''erreur_FR'!G55","v":"274 Valve de compensation de pression"},null,null,{"$f":"'Codes d''erreur_FR'!G138","v":"528 Cache évaporateur"},{"$f":"'Codes d''erreur_FR'!G164","v":"438 Tablette de séparation horizontale/ séparateur"},{"$f":"'Codes d''erreur_FR'!G198","v":"383 Paroi latérale à gauche, en bas"},{"$f":"'Codes d''erreur_FR'!G198","v":"383 Paroi latérale à gauche, en bas"},{"$f":"'Codes d''erreur_FR'!G198","v":"383 Paroi latérale à gauche, en bas"},{"$f":"'Codes d''erreur_FR'!G237","v":"73 Capteur de température"},null,{"$f":"'Codes d''erreur_FR'!G322","v":"474 Aération de l’appareil"},{"$f":"'Codes d''erreur_FR'!G356","v":"472 Mécanisme de fermeture"}]
[{"$f":"'Codes d''erreur_FR'!G23","v":"414 Chauffage bac d’évaporation – compresseur (liaison)"},{"$f":"'Codes d''erreur_FR'!G56","v":"277 Limiteur de température de sécurité"},null,null,{"$f":"'Codes d''erreur_FR'!G139","v":"596 Absorbeur"},{"$f":"'Codes d''erreur_FR'!G165","v":"528 Cache évaporateur"},{"$f":"'Codes d''erreur_FR'!G199","v":"418 Charnière/ gond de porte"},{"$f":"'Codes d''erreur_FR'!G199","v":"418 Charnière/ gond de porte"},{"$f":"'Codes d''erreur_FR'!G199","v":"418 Charnière/ gond de porte"},{"$f":"'Codes d''erreur_FR'!G238","v":"94 Cadre décoratif"},null,{"$f":"'Codes d''erreur_FR'!G323","v":"475 Points de soudure"},{"$f":"'Codes d''erreur_FR'!G357","v":"531 \u0090Joint de porte compartiment congélateur"}]
[{"$f":"'Codes d''erreur_FR'!G24","v":"415 Chauffage bac d’évaporation – condenseur (liaison)"},{"$f":"'Codes d''erreur_FR'!G57","v":"439 Volet d’aération"},null,null,{"$f":"'Codes d''erreur_FR'!G140","v":"599 Module crush"},{"$f":"'Codes d''erreur_FR'!G166","v":"530 Branding (autocollant, logo, …)"},{"$f":"'Codes d''erreur_FR'!G200","v":"419 Interface utilisateur"},{"$f":"'Codes d''erreur_FR'!G200","v":"419 Interface utilisateur"},{"$f":"'Codes d''erreur_FR'!G200","v":"419 Interface utilisateur"},{"$f":"'Codes d''erreur_FR'!G239","v":"96 Bouchon de fermeture de l’eau de dégivrage du compartiment congélateur"},null,{"$f":"'Codes d''erreur_FR'!G324","v":"476 Température de l’air, du noyau"},{"$f":"'Codes d''erreur_FR'!G358","v":"532 \u0090Joint de porte compartiment réfrigérateur"}]
[{"$f":"'Codes d''erreur_FR'!G25","v":"416 Chauffage bac d’évaporateur"},{"$f":"'Codes d''erreur_FR'!G58","v":"440 Pompe réservoir d’eau"},null,null,{"$f":"'Codes d''erreur_FR'!G141","v":"609 Module d'ouverture de porte"},{"$f":"'Codes d''erreur_FR'!G167","v":"531 \u0090Joint de porte compartiment congélateur"},{"$f":"'Codes d''erreur_FR'!G201","v":"420 Porte extérieure, en haut"},{"$f":"'Codes d''erreur_FR'!G201","v":"420 Porte extérieure, en haut"},{"$f":"'Codes d''erreur_FR'!G201","v":"420 Porte extérieure, en haut"},{"$f":"'Codes d''erreur_FR'!G240","v":"97 Set d’accouplement pour porte"},null,{"$f":"'Codes d''erreur_FR'!G325","v":"479 Affichage de la valeur réelle/ valeur de consigne"},{"$f":"'Codes d''erreur_FR'!G359","v":"600 Ouverture à pédale"}]
[{"$f":"'Codes d''erreur_FR'!G26","v":"518 Raccord de dérivation – conduite d’aspiration et de refoulement (liaison)"},{"$f":"'Codes d''erreur_FR'!G59","v":"467 Chauffage de porte"},null,null,{"$f":"'Codes d''erreur_FR'!G142","v":"688 Siphon"},{"$f":"'Codes d''erreur_FR'!G168","v":"532 \u0090Joint de porte compartiment réfrigérateur"},{"$f":"'Codes d''erreur_FR'!G202","v":"421 Porte extérieure, au milieu"},{"$f":"'Codes d''erreur_FR'!G202","v":"421 Porte extérieure, au milieu"},{"$f":"'Codes d''erreur_FR'!G202","v":"421 Porte extérieure, au milieu"},{"$f":"'Codes d''erreur_FR'!G241","v":"99 Liaison transversale"},null,{"$f":"'Codes d''erreur_FR'!G326","v":"522 Ventilateur – condenseur"},{"$f":"'Codes d''erreur_FR'!G360","v":"609 Module d'ouverture de porte"}]
[{"$f":"'Codes d''erreur_FR'!G27","v":"525 Cassette de refroidissement"},{"$f":"'Codes d''erreur_FR'!G60","v":"468 Capteur d’humidité"},null,null,{"$f":"'Codes d''erreur_FR'!G143","v":"999 Lieu d’erreur non imputable"},{"$f":"'Codes d''erreur_FR'!G169","v":"611 Esse"},{"$f":"'Codes d''erreur_FR'!G203","v":"422 Porte extérieure, en bas"},{"$f":"'Codes d''erreur_FR'!G203","v":"422 Porte extérieure, en bas"},{"$f":"'Codes d''erreur_FR'!G203","v":"422 Porte extérieure, en bas"},{"$f":"'Codes d''erreur_FR'!G242","v":"102 Tiroir"},null,{"$f":"'Codes d''erreur_FR'!G327","v":"523 Ventilateur – compartiment congélateur"},{"$f":"'Codes d''erreur_FR'!G361","v":"701 Cuve intérieure compartiment réfrigérateur"}]
[{"$f":"'Codes d''erreur_FR'!G28","v":"533 Collecteur"},{"$f":"'Codes d''erreur_FR'!G61","v":"469 Contact sans potentiel"},null,null,null,{"$f":"'Codes d''erreur_FR'!G170","v":"689 Paroi latérale général bandes décoratives"},{"$f":"'Codes d''erreur_FR'!G204","v":"423 Porte extérieure inférieure, en haut"},{"$f":"'Codes d''erreur_FR'!G204","v":"423 Porte extérieure inférieure, en haut"},{"$f":"'Codes d''erreur_FR'!G204","v":"423 Porte extérieure inférieure, en haut"},{"$f":"'Codes d''erreur_FR'!G243","v":"104 Commutateur à cames/ aimant de porte"},null,{"$f":"'Codes d''erreur_FR'!G328","v":"524 Ventilateur – compartiment réfrigérateur/ BioFresh"},{"$f":"'Codes d''erreur_FR'!G362","v":"999 Lieu d’erreur non imputable"}]
[{"$f":"'Codes d''erreur_FR'!G29","v":"675 Vanne d'expansion"},{"$f":"'Codes d''erreur_FR'!G62","v":"517 Thermostat de sécurité"},null,null,null,{"$f":"'Codes d''erreur_FR'!G171","v":"690 Porte du compartiment congélateur bandes décoratives"},{"$f":"'Codes d''erreur_FR'!G205","v":"424 Porte extérieure inférieure, en bas"},{"$f":"'Codes d''erreur_FR'!G205","v":"424 Porte extérieure inférieure, en bas"},{"$f":"'Codes d''erreur_FR'!G205","v":"424 Porte extérieure inférieure, en bas"},{"$f":"'Codes d''erreur_FR'!G244","v":"105 Cache"},null,{"$f":"'Codes d''erreur_FR'!G329","v":"529 Entretoise murale"}]
[{"$f":"'Codes d''erreur_FR'!G30","v":"676 Séparateur d’huile"},{"$f":"'Codes d''erreur_FR'!G63","v":"522 Ventilateur – condenseur"},null,null,null,{"$f":"'Codes d''erreur_FR'!G172","v":"691 Porte du compartiment réfrigérateur bandes décoratives"},{"$f":"'Codes d''erreur_FR'!G206","v":"425 Avant gauche (coffre)"},{"$f":"'Codes d''erreur_FR'!G206","v":"425 Avant gauche (coffre)"},{"$f":"'Codes d''erreur_FR'!G206","v":"425 Avant gauche (coffre)"},{"$f":"'Codes d''erreur_FR'!G245","v":"159 \u0090Joint de porte compartiment étoiles"},null,{"$f":"'Codes d''erreur_FR'!G330","v":"608 Smart Device Box"}]
[{"$f":"'Codes d''erreur_FR'!G31","v":"677 Soupape pour refroidissement externe (circuit fermé, refroidissement à l’eau, ..)"},{"$f":"'Codes d''erreur_FR'!G64","v":"523 Ventilateur – compartiment congélateur"},null,null,null,{"$f":"'Codes d''erreur_FR'!G173","v":"699 Cuve intérieure compartiment réfrigérateur revêtement inox"},{"$f":"'Codes d''erreur_FR'!G207","v":"426 Avant milieu (coffre)"},{"$f":"'Codes d''erreur_FR'!G207","v":"426 Avant milieu (coffre)"},{"$f":"'Codes d''erreur_FR'!G207","v":"426 Avant milieu (coffre)"},{"$f":"'Codes d''erreur_FR'!G246","v":"232 Kit d’accessoires"},null,{"$f":"'Codes d''erreur_FR'!G331","v":"609 Module d'ouverture de porte"}]
[{"$f":"'Codes d''erreur_FR'!G32","v":"678 Pressostat"},{"$f":"'Codes d''erreur_FR'!G65","v":"524 Ventilateur – compartiment réfrigérateur/ BioFresh"},null,null,null,{"$f":"'Codes d''erreur_FR'!G174","v":"700 Contre-porte compartiment réfrigérateur revêtement inox"},{"$f":"'Codes d''erreur_FR'!G208","v":"427 Avant droit (coffre)"},{"$f":"'Codes d''erreur_FR'!G208","v":"427 Avant droit (coffre)"},{"$f":"'Codes d''erreur_FR'!G208","v":"427 Avant droit (coffre)"},{"$f":"'Codes d''erreur_FR'!G247","v":"252 Vanne arrivée d’eau"},null,{"$f":"'Codes d''erreur_FR'!G332","v":"610 Consommable (filtre, ..)"}]
[{"$f":"'Codes d''erreur_FR'!G33","v":"679 Cascade"},{"$f":"'Codes d''erreur_FR'!G66","v":"525 Cassette de refroidissement"},null,null,null,{"$f":"'Codes d''erreur_FR'!G175","v":"701 Cuve intérieure compartiment réfrigérateur"},{"$f":"'Codes d''erreur_FR'!G209","v":"428 Couvercle (coffre) à gauche "},{"$f":"'Codes d''erreur_FR'!G209","v":"428 Couvercle (coffre) à gauche "},{"$f":"'Codes d''erreur_FR'!G209","v":"428 Couvercle (coffre) à gauche "},{"$f":"'Codes d''erreur_FR'!G248","v":"257 Bac d’évaporateur"},null,{"$f":"'Codes d''erreur_FR'!G333","v":"683 Humidificateur (Hydrobreeze)"}]
[{"$f":"'Codes d''erreur_FR'!G34","v":"999 Lieu d’erreur non imputable"},{"$f":"'Codes d''erreur_FR'!G67","v":"527 Fermeture à distance"},null,null,null,{"$f":"'Codes d''erreur_FR'!G176","v":"702 Contre-porte compartiment réfrigérateur"},{"$f":"'Codes d''erreur_FR'!G210","v":"429 Couvercle (coffre) au milieu"},{"$f":"'Codes d''erreur_FR'!G210","v":"429 Couvercle (coffre) au milieu"},{"$f":"'Codes d''erreur_FR'!G210","v":"429 Couvercle (coffre) au milieu"},{"$f":"'Codes d''erreur_FR'!G249","v":"259 Rail coulissant / télescopique"},null,{"$f":"'Codes d''erreur_FR'!G334","v":"701 Cuve intérieure compartiment réfrigérateur"}]
[null,{"$f":"'Codes d''erreur_FR'!G68","v":"598 Module de charge de la batterie"},null,null,null,{"$f":"'Codes d''erreur_FR'!G177","v":"999 Lieu d’erreur non imputable"},{"$f":"'Codes d''erreur_FR'!G211","v":"430 Couvercle (coffre) à droite"},{"$f":"'Codes d''erreur_FR'!G211","v":"430 Couvercle (coffre) à droite"},{"$f":"'Codes d''erreur_FR'!G211","v":"430 Couvercle (coffre) à droite"},{"$f":"'Codes d''erreur_FR'!G250","v":"265 Distributeur de glaçons"},null,{"$f":"'Codes d''erreur_FR'!G335","v":"999 Lieu d’erreur non imputable"}]
[null,{"$f":"'Codes d''erreur_FR'!G69","v":"599 Module crush"},null,null,null,null,{"$f":"'Codes d''erreur_FR'!G212","v":"530 Branding (autocollant, logo, …)"},{"$f":"'Codes d''erreur_FR'!G212","v":"530 Branding (autocollant, logo, …)"},{"$f":"'Codes d''erreur_FR'!G212","v":"530 Branding (autocollant, logo, …)"},{"$f":"'Codes d''erreur_FR'!G251","v":"266 Tablette de séparation verticale"}]
[null,{"$f":"'Codes d''erreur_FR'!G70","v":"609 Module d'ouverture de porte"},null,null,null,null,{"$f":"'Codes d''erreur_FR'!G213","v":"692 Porte du compartiment"},{"$f":"'Codes d''erreur_FR'!G213","v":"692 Porte du compartiment"},{"$f":"'Codes d''erreur_FR'!G213","v":"692 Porte du compartiment"},{"$f":"'Codes d''erreur_FR'!G252","v":"272 Accu de froid"}]
[null,{"$f":"'Codes d''erreur_FR'!G71","v":"678 Pressostat"},null,null,null,null,{"$f":"'Codes d''erreur_FR'!G214","v":"701 Cuve intérieure compartiment réfrigérateur"},{"$f":"'Codes d''erreur_FR'!G214","v":"701 Cuve intérieure compartiment réfrigérateur"},{"$f":"'Codes d''erreur_FR'!G214","v":"701 Cuve intérieure compartiment réfrigérateur"},{"$f":"'Codes d''erreur_FR'!G253","v":"273 Kit de liaison SBS"}]
[null,{"$f":"'Codes d''erreur_FR'!G72","v":"680 Fusible"},null,null,null,null,{"$f":"'Codes d''erreur_FR'!G215","v":"702 Contre-porte compartiment réfrigérateur"},{"$f":"'Codes d''erreur_FR'!G215","v":"702 Contre-porte compartiment réfrigérateur"},{"$f":"'Codes d''erreur_FR'!G215","v":"702 Contre-porte compartiment réfrigérateur"},{"$f":"'Codes d''erreur_FR'!G254","v":"274 Valve de compensation de pression"}]
[null,{"$f":"'Codes d''erreur_FR'!G73","v":"681 Module RS485"},null,null,null,null,{"$f":"'Codes d''erreur_FR'!G216","v":"999 Lieu d’erreur non imputable"},{"$f":"'Codes d''erreur_FR'!G216","v":"999 Lieu d’erreur non imputable"},{"$f":"'Codes d''erreur_FR'!G216","v":"999 Lieu d’erreur non imputable"},{"$f":"'Codes d''erreur_FR'!G255","v":"275 Tuyau d’eau"}]
[null,{"$f":"'Codes d''erreur_FR'!G74","v":"682 Capteur de luminosité"},null,null,null,null,null,null,null,{"$f":"'Codes d''erreur_FR'!G256","v":"276 Vanne de sortie de l’eau de dégivrage"}]
[null,{"$f":"'Codes d''erreur_FR'!G75","v":"683 Humidificateur (Hydrobreeze)"},null,null,null,null,null,null,null,{"$f":"'Codes d''erreur_FR'!G257","v":"295 Bac à glaçons"}]
[null,{"$f":"'Codes d''erreur_FR'!G76","v":"999 Lieu d’erreur non imputable"},null,null,null,null,null,null,null,{"$f":"'Codes d''erreur_FR'!G258","v":"309 Support de compresseur"}]
[null,null,null,null,null,null,null,null,null,{"$f":"'Codes d''erreur_FR'!G259","v":"336 Clayette fil/en bois"}]
[null,null,null,null,null,null,null,null,null,{"$f":"'Codes d''erreur_FR'!G260","v":"364 Cuve intérieure compartiment congélateur"}]
[null,null,null,null,null,null,null,null,null,{"$f":"'Codes d''erreur_FR'!G261","v":"374 Contre-porte compartiment congélateur"}]
[null,null,null,null,null,null,null,null,null,{"$f":"'Codes d''erreur_FR'!G262","v":"408 Amortisseur de fermeture"}]
[null,null,null,null,null,null,null,null,null,{"$f":"'Codes d''erreur_FR'!G263","v":"418 Charnière/ gond de porte"}]
[null,null,null,null,null,null,null,null,null,{"$f":"'Codes d''erreur_FR'!G264","v":"419 Interface utilisateur"}]
[null,null,null,null,null,null,null,null,null,{"$f":"'Codes d''erreur_FR'!G265","v":"431 Support pour rail coulissant / télescopique"}]
[null,null,null,null,null,null,null,null,null,{"$f":"'Codes d''erreur_FR'!G266","v":"432 Unité de sortie glace/ eau"}]
[null,null,null,null,null,null,null,null,null,{"$f":"'Codes d''erreur_FR'!G267","v":"434 Couvercle tiroir électronique"}]
[null,null,null,null,null,null,null,null,null,{"$f":"'Codes d''erreur_FR'!G268","v":"436 Réservoir d’eau"}]
[null,null,null,null,null,null,null,null,null,{"$f":"'Codes d''erreur_FR'!G269","v":"437 Plateau de roulettes"}]
[null,null,null,null,null,null,null,null,null,{"$f":"'Codes d''erreur_FR'!G270","v":"438 Tablette de séparation horizontale/ séparateur"}]
[null,null,null,null,null,null,null,null,null,{"$f":"'Codes d''erreur_FR'!G271","v":"471 Filtre à eau"}]
[null,null,null,null,null,null,null,null,null,{"$f":"'Codes d''erreur_FR'!G272","v":"472 Mécanisme de fermeture"}]
[null,null,null,null,null,null,null,null,null,{"$f":"'Codes d''erreur_FR'!G273","v":"520 Conduit d’air"}]
[null,null,null,null,null,null,null,null,null,{"$f":"'Codes d''erreur_FR'!G274","v":"521 Arrivée d’eau (distributeur de glaçons)"}]
[null,null,null,null,null,null,null,null,null,{"$f":"'Codes d''erreur_FR'!G275","v":"522 Ventilateur – condenseur"}]
[null,null,null,null,null,null,null,null,null,{"$f":"'Codes d''erreur_FR'!G276","v":"523 Ventilateur – compartiment congélateur"}]
[null,null,null,null,null,null,null,null,null,{"$f":"'Codes d''erreur_FR'!G277","v":"524 Ventilateur – compartiment réfrigérateur/ BioFresh"}]
[null,null,null,null,null,null,null,null,null,{"$f":"'Codes d''erreur_FR'!G278","v":"525 Cassette de refroidissement"}]
[null,null,null,null,null,null,null,null,null,{"$f":"'Codes d''erreur_FR'!G279","v":"526 Fixation de la poignée (écrou à sertir, ...)"}]
[null,null,null,null,null,null,null,null,null,{"$f":"'Codes d''erreur_FR'!G280","v":"528 Cache évaporateur"}]
[null,null,null,null,null,null,null,null,null,{"$f":"'Codes d''erreur_FR'!G281","v":"529 Entretoise murale"}]
[null,null,null,null,null,null,null,null,null,{"$f":"'Codes d''erreur_FR'!G282","v":"530 Branding (autocollant, logo, …)"}]
[null,null,null,null,null,null,null,null,null,{"$f":"'Codes d''erreur_FR'!G283","v":"531 \u0090Joint de porte compartiment congélateur"}]
[null,null,null,null,null,null,null,null,null,{"$f":"'Codes d''erreur_FR'!G284","v":"532 \u0090Joint de porte compartiment réfrigérateur"}]
[null,null,null,null,null,null,null,null,null,{"$f":"'Codes d''erreur_FR'!G285","v":"596 Absorbeur"}]
[null,null,null,null,null,null,null,null,null,{"$f":"'Codes d''erreur_FR'!G286","v":"599 Module crush"}]
[null,null,null,null,null,null,null,null,null,{"$f":"'Codes d''erreur_FR'!G287","v":"600 Ouverture à pédale"}]
[null,null,null,null,null,null,null,null,null,{"$f":"'Codes d''erreur_FR'!G288","v":"604 Filtre à air"}]
[null,null,null,null,null,null,null,null,null,{"$f":"'Codes d''erreur_FR'!G289","v":"607 Barre profilée (étiquette de prix, rail porte-étiquette,..)"}]
[null,null,null,null,null,null,null,null,null,{"$f":"'Codes d''erreur_FR'!G290","v":"609 Module d'ouverture de porte"}]
[null,null,null,null,null,null,null,null,null,{"$f":"'Codes d''erreur_FR'!G291","v":"611 Esse"}]
[null,null,null,null,null,null,null,null,null,{"$f":"'Codes d''erreur_FR'!G292","v":"613 Cache unité de commande, interface utilisateur (User Interface) "}]
[null,null,null,null,null,null,null,null,null,{"$f":"'Codes d''erreur_FR'!G293","v":"683 Humidificateur (Hydrobreeze)"}]
[null,null,null,null,null,null,null,null,null,{"$f":"'Codes d''erreur_FR'!G294","v":"692 Porte du compartiment"}]
[null,null,null,null,null,null,null,null,null,{"$f":"'Codes d''erreur_FR'!G295","v":"693 Refroidissement d’urgence CO2"}]
[null,null,null,null,null,null,null,null,null,{"$f":"'Codes d''erreur_FR'!G296","v":"694 Racks de stockage cryogénique"}]
[null,null,null,null,null,null,null,null,null,{"$f":"'Codes d''erreur_FR'!G297","v":"699 Cuve intérieure compartiment réfrigérateur revêtement inox"}]
[null,null,null,null,null,null,null,null,null,{"$f":"'Codes d''erreur_FR'!G298","v":"700 Contre-porte compartiment réfrigérateur revêtement inox"}]
[null,null,null,null,null,null,null,null,null,{"$f":"'Codes d''erreur_FR'!G299","v":"701 Cuve intérieure compartiment réfrigérateur"}]
[null,null,null,null,null,null,null,null,null,{"$f":"'Codes d''erreur_FR'!G300","v":"702 Contre-porte compartiment réfrigérateur"}]
[null,null,null,null,null,null,null,null,null,{"$f":"'Codes d''erreur_FR'!G301","v":"999 Lieu d’erreur non imputable"}]

{"sheet":"Codes d'erreur","index":5,"n_rows":218,"n_cols":7,"rows_kept":218,"cut":false,"hidden":false,"merged":[[47,0,55,0],[91,0,104,0],[170,0,171,0],[224,1,224,6],[0,2,0,4],[2,0,2,6],[5,1,5,2],[5,3,5,6],[6,0,8,0]]}
[null,null,"Code d'erreur SAV"]
[null,null,null,null,null,"Etat : 01.01.2025"]
[]
["|",null,"|",null,"|",null,"|"]
[]
["Groupe d'erreur","Type d'erreur",null,"Lieu d'erreur"]
["Circuit de refroidissement","Bouché",28,"Cadre chauffant",11,"Entrée conduite d’aspiration–capillaires (liaison)",13]
[null,"Givrage de la conduite d’aspiration",409,"Cadre chauffant–condenseur (liaison)",12,"Évaporateur compartiment congélateur",17]
[null,"Grippé",23,"Capillaires",2,"Évaporateur compartiment réfrigérateur",18]
[5,"Matériau / tuyau non étanche",292,"Cascade",679,"Évaporateur compartiment réfrigérateur–Module d’évaporateur compartiment congélateur (liaison)",412]
[null,"Pas de puissance",60,"Cassette de refroidissement",525,"Lieu d’erreur non imputable",999]
[null,"Pli",12,"Chauffage bac d’évaporateur",416,"Module d’évaporateur–conduite d’aspiration\n(liaison)",413]
[null,"Raccord Lokring non étanche",291,"Chauffage bac d’évaporation – compresseur (liaison)",414,"Point d’injection évaporateur (liaison)",19]
[null,"Se bloque / coince",58,"Chauffage bac d’évaporation – condenseur (liaison)",415,"Pressostat",678]
[null,"Soudure bouchée",293,"Collecteur",533,"Raccord de dérivation – conduite d’aspiration et de refoulement (liaison)",518]
[null,"Soudure non étanche",1,"Compresseur",63,"Raccord de remplissage du compresseur (liaison)",3]
[null,"Type d’erreur non imputable",999,"Compresseur–cadre chauffant (liaison)",4,"Sécheur",15]
[null,0,0,"Compresseur–condenseur (liaison)",7,"Sécheur–capillaires (liaison)",16]
[null,null,null,"Compresseur–conduite d’aspiration (liaison)",5,"Séparateur d’huile",676]
[null,null,null,"Condenseur",20,"Soupape pour refroidissement externe (circuit fermé, refroidissement à l’eau, ..)",677]
[null,null,null,"Condenseur–sécheur (liaison)",21,"Vanne circuit réfrigérant",9]
[null,null,null,"Conduite d’aspiration–évaporateur (liaison)",14,"Vanne d'expansion",675]
[null,0,0,"Echangeur de chaleur ( à eau)",395]
["Electricité","Affichage incorrect",33,"Bande de distribution",75,"Lieu d’erreur non imputable",999]
[40,"Câbles endommagés",36,"Batterie/ accu",103,"Limiteur de température de sécurité",277]
[null,"Câbles erreur de câblage",297,"Capteur d’humidité",468,"Module crush",599]
[null,"Coupure électrique",32,"Capteur de luminosité",682,"Module de charge de la batterie",598]
[null,"Court-circuit",34,"Capteur de température",73,"Module d'ouverture de porte",609]
[null,"Faux-contact",41,"Cassette de refroidissement",525,"Module RS485",681]
[null,"Grillé",40,"Chauffage",60,"Panneau isolant",61]
[null,"Hors tolérance (capteur etc.)",31,"Chauffage de porte",467,"Pompe réservoir d’eau",440]
[null,"Ne commute pas",202,"Compresseur",63,"Pressostat",678]
[null,"Règle mal",39,"Compresseur–disjoncteur-protecteur",65,"Prise/ raccord à vis",71]
[null,"Type d’erreur non imputable",999,"Compresseur–dispositif de démarrage",64,"Thermomètre",85]
[null,null,null,"Condenseur",66,"Thermostat de réglage",74]
[null,null,null,"Contact Reed (reconnaissance de porte, ...)",68,"Thermostat de sécurité",517]
[null,null,null,"Contact sans potentiel",469,"Touche/interrupteur",72]
[null,null,null,"Distributeur de glaçons",265,"Valve de compensation de pression",274]
[null,null,null,"Éclairage",59,"Vanne arrivée d’eau",252]
[null,null,null,"Faisceau de câbles / cordon",62,"Vanne circuit réfrigérant",9]
[null,null,null,"Fermeture à distance",527,"Ventilateur – compartiment congélateur",523]
[null,null,null,"Fusible",680,"Ventilateur – compartiment réfrigérateur/ BioFresh",524]
[null,null,null,"Humidificateur (Hydrobreeze)",683,"Ventilateur – condenseur",522]
[null,null,null,"Lampes témoin",67,"Volet d’aération",439]
["Electronique","Affichage / écran défectueux",43,"Alimentation éclairage LED / transformateur",442]
[45,"Alarme de température injustifiée",54,"Bornier de platine",82]
[null,"Avertisseur sonore sans fonction",51,"Capteurs intelligents",686]
[null,"Chauffage ne démarre pas",45,"Filtre réseau",684]
[null,"Compresseur ne démarre pas",46,"Inverter",260]
[null,"Court-circuit",34,"Lieu d’erreur non imputable",999]
[null,"Défaillance générale",44,"Limiteur de température",516]
[null,"Éclairage ne démarre pas / partiellement / insuffisamment",42,"Module de liaison",441]
[null,"Électrovanne n’est pas activée",48,"Module RS485",681]
[null,"Erreur de logiciel (bug)",588,"NFC, puce RFID",685]
[null,"Faux-contact",41,"Platine de connexion réseau",606]
[null,"Grillé",40,"Platine électronique",172]
[null,"Interruption (fissure capillaire, joint soudé, etc.)",55,"Relais semi-conducteur",698]
[null,"Lampe témoin défectueuse",47,"Système électronique distributeur de glaçons",264]
[null,"Pompe réservoir à eau ne démarre pas",298,"Touche/interrupteur",72]
[null,"Règle mal",39,"Unité de commande, interface utilisateur (User Interface)",612]
[null,"Touche ou interrupteur défectueux",49,"Variateur d’intensité",519]
[null,"Type d’erreur non imputable",999]
[null,"Variations de température",50]
[null,"Ventilateur ne démarre pas",56]
[null,"Volet d’aération n’est pas activé",299]
["Mécanique","Affichage incorrect",33,"Amortisseur de fermeture",408,"Poignée",30]
[50,"Casse",10,"Charnière/ gond de porte",418,"Rail coulissant / télescopique",259]
[null,"Décalé / déplacé",27,"Distributeur de glaçons",265,"Serrure",84]
[null,"Grippé",23,"Fermeture à distance",527,"Thermomètre",85]
[null,"Se bloque / coince",58,"Humidificateur (Hydrobreeze)",683,"Touche/interrupteur",72]
[null,"Tordu / gondolé",25,"Lieu d’erreur non imputable",999,"Unité de sortie glace/ eau",432]
[null,"Type d’erreur non imputable",999,"Module crush",599,"Ventilateur – compartiment congélateur",523]
[null,"Usé",57,"Module d'ouverture de porte",609,"Ventilateur – compartiment réfrigérateur/ BioFresh",524]
[null,null,null,"Ouverture à pédale",600,"Ventilateur – condenseur",522]
[null,null,null,"Pied/ roulette",28,"Volet d’aération",439]
["Bruit","Bruit d’injection / de circulation",300,"Absorbeur",596,"Module crush",599]
[60,"Bruit de cliquetis / tapotement",89,"Amortisseur de fermeture",408,"Module d'ouverture de porte",609]
[null,"Bruit de commutation",203,"Cache évaporateur",528,"Récipient d’eau de dégivrage",52]
[null,"Bruit de couinement/ grincement",65,"Capillaires",2,"Siphon",688]
[null,"Bruit de craquement",64,"Cassette de refroidissement",525,"Tablette de séparation verticale",266]
[null,"Bruit de fonctionnement",66,"Charnière/ gond de porte",418,"Thermostat de réglage",74]
[null,"Bruit de vibration",69,"Compresseur",63,"Tuyaux",87]
[null,"Glouglou",687,"Condenseur",20,"Valve de compensation de pression",274]
[null,"Type d’erreur non imputable",999,"Distributeur de glaçons",265,"Vanne arrivée d’eau",252]
[null,null,null,"Évaporateur compartiment congélateur",17,"Vanne circuit réfrigérant",9]
[null,null,null,"Évaporateur compartiment réfrigérateur",18,"Ventilateur – compartiment congélateur",523]
[null,null,null,"Inverter",260,"Ventilateur – compartiment réfrigérateur/ BioFresh",524]
[null,null,null,"Lieu d’erreur non imputable",999,"Ventilateur – condenseur",522]
["Surfaces","Bombement / bosse",88,"\u0090Joint de porte compartiment congélateur",531,"Esse",611]
[65,"Corrosion",71,"\u0090Joint de porte compartiment étoiles",159,"Évaporateur compartiment réfrigérateur",18]
[null,"Décollé",405,"\u0090Joint de porte compartiment réfrigérateur",532,"Face arrière",34]
[null,"Empreinte",70,"Boîtier de thermostat / interrupteur d’éclairage",53,"Interface utilisateur",419]
[null,"Éraflure",13,"Branding (autocollant, logo, …)",530,"Liaison transversale",99]
[null,"Microsection acier inox",301,"Cache évaporateur",528,"Lieu d’erreur non imputable",999]
[null,"Pas assez de vernis",72,"Cadre de protection du coffre",41,"Paroi latérale général",36]
[null,"Résidus de film",303,"Clayette fil/en bois",336,"Paroi latérale général bandes décoratives",689]
[null,"S’écaille",87,"Contre-porte compartiment congélateur",374,"Poignée",30]
[null,"Taches",302,"Contre-porte compartiment réfrigérateur",702,"Porte compartiment congélateur",42]
[null,"Trop de vernis",30,"Contre-porte compartiment réfrigérateur revêtement inox",700,"Porte compartiment réfrigérateur",43]
[null,"Type d’erreur non imputable",999,"Couvercle (coffre) / couvercle coulissant",26,"Porte du compartiment congélateur bandes décoratives",690]
[null,"Variation de couleur",165,"Cuve intérieure compartiment congélateur",364,"Porte du compartiment réfrigérateur bandes décoratives",691]
[null,null,null,"Cuve intérieure compartiment réfrigérateur",701,"Support de compresseur",309]
[null,null,null,"Cuve intérieure compartiment réfrigérateur revêtement inox",699,"Tablette de séparation horizontale/ séparateur",438]
[null,null,null,"Dessus",40,"Tablette de séparation verticale",266]
[null,null,null,"Éclairage",59,"Tiroir",102]
["Avarie de ","Casse",10,"Avant droit (coffre)",427,"Lieu d’erreur non imputable",999]
["transport","Creux",11,"Avant gauche (coffre)",425,"Logement du compresseur",33]
["Emballage","Écrasement",17,"Avant milieu (coffre)",426,"Paroi latérale à droite, au milieu",379]
["endommagé","Éraflure",13,"Branding (autocollant, logo, …)",530,"Paroi latérale à droite, en bas",380]
[25,"Fissure",15,"Cache socle",38,"Paroi latérale à droite, en haut",378]
[null,"Lâche",14,"Cadre de protection du coffre",41,"Paroi latérale à gauche, au milieu",382]
["Avarie de ","Pli",12,"Charnière/ gond de porte",418,"Paroi latérale à gauche, en bas",383]
["transport","Trace de frottement",16,"Condenseur",20,"Paroi latérale à gauche, en haut",381]
["Plus d'",null,null,"Contre-porte compartiment congélateur",374,"Pièces de l’équipement intérieur",39]
["emballage",null,null,"Contre-porte compartiment réfrigérateur",702,"Pied/ roulette",28]
[null,null,null,"Couvercle (coffre) à droite",430,"Poignée",30]
[26,null,null,"Couvercle (coffre) à gauche ",428,"Porte du compartiment",692]
[null,null,null,"Couvercle (coffre) au milieu",429,"Porte extérieure inférieure, en bas",424]
["Cause de dommage indéterminée",null,null,"Cuve intérieure compartiment congélateur",364,"Porte extérieure inférieure, en haut",423]
[null,null,null,"Cuve intérieure compartiment réfrigérateur",701,"Porte extérieure, au milieu",421]
["Emballage",null,null,"Dessus",40,"Porte extérieure, en bas",422]
["pas",null,null,"Éclairage",59,"Porte extérieure, en haut",420]
[" endommagé",null,null,"Face arrière",34,"Support de compresseur",309]
[27,null,null,"Interface utilisateur",419,"Tablettes en verre, balconnets, etc.",29]
[null,null,null,"Liaison transversale",99]
["Défaut","Bouché",28,"\u0090Joint de porte compartiment congélateur",531,"Face arrière",34]
["produit","Casse",10,"\u0090Joint de porte compartiment étoiles",159,"Filtre à air",604]
[30,"Chute",204,"\u0090Joint de porte compartiment réfrigérateur",532,"Filtre à eau",471]
[null,"De travers",22,"Absorbeur",596,"Fixation de la poignée (écrou à sertir, ...)",526]
[null,"Déborde",20,"Accu de froid",272,"Humidificateur (Hydrobreeze)",683]
[null,"Décalé / déplacé",27,"Amortisseur de fermeture",408,"Interface utilisateur",419]
[null,"Eau de condensation",19,"Arrivée d’eau (distributeur de glaçons)",521,"Kit d’accessoires",232]
[null,"Encrassé",148,"Bac à glaçons",295,"Kit de liaison SBS",273]
[null,"Erreur d’isolation",296,"Bac d’évaporateur",257,"Liaison transversale",99]
[null,"Fissure",15,"Barre profilée (étiquette de prix, rail porte-étiquette,..)",607,"Lieu d’erreur non imputable",999]
[null,"Givrage",24,"Boîtier de thermostat / interrupteur d’éclairage",53,"Mécanisme de fermeture",472]
[null,"Grippé",23,"Bouchon de fermeture de l’eau de dégivrage du compartiment congélateur",96,"Module crush",599]
[null,"Lâche",14,"Bouton de réglage",50,"Module d'ouverture de porte",609]
[null,"Manquant",18,"Branding (autocollant, logo, …)",530,"Ouverture à pédale",600]
[null,"Mauvaise pièce",79,"Cache",105,"Paroi latérale général",36]
[null,"Montage incorrect",91,"Cache évaporateur",528,"Passage de boîtier",47]
[null,"Non étanche",2,"Cache unité de commande, interface utilisateur (User Interface) ",613,"Pièces de l’équipement intérieur",39]
[null,"Odeur",83,"Cadre de protection du coffre",41,"Plateau de roulettes",437]
[null,"Pli",12,"Cadre décoratif",94,"Poignée",30]
[null,"Se bloque / coince",58,"Capteur de température",73,"Porte compartiment congélateur",42]
[null,"Serré trop fort",29,"Cassette de refroidissement",525,"Porte compartiment congélation",56]
[null,"Sortie de mousse",103,"Charnière/ gond de porte",418,"Porte compartiment réfrigérateur",43]
[null,"Tordu / gondolé",25,"Chauffage",60,"Porte du compartiment",692]
[null,"Type d’erreur non imputable",999,"Clayette fil/en bois",336,"Racks de stockage cryogénique",694]
[null,null,null,"Commutateur à cames/ aimant de porte",104,"Rail coulissant / télescopique",259]
[null,null,null,"Commutateur d’éclairage",49,"Récipient d’eau de dégivrage",52]
[null,null,null,"Condenseur",20,"Refroidissement d’urgence CO2",693]
[null,null,null,"Conduit d’air",520,"Réservoir d’eau",436]
[null,null,null,"Contre-porte compartiment congélateur",374,"Set d’accouplement pour porte",97]
[null,null,null,"Contre-porte compartiment réfrigérateur",702,"Support de compresseur",309]
[null,null,null,"Contre-porte compartiment réfrigérateur revêtement inox",700,"Support pour rail coulissant / télescopique",431]
[null,null,null,"Couvercle (coffre) / couvercle coulissant",26,"Tablette de séparation horizontale/ séparateur",438]
[null,null,null,"Couvercle tiroir électronique",434,"Tablette de séparation verticale",266]
[null,null,null,"Cuve intérieure compartiment congélateur",364,"Tiroir",102]
[null,null,null,"Cuve intérieure compartiment réfrigérateur",701,"Tuyau d’eau",275]
[null,null,null,"Cuve intérieure compartiment réfrigérateur revêtement inox",699,"Unité de sortie glace/ eau",432]
[null,null,null,"Dessus",40,"Valve de compensation de pression",274]
[null,null,null,"Distributeur de glaçons",265,"Vanne arrivée d’eau",252]
[null,null,null,"Écoulement de l’eau de dégivrage",51,"Vanne de sortie de l’eau de dégivrage",276]
[null,null,null,"Entretoise murale",529,"Ventilateur – compartiment congélateur",523]
[null,null,null,"Esse",611,"Ventilateur – compartiment réfrigérateur/ BioFresh",524]
[null,null,null,"Évaporateur compartiment congélateur",17,"Ventilateur – condenseur",522]
[null,null,null,"Évaporateur compartiment réfrigérateur",18]
["pas d'erreur","Bruits de fonctionnement normaux",304,"Aération de l’appareil",474,"Points de soudure",475]
[80,"Congélation, givrage normal",408,"Affichage de la valeur réelle/ valeur de consigne",479,"Porte compartiment congélateur",42]
[null,"Consommation électrique normale",406,"Amortisseur de fermeture",408,"Porte compartiment réfrigérateur",43]
[null,"Différences / variations de températures normales",345,"Boîtier",223,"Précision technique (description du fonctionnement)",208]
[null,"Durée de fonctionnement normale",407,"Caractéristiques de l’appareil",206,"Récipient d’eau de dégivrage",52]
[null,"Encrassé",148,"Chauffage d’hiver",199,"Smart Device Box",608]
[null,"Erreur d’utilisation / non respect manuel d’utilisation",343,"Circuit réfrigérant",245,"Température de l’air, du noyau",476]
[null,"Erreur de montage/ de mise en place",81,"Compresseur",63,"Vanne arrivée d’eau",252]
[null,"Erreur ne se produit actuellement pas",82,"Consommable (filtre, ..)",610,"Vanne circuit réfrigérant",9]
[null,"Incompatible (p. ex. tablette, smartphone)",410,"Cuve intérieure compartiment congélateur",364,"Ventilateur – compartiment congélateur",523]
[null,"Informations non précises",342,"Cuve intérieure compartiment réfrigérateur",701,"Ventilateur – compartiment réfrigérateur/ BioFresh",524]
[null,"Inversion du sens d’ouverture de la porte",341,"Éclairage",59,"Ventilateur – condenseur",522]
[null,"Mauvais appareil",346,"Écoulement de l’eau de dégivrage",51]
[null,"Mode démo lors de mise en service",339,"Entretoise murale",529]
[null,"Odeur",83,"Face arrière",34]
[null,"Oxydation",344,"Humidificateur (Hydrobreeze)",683]
[null,"Pièce plus disponible",305,"Informations",207]
[null,"Puissance du signal",412,"Installation domestique",473]
[null,"Température ambiante trop chaude",86,"Lieu d’erreur non imputable",999]
[null,"Température ambiante trop froide",85,"Module d'ouverture de porte",609]
[null,"Tension d’alimentation manquante",340,"Platine électronique",172]
[null,"Type d’erreur non imputable",999,"Poignée",30]
["Erreur ne","Aucune connexion",488,"\u0090Joint de porte compartiment congélateur",531,"Lieu d’erreur non imputable",999]
["se produit","Bruit occasionnel",483,"\u0090Joint de porte compartiment étoiles",159,"Mécanisme de fermeture",472]
["actuellement","Condensation temporaire / rosée",489,"\u0090Joint de porte compartiment réfrigérateur",532,"Module d'ouverture de porte",609]
[" pas","Déclenchement temporaire du dispositif de sécurité",486,"Amortisseur de fermeture",408,"Ouverture à pédale",600]
[101,"Défaillance totale occasionnelle",490,"Charnière/ gond de porte",418,"Paroi latérale général",36]
[null,"Erreur d'éclairage occasionnelle",491,"Couvercle (coffre) / couvercle coulissant",26,"Platine électronique",172]
[null,"Message d'alarme occasionnel ",485,"Cuve intérieure compartiment congélateur",364,"Porte compartiment congélateur",42]
[null,"Occasionnellement bloqué/grippé",492,"Cuve intérieure compartiment réfrigérateur",701,"Porte compartiment réfrigérateur",43]
[null,"Taux d'humidité parfois trop élevé / trop faible",487,"Dessus",40,"Réservoir d’eau",436]
[null,"Variation occasionnelle de la température",484,"Distributeur de glaçons",265,"Tablettes en verre, balconnets, etc.",29]
[null,null,null,"Éclairage",59,"Tiroir",102]
[null,null,null,"Écoulement de l’eau de dégivrage",51,"Unité de sortie glace/ eau",432]
[null,null,null,"Évaporateur compartiment congélateur",17,"Vanne de sortie de l’eau de dégivrage",276]
[null,null,null,"Évaporateur compartiment réfrigérateur",18]
["Système ","Aucune connexion",488,"APP / logiciel",597,"Module maître / esclave (HomeDialog)",605]
["électronique","Câbles erreur de câblage",297,"Boutique de licences",695,"NFC, puce RFID",685]
[46,"Erreur de configuration",411,"Câble LAN",603,"Résistance de terminaison",595]
[null,"Erreur de logiciel (bug)",588,"Capteurs intelligents",686,"Smart Device Box",608]
[null,"Incompatible (p. ex. tablette, smartphone)",410,"Clé infrarouge",601,"SmartCoolingHub",697]
[null,"Puissance du signal",412,"Convertisseur pour port série (EVCO, Carel)",602,"SmartMonitoring",696]
[null,"Type d’erreur non imputable",999,"Interface (RS 485, RS 232, CAN BUS, MOD BUS, Ethernet, clé IR, Wi-Fi, BT, USB, …)",470]
["Fuite d'eau","Cassé",201,"Tuyau d'eau",210]
[200,"Fendu",207,"Vanne d'entrée d'eau",211]
[null,"Erreur de Montage",208,"Joint",212]
[null,"Pas étanche",209,"Pompe de vidange",213]
[null,"Déborde",205,"Sonde de niveau",214]
[null,"Dégât",206,null,215]
[null,"Type d’erreur non imputable",999]

{"sheet":"Codici di errore","index":6,"n_rows":218,"n_cols":7,"rows_kept":218,"cut":false,"hidden":false,"merged":[[23,0,24,0],[47,0,55,0],[91,0,104,0],[170,0,171,0],[224,1,224,6],[9,0,22,0],[0,2,0,4],[2,0,2,6],[5,1,5,2],[5,3,5,6],[6,0,7,0]]}
[null,null,"Codici di errore incarico servizio assistenza"]
[null,null,null,null,null,"Ultimo aggiornamento: 01.01.2025"]
[]
["|",null,"|",null,"|",null,"|"]
[]
["Categorie di errori","Tipo di errore",null,"Ubicazione dell'errore"]
["Ciclo frigorigeno","Bloccato / incastrato","058","Anticondensa /condensatore (collegamento)","012","Filtro essiccatore /capillare (connessione)","016"]
[null,"Brinatura del tubo di aspirazione","409","Cascata","679","Modulo evaporatore /tubo di aspirazione","413"]
[5,"Collegamento saldato non a tenuta stagna","001","cassetta di refrigerazione","525","Pressostato","678"]
["(Perdita/ Occlusione/ Capacità)","Giuntura saldata chiusa","293","Collettore","533","Riscaldatore , vaschetta evaporatore","416"]
[null,"Giunzione Lokring non a tenuta stagna","291","Compressore","063","Riscaldatore , vaschetta evaporatore/Compressore (connessione)","414"]
[null,"Materiale / tubo non a tenuta","292","Compressore /tubo di servizio (connessione)","003","Riscaldatore , vaschetta evaporatore/Condensatore (connessione)","415"]
[null,"Nessuna uscita","060","Compressore/condensatore (connessione)","007","Riscaldatore anticondensa","011"]
[null,"Ostruito","028","Compressore/tubo anticondensa (connessione)","004","Scambiatore di calore (ad acqua)","395"]
[null,"Piega","012","Compressore/tubo di aspirazione (connessione)","005","Separatore dell’olio","676"]
[null,"Rigido","023","Condensatore","020","Tubi capillari","002"]
[null,"Tipo di errore non classificabile","999","Condensatore/filtro essiccatore (connessione)","021","Tubo di aspirazione/evaporatore (connessione)","014"]
[null,0,0,"Diramazione – tubo di aspirazione / tubo di mandata (collegamento)","518","Tubo di aspirazione/ingresso tubi capillari (connessione)","013"]
[null,null,null,"Evaporatore vano congelatore","017","Ubicazione dell’errore non classificabile","999"]
[null,null,null,"Evaporatore vano frigorifero","018","Valvola circuito di raffreddamento","009"]
[null,null,null,"Evaporatore vano frigorifero/modulo evaporatore vano congelatore (connessione)","412","Valvola di espansione","675"]
[null,null,null,"Evaporatore/punto d’iniezione (connessione)","019","Valvola per raffreddamento esterno (circuito idrico, raffreddamento ad acqua ...)","677"]
[null,0,0,"Filtro essiccatore","015"]
["Impianto elettrico","Cavi danneggiati","036","Batteria/ batteria ricaricabile","103","Pompa tanica acqua","440"]
[null,"Contatto allentato","041","Blocchetto di distribuzione","075","Pressostato","678"]
[40,"Cortocircuito","034","Cablaggio/ cavo","062","Pulsante/ Interruttore","072"]
[null,"Difetto cavi/cablaggio","297","cassetta di refrigerazione","525","Riscaldamento porta","467"]
[null,"Fuori tolleranza (sonda etc.)","031","Chiusura remota","527","Riscaldatore","060"]
[null,"Fuso","040","Compressore","063","Salvamotore del compressore","065"]
[null,"Interruzione elettrica","032","Condensatore","066","Sensore di luminosità","682"]
[null,"Non commuta","202","Connettore / connettore a vite","071","Sensore umidità","468"]
[null,"Regola in modo non corretto","039","Contatto a potenziale zero","469","Sonda di temperatura","073"]
[null,"Tipo di errore non classificabile","999","Contatto reed (riconoscimento porta aperta, ...)","068","Spie luminose","067"]
[null,"Visualizzazione non corretta","033","Deflettore aria","439","Termometro","085"]
[null,null,null,"Dispositivo di avviamento del compressore","064","Termostato di regolazione","074"]
[null,null,null,"IceMaker","265","Termostato di sicurezza","517"]
[null,null,null,"Illuminazione","059","Ubicazione dell’errore non classificabile","999"]
[null,null,null,"Limitatore di temperatura di sicurezza","277","Umidificatore (hydrobreeze)","683"]
[null,null,null,"Meccanismo di arresto","680","Valvola afflusso acqua","252"]
[null,null,null,"Modulo apriporta ","609","Valvola circuito di raffreddamento","009"]
[null,null,null,"Modulo caricabatterie","598","Valvola di compensazione della pressione","274"]
[null,null,null,"Modulo RS485","681","Ventilatore – Condensatore","522"]
[null,null,null,"Modulo trita ghiaccio","599","Ventilatore – vano congelatore","523"]
[null,null,null,"Pannello isolante","061","Ventilatore – vano frigorifero/ BioFresh","524"]
["Elettronica","Allarme acustico non funziona","051","Alimentatore / trasformatore illuminazione a LED","442"]
[45,"Allarme temperatura ingiustificato","054","Chip NFC, RFID","685"]
[null,"Compressore non si attiva","046","Connettore scheda elettronica","082"]
["(Errore dei componenti elettronici)","Contatto allentato","041","Dimmer","519"]
[null,"Cortocircuito","034","Elettronica inverter (VCC)","260"]
[null,"Deflettore aria non si attiva","299","Elettronica, IceMaker","264"]
[null,"Difetto spia luminosa","047","Filtro di rete","684"]
[null,"Errore software (BUG)","588","Modulo di collegamento","441"]
[null,"Fuso","040","Modulo RS485","681"]
[null,"Indicazione errata / errore su display","043","Morsettiera di alimentazione elettrica","606"]
[null,"Interruzione (fessura capillare, punto saldato etc.)","055","Pannello di controllo, Interfaccia utente","612"]
[null,"L’illuminazione non si attiva / si attiva in parte / si attiva in modo insufficiente","042","Pulsante/ Interruttore","072"]
[null,"Malfunzionamento generale","044","Relè semiconduttore","698"]
[null,"Non si attiva il ventilatore","056","Scheda elettronica","172"]
[null,"Non si attiva la pompa del serbatoio dell’acqua","298","Sensori smart","686"]
[null,"Non si attiva la valvola magnetica","048","Termostato","516"]
[null,"Pulsante o interruttore difettoso","049","Ubicazione dell’errore non classificabile","999"]
[null,"Regola in modo non corretto","039"]
[null,"Riscaldatore non si attivata","045"]
[null,"Tipo di errore non classificabile","999"]
[null,"Variazioni della temperatura","050"]
["Meccanica","Bloccato / incastrato","058","Cerniera/ fissaggio porta","418","Pedale d’apertura","600"]
[50,"Curvo / deformato","025","Chiusura remota","527","Piedino/ rotella","028"]
[null,"Disallineato / sfalsato","027","Deflettore aria","439","Pulsante/ Interruttore","072"]
[null,"Logoro","057","Erogatore Ghiaccio/Acqua","432","Serratura","084"]
[null,"Rigido","023","Guida estraibile/telescopica","259","Termometro","085"]
[null,"Rottura","010","IceMaker","265","Ubicazione dell’errore non classificabile","999"]
[null,"Tipo di errore non classificabile","999","Maniglia","030","Umidificatore (hydrobreeze)","683"]
[null,"Visualizzazione non corretta","033","Meccanismo Soft System ","408","Ventilatore – Condensatore","522"]
[null,null,null,"Modulo apriporta ","609","Ventilatore – vano congelatore","523"]
[null,null,null,"Modulo trita ghiaccio","599","Ventilatore – vano frigorifero/ BioFresh","524"]
["Rumore","Gorgoglio","687","Assorbitore","596","Pannello di separazione verticale","266"]
[60,"Rumore di commutazione","203","cassetta di refrigerazione","525","Sifone","688"]
[null,"Rumore di funzionamento","066","Cerniera/ fissaggio porta","418","Termostato di regolazione","074"]
[null,"Rumore iniezione / flusso","300","Compressore","063","Tubi capillari","002"]
[null,"Rumore simile a un clic","064","Condensatore","020","Tubo","087"]
[null,"Rumore simile ad un fruscio/cigolio","065","Copertura evaporatore","528","Ubicazione dell’errore non classificabile","999"]
[null,"Rumore simile ad un ticchettio/crepitio","089","Elettronica inverter (VCC)","260","Valvola afflusso acqua","252"]
[null,"Tipo di errore non classificabile","999","Evaporatore vano congelatore","017","Valvola circuito di raffreddamento","009"]
[null,"Vibrazione","069","Evaporatore vano frigorifero","018","Valvola di compensazione della pressione","274"]
[null,null,null,"IceMaker","265","Vaschetta per la condensa","052"]
[null,null,null,"Meccanismo Soft System ","408","Ventilatore – Condensatore","522"]
[null,null,null,"Modulo apriporta ","609","Ventilatore – vano congelatore","523"]
[null,null,null,"Modulo trita ghiaccio","599","Ventilatore – vano frigorifero/ BioFresh","524"]
["Superfici","Corrosione","071","Alloggiamento termostato/interruttore luce","053","Illuminazione","059"]
[65,"Graffi","013","Branding (adesivi, logo, …)","530","Interfaccia utente","419"]
[null,"Impronta","070","Cassetto","102","Maniglia","030"]
["Nessun danno di trasporto identificabile sull'apparecchio o sue parti / né all'interno né all'esterno!","Macchie","302","Cielo apparecchiatura/ piano d'appoggio","040","Pannello di separazione verticale","266"]
[null,"Parte lucida / acciaio inox","301","Connettore incrociato","099","Pannello di separazione, orizzontale/intermedio","438"]
[null,"Protuberanza / ammaccatura","088","Controporta vano congelatore","374","Parete laterale in generale","036"]
[null,"Residui di pellicola","303","Controporta vano frigorifero","702","Parete posteriore","034"]
[null,"Scostamento cromatico","165","Controporta vano frigorifero rivestimento in acciaio inox","700","Porta vano congelatore","042"]
[null,"Sfaldatura","087","Coperchio (congelatore orizzontale) / coperchio scorrevole","026","Porta vano frigorifero","043"]
[null,"Staccato","405","Copertura evaporatore","528","Rivestimento interno vano congelatore","364"]
[null,"Tipo di errore non classificabile","999","Cornice congelatore orizzontale","041","Rivestimento interno vano frigorifero","701"]
[null,"Troppa vernice","030","Evaporatore vano frigorifero","018","Rivestimento interno vano frigorifero rivestimento in acciaio inox","699"]
[null,"Troppo poca vernice","072","Ganci per selvaggina","611","Strisce decorative parete laterale generale","689"]
[null,null,null,"Griglia in metallo/legno","336","Strisce decorative porta vano congelatore","690"]
[null,null,null,"Guarnizione porta vano congelatore","531","Strisce decorative porta vano frigorifero","691"]
[null,null,null,"Guarnizione porta vano freezer 4 stelle","159","Supporto del compressore","309"]
[null,null,null,"Guarnizione porta vano frigorifero","532","Ubicazione dell’errore non classificabile","999"]
["Danni di","Allentato","014","Branding (adesivi, logo, …)","530","Parete laterale destra, sotto","380"]
["trasporto","Ammaccatura","011","Cerniera/ fissaggio porta","418","Parete laterale sinistra, al centro","382"]
["Imballaggio","Compressione","017","Cielo apparecchiatura/ piano d'appoggio","040","Parete laterale sinistra, sopra","381"]
["danneggiato","Crepa","015","Condensatore","020","Parete laterale sinistra, sotto","383"]
[25,"Graffi","013","Connettore incrociato","099","Parete posteriore","034"]
[null,"Piega","012","Controporta vano congelatore","374","Parti delle dotazioni interne","039"]
["Danni di","Rottura","010","Controporta vano frigorifero","702","Piedino/ rotella","028"]
["trasporto","Superficie abrasa","016","Coperchio (congelatore orizzontale) , Destro","430","Porta compartimentata","692"]
["Imballaggio",null,null,"Coperchio (congelatore orizzontale), centrale","429","Porta esterna inferiore, sopra","423"]
["non più",null,null,"Cornice congelatore orizzontale","041","Porta esterna inferiore, sotto","424"]
["presente",null,null,"Fascia di compensazione per lo zoccolo","038","Porta esterna, al centro","421"]
[26,null,null,"Fissaggio compressore","033","Porta esterna, sopra","420"]
[null,null,null,"Frontale, a destra (congelatore orizzontale)","427","Porta esterna, sotto","422"]
["Causa del ",null,null,"Frontale, a sinistra (congelatore orizzontale)","425","Porzione sinistra del coperchio (congelatore orizzontale) ","428"]
["danno non",null,null,"Frontale, al centro (congelatore orizzontale)","426","Ripiani in vetro, mensole etc.","029"]
["chiara",null,null,"Illuminazione","059","Rivestimento interno vano congelatore","364"]
["Imballaggio ",null,null,"Interfaccia utente","419","Rivestimento interno vano frigorifero","701"]
["non",null,null,"Maniglia","030","Supporto del compressore","309"]
["danneggiato",null,null,"Parete laterale destra, al centro","379","Ubicazione dell’errore non classificabile","999"]
[27,null,null,"Parete laterale destra, sopra","378"]
["Difetto","Acqua di condensa","019","(connessione)","257","Meccanismo di chiusura","472"]
["del prodotto","Allentato","014","Accumulatore di freddo","272","Meccanismo Soft System ","408"]
[30,"Assemblato in modo non corretto","091","Alloggiamento termostato/interruttore luce","053","Modulo apriporta ","609"]
[null,"Bloccato / incastrato","058","Assorbitore","596","Modulo trita ghiaccio","599"]
[null,"Componente errato","079","Branding (adesivi, logo, …)","530","Pannello di controllo frontale/interfaccia utente","613"]
["(nessun ","Crepa","015","Carico acqua IiceMaker)","521","Pannello di separazione verticale","266"]
["danno di","Curvo / deformato","025","cassetta di refrigerazione","525","Pannello di separazione, orizzontale/intermedio","438"]
["trasporto","Difetto di isolamento","296","Cassetto","102","Parete laterale in generale","036"]
["riconoscibile)","Disallineato / sfalsato","027","Cerniera/ fissaggio porta","418","Parete posteriore","034"]
[null,"Flesso","204","Cielo apparecchiatura/ piano d'appoggio","040","Parti delle dotazioni interne","039"]
[null,"Fuoriuscita schiuma tura","103","Commutazione camme / magnete porta","104","Pedale d’apertura","600"]
[null,"Mancante","018","Condensatore","020","Porta compartimentata","692"]
[null,"Non a tenuta stagna","002","Connettore incrociato","099","Porta vano congelatore","042"]
[null,"Odore","083","Controporta vano congelatore","374","Porta vano freezer 4 stelle","056"]
[null,"Ostruito","028","Controporta vano frigorifero","702","Porta vano frigorifero","043"]
[null,"Piega","012","Controporta vano frigorifero rivestimento in acciaio inox","700","Pulsante di controllo","050"]
[null,"Rigido","023","Convogliatore aria","520","Rack per la conservazione criogenica","694"]
[null,"Rottura","010","Coperchio (congelatore orizzontale) / coperchio scorrevole","026","Raffreddamento di emergenza CO2","693"]
[null,"Sporco","148","Coperchio, inserto elettronica","434","Riscaldatore","060"]
[null,"Storto","022","Copertura","105","Rivestimento interno vano congelatore","364"]
[null,"Tipo di errore non classificabile","999","Copertura evaporatore","528","Rivestimento interno vano frigorifero","701"]
[null,"Traboccamento","020","Cornice congelatore orizzontale","041","Rivestimento interno vano frigorifero rivestimento in acciaio inox","699"]
[null,"Troppo stretto","029","Distanziale per parete","529","Scarico condensa","051"]
[null,"Vaschetta evaporazione","024","Elemento passante per alloggiamento","047","Sistema guida estraibile","437"]
[null,null,null,"Erogatore Ghiaccio/Acqua","432","Sonda di temperatura","073"]
[null,null,null,"Evaporatore vano congelatore","017","Supporto del compressore","309"]
[null,null,null,"Evaporatore vano frigorifero","018","Supporto per guida estraibile / telescopica","431"]
[null,null,null,"Filtro dell’acqua","471","Tanica acqua","436"]
[null,null,null,"Fissaggio maniglia (dado ,rivettato)","526","Tappo di chiusura condensa vano congelatore","096"]
[null,null,null,"Ganci per selvaggina","611","Telaio decorativo","094"]
[null,null,null,"Griglia in metallo/legno","336","Temperatura aria/temperatura al cuore","604"]
[null,null,null,"Guarnizione porta vano congelatore","531","Tubo dell’acqua","275"]
[null,null,null,"Guarnizione porta vano freezer 4 stelle","159","Ubicazione dell’errore non classificabile","999"]
[null,null,null,"Guarnizione porta vano frigorifero","532","Umidificatore (hydrobreeze)","683"]
[null,null,null,"Guida estraibile/telescopica","259","Valvola afflusso acqua","252"]
[null,null,null,"IceMaker","265","Valvola di compensazione della pressione","274"]
[null,null,null,"Interfaccia utente","419","Valvola di scarico condensa","276"]
[null,null,null,"Interruttore della luce","049","Vaschetta IceMaker","295"]
[null,null,null,"Kit accessori","232","Vaschetta per la condensa","052"]
[null,null,null,"Kit accoppiamento porta","097","Ventilatore – Condensatore","522"]
[null,null,null,"Kit di collegamento SBS","273","Ventilatore – vano congelatore","523"]
[null,null,null,"Listello profilato( cartellini prezzo, binario scanner,..)","607","Ventilatore – vano frigorifero/ BioFresh","524"]
[null,null,null,"Maniglia","030"]
["Nessun errore","Apparecchio errato","346","Alloggiamento","223","Smart Device Box","608"]
[80,"Consumo energetico normale","406","Articolo di consumo (filtro,...)","610","Temperatura dell’aria/interna","476"]
[null,"Errore di funzionamento / non-osservanza delle istruzioni per l'uso","343","Caratteristiche apparecchiature","206","Ubicazione dell’errore non classificabile","999"]
[null,"Errore di montaggio / installazione","081","Chiarimento tecnico (descrizione della funzione)","208","Umidificatore (hydrobreeze)","683"]
[null,"Forza del segnale","412","Circuito frigorifero","245","Valvola afflusso acqua","252"]
[null,"Guasto al momento non verificato","082","Compressore","063","Valvola circuito di raffreddamento","009"]
[null,"Il componente non c’è più","305","Distanziale per parete","529","Vaschetta per la condensa","052"]
[null,"Incompatibile (ad es. tablet, smartphone)","410","Illuminazione","059","Ventilatore – Condensatore","522"]
[null,"Informazioni catalogo non chiare","342","Impianto elettrico luogo di installazione","473","Ventilatore – vano congelatore","523"]
[null,"Inversione apertura porte","341","Informazioni catalogo","207","Ventilatore – vano frigorifero/ BioFresh","524"]
[null,"Mancanza di alimentazione","340","Maniglia","030","Ventilazione apparecchiatura","474"]
[null,"Modalità demo durante la messa in servizio","339","Meccanismo Soft System ","408","Visualizzazione valore reale/richiesto","479"]
[null,"Normale formazione di ghiaccio/brina tura","408","Modulo apriporta ","609"]
[null,"Normali differenze / fluttuazioni di temperatura","345","Parete posteriore","034"]
[null,"Normali rumori di funzionamento","304","Porta vano congelatore","042"]
[null,"Normali tempi di funzionamento","407","Porta vano frigorifero","043"]
[null,"Odore","083","Punti saldati","475"]
[null,"Ossidazione","344","Riscaldatore inverno","199"]
[null,"Sporco","148","Rivestimento interno vano congelatore","364"]
[null,"Temperatura ambiente troppo alta","086","Rivestimento interno vano frigorifero","701"]
[null,"Temperatura ambiente troppo bassa","085","Scarico condensa","051"]
[null,"Tipo di errore non classificabile","999","Scheda elettronica","172"]
["Guasto","A volte attivazione del dispositivo di sicurezza","486","Cassetto","102","Modulo apriporta ","609"]
["al momento","A volte blackout totale","490","Cerniera/ fissaggio porta","418","Parete laterale in generale","036"]
["non verificato","A volte bloccato / duro da muovere","492","Cielo apparecchiatura/ piano d'appoggio","040","Pedale d’apertura","600"]
[101,"A volte condensa","489","Coperchio (congelatore orizzontale) / coperchio scorrevole","026","Porta vano congelatore","042"]
[null,"A volte guasto dell’illuminazione","491","Erogatore Ghiaccio/Acqua","432","Porta vano frigorifero","043"]
[null,"A volte messaggio di allarme ","485","Evaporatore vano congelatore","017","Ripiani in vetro, mensole etc.","029"]
[null,"A volte rumore","483","Evaporatore vano frigorifero","018","Rivestimento interno vano congelatore","364"]
[null,"A volte scostamento di temperatura","484","Guarnizione porta vano congelatore","531","Rivestimento interno vano frigorifero","701"]
[null,"A volte umidità dell’aria troppo bassa/alta","487","Guarnizione porta vano freezer 4 stelle","159","Scarico condensa","051"]
[null,"Nessun collegamento","488","Guarnizione porta vano frigorifero","532","Scheda elettronica","172"]
[null,null,null,"IceMaker","265","Tanica acqua","436"]
[null,null,null,"Illuminazione","059","Ubicazione dell’errore non classificabile","999"]
[null,null,null,"Meccanismo di chiusura","472","Valvola di scarico condensa","276"]
[null,null,null,"Meccanismo Soft System ","408"]
["Rete / ","Difetto cavi/cablaggio","297","APP / software","597","Resistenza alla chiusura","595"]
["comunicazione","Errore di configurazione","411","Cavo LAN","603","Sensori smart","686"]
[46,"Errore software (BUG)","588","Chiave a infrarossi","601","Shop di licenze","695"]
[null,"Forza del segnale","412","Chip NFC, RFID","685","Smart Device Box","608"]
[null,"Incompatibile (ad es. tablet, smartphone)","410","Convertitore per il collegamento standard (EVCO, Carel)","602","SmartCoolingHub","697"]
[null,"Nessun collegamento","488","Interfaccia (RS 485, RS 232, CAN BUS, MOD BUS, Ethernet, chiave IR, WLAN, BT, USB, …)","470","SmartMonitoring","696"]
[null,"Tipo di errore non classificabile","999","Modulo Master / Slave (HomeDialog)","605"]
["Perdita d'acqua","Rottura",201,"Tubo dell'acqua",210]
[200,"Crepa",207,"Valvola di ingresso dell'acqua",211]
[null,"Errore di montaggio",208,"Guarnizione",212]
[null,"Perdita",209,"Pompa di drenaggio",213]
[null,"Riempimento eccessivo",205,"Sensore di livello",214]
[null,"Danno",206,null,215]
[null,"Tipo di errore non classificabile","999"]

{"sheet":"Fehleraktivitäten","index":7,"n_rows":27,"n_cols":9,"rows_kept":27,"cut":false,"hidden":false,"merged":[[4,1,4,2],[4,4,4,5],[4,7,4,8]]}
["Fehleraktivität - Serviceeinsätze, Reparaturauftrag"]
[]
[]
[]
[null,"DEUTSCH",null,null,"Französisch",null,null,"Italienisch"]
["Aktivitätscode","Beschreibung der Aktivität 1","Beschreibung der Aktivität 2",null,"Beschreibung der Aktivität 1","Beschreibung der Aktivität 2",null,"Beschreibung der Aktivität 1","Beschreibung der Aktivität 2"]
[]
["0.0","Erstreparatur","repariert - ohne Teiletausch - (nachgearbeitet, gerichtet, z.B. Leckage/Verstopfung)",{"$f":"A8&\" \"&B8","v":"0.0 Erstreparatur"},"première reparation","réparé - sans remplacement de pièces - (retravaillé, ajusté, p.ex. fuite/engorgement)",{"$f":"A8&\" \"&E8","v":"0.0 première reparation"},"prima riparazione","riparato - senza cambio parti - (ripassato, aggiustato, p.e. perdita/ostruzione)"]
["0.1","Erstreparatur","repariert - mit Teiletausch",{"$f":"A9&\" \"&B9","v":"0.1 Erstreparatur"},"première reparation","réparé - avec remplacement de pièces",{"$f":"A9&\" \"&E9","v":"0.1 première reparation"},"prima riparazione","riparato - con combio parti"]
["0.2","Erstreparatur","Überprüfung (Kunde lehnt Reparatur ab, ohne Fehlerbeseitigung- / erkennung)","0.2 Erstreparatur","première reparation","controle (client refuse réparation, sans réparation/détection d'erreur)","0.2 première reparation","prima riparazione","verifica (il cliente rifiuta la riparazione, senza eliminazione/identificazione del guasto)"]
["0.3","Erstreparatur","Austausch des ganzen Geraetes/Leihgeräteabwicklung","0.3 Erstreparatur","première reparation","remplacement de tout l'appareil/déroulement appareil de pret","0.3 première reparation","prima riparazione","sostituzione di tutto l'apparecchio/gestione apparecchi in noleggio"]
["0.4","Erstreparatur","Kundenberatung/Händlerunterstuetzung (wegen Bedienungsanleitung-/fehler)","0.4 Erstreparatur","première reparation","information service clientèle/support distributeurs (suite erreur sur notice/erreur d'utilisation)","0.4 première reparation","prima riparazione","consulenza al cliente/assistenza al rivenditore (per via delle istruzioni per l'uso/di un errore nelle istruzioni per l'uso)"]
["0.5","Erstreparatur","fehlt","0.5 Erstreparatur","première reparation","fehlt","0.5 première reparation","prima riparazione",""]
["0.6","Erstreparatur","Preisnachlass","0.6 Erstreparatur","première reparation","ristourne","0.6 première reparation","prima riparazione","sconto"]
["0.7","Erstreparatur","fehlendes Teil montiert","0.7 Erstreparatur","première reparation","pièce manquante montée","0.7 première reparation","prima riparazione","montata parte mancante"]
["0.8","Erstreparatur","fehlendes Teil bestellt zur direkten Lieferung an Kunden oder Haendler","0.8 Erstreparatur","première reparation","pièce manquante commandée pour livraison directe au client ou au distributeur","0.8 première reparation","prima riparazione","parte mancante ordinata, sarà fornita direttamente al cliente o al rivenditore"]
["0.9","Erstreparatur","Zusatzmaterial montiert","0.9 Erstreparatur","première reparation","matériel supplémentaire monté","0.9 première reparation","prima riparazione","materiale aggiuntivo montato"]
["1.0","Mehrfachreparatur / -fahrt","repariert - ohne Teiletausch - (nachgearbeitet, gerichtet, z.B. Leckage/Verstopfung)","1.0 Mehrfachreparatur / -fahrt","plusieurs réparations/courses","réparé - sans remplacement de pièces - (retravaillé, ajusté, p.ex. fuite/engorgement)","1.0 plusieurs réparations/courses","diverese riparazioni / diversi viaggi","riparato - senza cambio parti - (ripassato, aggiustato, p.e. perdita/ostruzione)"]
["1.1","Mehrfachreparatur / -fahrt","repariert - mit Teiletausch","1.1 Mehrfachreparatur / -fahrt","plusieurs réparations/courses","réparé - avec remplacement de pièces","1.1 plusieurs réparations/courses","diverese riparazioni / diversi viaggi","riparato - con combio parti"]
["1.2","Mehrfachreparatur / -fahrt","Überprüfung (Kunde lehnt Reparatur ab, ohne Fehlerbeseitigung- / erkennung)","1.2 Mehrfachreparatur / -fahrt","plusieurs réparations/courses","controle (client refuse réparation, sans réparation/détection d'erreur)","1.2 plusieurs réparations/courses","diverese riparazioni / diversi viaggi","verifica (il cliente rifiuta la riparazione, senza eliminazione/identificazione del guasto)"]
["1.3","Mehrfachreparatur / -fahrt","Austausch des ganzen Geraetes/Leihgeräteabwicklung","1.3 Mehrfachreparatur / -fahrt","plusieurs réparations/courses","remplacement de tout l'appareil/déroulement appareil de pret","1.3 plusieurs réparations/courses","diverese riparazioni / diversi viaggi","sostituzione di tutto l'apparecchio/gestione apparecchi in noleggio"]
["1.4","Mehrfachreparatur / -fahrt","Kundenberatung/Händlerunterstuetzung (wegen Bedienungsanleitung-/fehler)","1.4 Mehrfachreparatur / -fahrt","plusieurs réparations/courses","information service clientèle/support distributeurs (suite erreur sur notice/erreur d'utilisation)","1.4 plusieurs réparations/courses","diverese riparazioni / diversi viaggi","consulenza al cliente/assistenza al rivenditore (per via delle istruzioni per l'uso/di un errore nelle istruzioni per l'uso)"]
["1.5","Mehrfachreparatur / -fahrt","fehlt","1.5 Mehrfachreparatur / -fahrt","plusieurs réparations/courses","fehlt",{"$f":"A23&\" \"&E23","v":"1.5 plusieurs réparations/courses"},"diverese riparazioni / diversi viaggi",""]
["1.6","Mehrfachreparatur / -fahrt","Preisnachlass","1.6 Mehrfachreparatur / -fahrt","plusieurs réparations/courses","ristourne","1.6 plusieurs réparations/courses","diverese riparazioni / diversi viaggi","sconto"]
["1.7","Mehrfachreparatur / -fahrt","fehlendes Teil montiert","1.7 Mehrfachreparatur / -fahrt","plusieurs réparations/courses","pièce manquante montée","1.7 plusieurs réparations/courses","diverese riparazioni / diversi viaggi","montata parte mancante"]
["1.8","Mehrfachreparatur / -fahrt","fehlendes Teil bestellt zur direkten Lieferung an Kunden oder Haendler","1.8 Mehrfachreparatur / -fahrt","plusieurs réparations/courses","pièce manquante commandée pour livraison directe au client ou au distributeur","1.8 plusieurs réparations/courses","diverese riparazioni / diversi viaggi","parte mancante ordinata, sarà fornita direttamente al cliente o al rivenditore"]
["1.9","Mehrfachreparatur / -fahrt","Zusatzmaterial montiert","1.9 Mehrfachreparatur / -fahrt","plusieurs réparations/courses","matériel supplémentaire monté","1.9 plusieurs réparations/courses","diverese riparazioni / diversi viaggi","materiale aggiuntivo montato"]